{"text_format":"1","workbook":"xlsx","n_sheets":10,"sheets":["PORTADA","CONDICION DE SALUD INICIAL","CAPACIDAD FUNC MMSS INICIAL","CAPACIDAD FUNC COLUMNA INICIAL","CONDICION DE SALUD POST","CAPACIDAD FUNC MMSS POST","CAPACIDAD FUNC COLUMNA POST","BASE DE DATOS CONSOLIDADO","CONSOLIDADO POR TRABAJADOR","CATEGORÍAS"],"not_rendered":{"charts":3,"images":3,"macros":0,"external_links":0,"defined_names":8,"comments":0,"pivot_tables":0},"unopened":[],"bounds":{"document_bytes":16777216,"sheet_cells":100000,"rows_first":2000,"rows_last":500,"rows_between":2000,"halvings":0,"cell_chars":16384,"cell_head_chars":4096},"cells_cut":0,"cells_raw":0,"read":"whole","date_system":"1900"}

{"sheet":"PORTADA","index":0,"n_rows":0,"n_cols":0,"rows_kept":0,"cut":false,"hidden":false,"merged":[]}

{"sheet":"CONDICION DE SALUD INICIAL","index":1,"n_rows":27,"n_cols":38,"rows_kept":27,"cut":false,"hidden":false,"merged":[[3,0,3,10],[4,10,6,10],[1,0,1,13],[4,11,4,34],[4,35,6,35],[3,11,3,36],[4,7,6,7],[4,5,6,5],[4,1,6,1],[4,9,6,9],[4,8,6,8],[4,0,6,0],[4,2,6,2],[4,3,6,3],[4,4,6,4],[4,6,6,6],[3,37,6,37],[5,11,6,11],[5,25,6,25],[5,33,6,33],[5,34,6,34],[5,17,5,20],[5,21,5,24],[5,26,6,26],[4,36,6,36],[5,27,5,32],[5,12,6,12],[5,13,5,16]]}
[]
["Base de Datos Intervención Terapeútica\nCondiciones de Salud - Inicial"]
[]
["DATOS PERSONALES ",null,null,null,null,null,null,null,null,null,null,"“SF-12” SOBRE LA CALIDAD DE VIDA SEGÚN PERCEPCIÓN DE SALUD - INICIAL",null,null,null,null,null,null,null,null,null,null,null,null,null,null,null,null,null,null,null,null,null,null,null,null,null,"Observaciones"]
["Nº","Empresa","Apellidos  ","Nombres","Cedula","Fecha de evaluación inicial","Fecha de nacimiento","Edad (años)","Presenta algún desorden músculo esquelético","Segmentos Corporales  sintomáticos","Nivel de dolor inicial","La siguiente encuesta, es un autocuestionario genérico que permite calcular el perfil de calidad de vida relacionado con la salud ",null,null,null,null,null,null,null,null,null,null,null,null,null,null,null,null,null,null,null,null,null,null,null,"Total","Interpretación "]
[null,null,null,null,null,null,null,null,null,null,null,"En general, usted diría que su salud es","Calificación","Las siguientes preguntas se refieren a actividades  que usted podría hacer en un día normal.  Su salud actual,  ¿le limita para hacer esas actividades ? Si es así, ¿cuánto?",null,null,null,"Durante las 4 últimas semanas, ¿ha tenido alguno de los siguientes problemas en su trabajo o en sus actividades cotidianas, a causa de su salud física?",null,null,null,"Durante las 4 últimas semanas, ¿ha tenido alguno de los siguientes problemas en su trabajo o en sus actividades cotidianas, a causa de algún problema emocional (como estar triste, deprimido, o nervioso)?",null,null,null,"Durante las 4 últimas semanas. Hasta qué punto el dolor le ha dificultado su trabajo habitual (incluido el trabajo fuera de casa y las tareas domésticas)? ","Calificación","Las siguientes preguntas se refieren a cómo se ha sentido y cómo le han ido las cosas durante las 4 últimas semanas. En cada pregunta responda lo que se parezca más a cómo se ha sentido usted. ¿cuánto tiempo?",null,null,null,null,null,"Durante las 4 últimas semanas su salud física y emocional le permitió realizar sus actividades sociales sin dificultadades?","Calificación"]
[null,null,null,null,null,null,null,null,null,null,null,null,null," Esfuerzos moderados, como  mover una mesa, pasar la aspiradora, jugar a los bolos o caminar más de 1 hora","Calificación","Subir varios pisos por la escalera","Calificación","¿Hizo menos de lo que hubiera querido hacer?","Calificación","Tuvo que dejar de hacer algunas tareas en su trabajo o en sus actividades cotidianas?","Calificación","Hizo menos de lo que hubiera querido hacer, por algún problema emocional","Calificación","No hizo su trabajo o sus actividades cotidianas tan cuidadosamente  como de costumbre, por algún problema emocional?","Calificación",null,null,"Se sintió calmado y\ntranquilo?","Calificación"," Tuvo mucha energía?","Calificación","Se sintió muy animado y contento?","Calificación"]
[null,null,null,null,null,null,null,{"$f":"(F8-G8)/365","v":0},"SI",null,"MEDIO","Mala",{"$f":"IF(L8=\"Excelente\",\"1\",IF(L8=\"Muy buena\",\"2\",IF(L8=\"Buena\",\"3\",IF(L8=\"Regular\",\"4\",IF(L8=\"Mala\",\"5\",IF(L8=\"\",\"0\"))))))","v":"5"},"Si, me limita un poco",{"$f":"IF(N8=\"No, no me limita nada\",\"1\",IF(N8=\"Si, me limita un poco\",\"2\",IF(N8=\"Si, me limita mucho\",\"3\",IF(N8=\"\",\"0\"))))","v":"2"},"Si, me limita mucho",{"$f":"IF(P8=\"No, no me limita nada\",\"1\",IF(P8=\"Si, me limita un poco\",\"2\",IF(P8=\"Si, me limita mucho\",\"3\",IF(P8=\"\",\"0\"))))","v":"3"},"NO",{"$f":"IF(R8=\"SI\",\"2\",IF(R8=\"NO\",\"1\",IF(R8=\"\",\"0\")))","v":"1"},"NO",{"$f":"IF(T8=\"SI\",\"2\",IF(T8=\"NO\",\"1\",IF(T8=\"\",\"0\")))","v":"1"},"NO",{"$f":"IF(V8=\"SI\",\"2\",IF(V8=\"NO\",\"1\",IF(V8=\"\",\"0\")))","v":"1"},"NO",{"$f":"IF(X8=\"SI\",\"2\",IF(X8=\"NO\",\"1\",IF(X8=\"\",\"0\")))","v":"1"},"Regular",{"$f":"IF(Z8=\"Nada\",\"1\",IF(Z8=\"Un poco\",\"2\",IF(Z8=\"Regular\",\"3\",IF(Z8=\"Bastante\",\"4\",IF(Z8=\"Mucho\",\"5\",IF(Z8=\"\",\"0\"))))))","v":"3"},"Casi siempre",{"$f":"IF(AB8=\"Siempre\",\"1\",IF(AB8=\"Casi siempre\",\"2\",IF(AB8=\"Algunas veces\",\"3\",IF(AB8=\"Solo una vez\",\"4\",IF(AB8=\"Nunca\",\"5\",IF(AB8=\"\",\"0\"))))))","v":"2"},"Nunca",{"$f":"IF(AD8=\"Siempre\",\"1\",IF(AD8=\"Casi siempre\",\"2\",IF(AD8=\"Algunas veces\",\"3\",IF(AD8=\"Solo una vez\",\"4\",IF(AD8=\"Nunca\",\"5\",IF(AD8=\"\",\"0\"))))))","v":"5"},"Nunca",{"$f":"IF(AF8=\"Siempre\",\"1\",IF(AF8=\"Casi siempre\",\"2\",IF(AF8=\"Algunas veces\",\"3\",IF(AF8=\"Solo una vez\",\"4\",IF(AF8=\"Nunca\",\"5\",IF(AF8=\"\",\"0\"))))))","v":"5"},"Siempre",{"$f":"IF(AH8=\"Siempre\",\"1\",IF(AH8=\"Casi siempre\",\"2\",IF(AH8=\"Algunas veces\",\"3\",IF(AH8=\"Solo una vez\",\"4\",IF(AH8=\"Nunca\",\"5\",IF(AH8=\"\",\"0\"))))))","v":"1"},{"$f":"(M8+O8+Q8+S8+U8+W8+Y8+AA8+AC8+AE8+AG8+AI8)+0","v":30},{"$f":"IF(AJ8=0,\"\",IF(AJ8<=20,\"BUENO\",IF(AJ8<=40,\"REGULAR\",IF(AJ8>=41,\"MALO\",))))","v":"REGULAR"}]
[null,null,null,null,null,null,null,0,null,null,"ALTO","Regular","4","Si, me limita mucho","3","Si, me limita mucho","3","SI","2","SI","2","NO","1","SI","2","Regular","3","Algunas veces",{"$f":"IF(AB9=\"Siempre\",\"1\",IF(AB9=\"Casi siempre\",\"2\",IF(AB9=\"Algunas veces\",\"3\",IF(AB9=\"Solo una vez\",\"4\",IF(AB9=\"Nunca\",\"5\",IF(AB9=\"\",\"0\"))))))","v":"3"},"Algunas veces",{"$f":"IF(AD9=\"Siempre\",\"1\",IF(AD9=\"Casi siempre\",\"2\",IF(AD9=\"Algunas veces\",\"3\",IF(AD9=\"Solo una vez\",\"4\",IF(AD9=\"Nunca\",\"5\",IF(AD9=\"\",\"0\"))))))","v":"3"},"Siempre",{"$f":"IF(AF9=\"Siempre\",\"1\",IF(AF9=\"Casi siempre\",\"2\",IF(AF9=\"Algunas veces\",\"3\",IF(AF9=\"Solo una vez\",\"4\",IF(AF9=\"Nunca\",\"5\",IF(AF9=\"\",\"0\"))))))","v":"1"},"Algunas veces",{"$f":"IF(AH9=\"Siempre\",\"1\",IF(AH9=\"Casi siempre\",\"2\",IF(AH9=\"Algunas veces\",\"3\",IF(AH9=\"Solo una vez\",\"4\",IF(AH9=\"Nunca\",\"5\",IF(AH9=\"\",\"0\"))))))","v":"3"},30,"REGULAR"]
[null,null,null,null,null,null,null,0,"SI",null,"MEDIO","Buena","3","No, no me limita nada","1","No, no me limita nada","1","SI","2","NO","1","NO","1","SI","2","Nada","1","Algunas veces","3","Algunas veces","3","Algunas veces","3","Nunca","5",26,"REGULAR"]
[null,null,null,null,null,null,null,0,"SI",null,"ALTO","Regular","4","Si, me limita un poco","2","Si, me limita mucho","3","NO","1","NO","1","NO","1","NO","1","Regular","3","Casi siempre","2","Algunas veces","3","Algunas veces","3","Algunas veces","3",27,"REGULAR"]
[null,null,null,null,null,null,null,0,"SI",null,"MEDIO","Muy buena","2","No, no me limita nada","1","Si, me limita un poco","2","NO","1","NO","1","NO","1","NO","1","Nada","1","Casi siempre","2","Casi siempre","2","Algunas veces","3","Nunca","5",22,"REGULAR"]
[null,null,null,null,null,null,null,0,"SI",null,"ALTO","Buena","3","No, no me limita nada","1","Si, me limita un poco","2","NO","1","NO","1","NO","1","NO","1","Un poco","2","Casi siempre","2","Casi siempre","2","Algunas veces","3","Nunca","5",24,"REGULAR"]
[null,null,null,null,null,null,null,0,"SI",null,"MEDIO",null,"0",null,"0",null,"0",null,"0",null,"0",null,"0",null,"0",null,"0",null,"0",null,"0",null,"0",null,"0",0,""]
[null,null,null,null,null,null,null,0,"SI",null,"ALTO","Regular","4","Si, me limita un poco","2","Si, me limita un poco","2","SI","2","SI","2","SI","2","SI","2","Bastante","4","Algunas veces","3","Solo una vez","4","Algunas veces","3","Algunas veces","3",33,"REGULAR"]
[null,null,null,null,null,null,null,0,"SI",null,"MEDIO","Regular","4","Si, me limita un poco","2","Si, me limita mucho","3","NO","1","NO","1","NO","1","NO","1","Regular","3","Algunas veces","3","Algunas veces","3","Algunas veces","3","Solo una vez","4",29,"REGULAR"]
[null,null,null,null,null,null,null,0,"SI",null,"ALTO","Buena","3","Si, me limita un poco","2","Si, me limita un poco","2","SI","2","NO","1","SI","2","NO","1","Un poco","2","Algunas veces","3","Algunas veces","3","Solo una vez","4","Algunas veces","3",28,"REGULAR"]
[null,null,null,null,null,null,null,0,"SI",null,"ALTO","Regular","4","Si, me limita un poco","2","No, no me limita nada","1","NO","1","SI","2","NO","1","NO","1","Un poco","2","Casi siempre","2","Casi siempre","2","Algunas veces","3","Algunas veces","3",24,"REGULAR"]
[null,null,null,null,null,null,null,0,"SI",null,"MEDIO","Regular","4","Si, me limita un poco","2","Si, me limita un poco","2","SI","2","SI","2","NO","1","NO","1","Regular","3","Algunas veces","3","Algunas veces","3","Algunas veces","3","Algunas veces","3",29,"REGULAR"]
[null,null,null,null,null,null,null,0,"SI",null,"MEDIO","Excelente","1","Si, me limita un poco","2","No, no me limita nada","1","NO","1","SI","2","NO","1","NO","1","Un poco","2","Siempre","1","Siempre","1","Siempre","1","Nunca","5",19,"BUENO"]
[null,null,null,null,null,null,null,0,"SI",null,"ALTO","Regular","4","Si, me limita mucho","3","Si, me limita mucho","3","SI","2","SI","2","SI","2",null,"0","Bastante","4","Casi siempre","2","Casi siempre","2","Algunas veces","3","Algunas veces","3",30,"REGULAR"]
[null,null,null,null,null,null,null,0,"SI",null,"MEDIO",null,"0",null,"0",null,"0",null,"0",null,"0",null,"0",null,"0",null,"0",null,"0",null,"0",null,"0",null,"0",0,""]
[null,null,null,null,null,null,null,0,"SI",null,"MEDIO",null,"0",null,"0",null,"0",null,"0",null,"0",null,"0",null,"0",null,"0",null,"0",null,"0",null,"0",null,"0",0,""]
[null,null,null,null,null,null,null,0,null,null,null,null,"0",null,"0",null,"0",null,"0",null,"0",null,"0",null,"0",null,"0",null,"0",null,"0",null,"0",null,"0",0,""]
[null,null,null,null,null,null,null,0,"SI",null,null,null,"0",null,"0",null,"0",null,"0",null,"0",null,"0",null,"0",null,"0",null,"0",null,"0",null,"0",null,"0",0,""]
[null,null,null,null,null,null,null,0,"SI",null,null,null,"0",null,"0",null,"0",null,"0",null,"0",null,"0",null,"0",null,"0",null,"0",null,"0",null,"0",null,"0",0,""]
[null,null,null,null,null,null,null,0,null,null,null,null,"0",null,"0",null,"0",null,"0",null,"0",null,"0",null,"0",null,"0",null,"0",null,"0",null,"0",null,"0",0,""]

{"sheet":"CAPACIDAD FUNC MMSS INICIAL","index":2,"n_rows":28,"n_cols":95,"rows_kept":28,"cut":false,"hidden":false,"merged":[[3,94,6,94],[3,78,3,89],[5,88,6,88],[1,0,1,15],[3,1,6,1],[3,2,6,2],[3,3,6,3],[3,4,6,4],[3,0,6,0],[5,6,5,10],[5,11,6,11],[5,13,5,18],[4,76,6,76],[3,28,3,56],[4,35,4,48],[5,35,5,48],[4,55,6,55],[4,56,6,56],[4,53,6,53],[4,49,4,52],[5,49,5,52],[4,28,4,33],[4,6,4,11],[4,13,4,18],[5,28,5,32],[5,33,6,33],[3,6,3,26],[4,26,6,26],[5,23,6,23],[5,19,5,22],[4,19,4,23],[4,25,6,25],[3,91,3,92],[4,58,4,63],[4,65,4,73],[4,75,6,75],[5,92,6,92],[4,91,4,92],[5,89,6,89],[5,91,6,91],[5,78,5,82],[5,83,5,87],[4,78,4,89],[3,58,3,76],[5,63,6,63],[5,58,5,62],[5,73,6,73],[5,65,5,72]]}
[]
["Base de Datos Intervención Terapeútica\nEvaluación capacidad funcional miembros superiores MMSS - Inicial"]
[]
["Nº","Empresa","Apellidos","Nombres","Edad",null,"DOLOR ( PATIENT RATED WRIST EVALUATION (PRWE)) - EVALUACIÓN DEL DOLOR Y FUNCIONALIDAD  DE MUÑECA REFERIDA POR EL TRABAJADOR - INICIAL",null,null,null,null,null,null,null,null,null,null,null,null,null,null,null,null,null,null,null,null,null,"THE PATIENT - RATED ELBOW EVALUATION (PREE) - CODO EVALUACIÓN DEL DOLOR Y FUNCIONALIDAD  DE CODO REFERIDA POR EL TRABAJADOR - INICIAL",null,null,null,null,null,null,null,null,null,null,null,null,null,null,null,null,null,null,null,null,null,null,null,null,null,null,null,null,null,"SHOULDER PAIN DISABILITY INDEX (SPADI) INDICE DE LIMITACIÓN FUNCIONAL  POR DOLOR EN HOMBRO - INICIAL",null,null,null,null,null,null,null,null,null,null,null,null,null,null,null,null,null,null,null,"FUERZA - INICIAL",null,null,null,null,null,null,null,null,null,null,null,null,"FLEXIBILIDAD - INICIAL",null,null,"Observaciones"]
[null,null,null,null,null,null,"Descripción Del Dolor",null,null,null,null,null,null,"Actividades Especificas ",null,null,null,null,null,"Actividades Cotidianas",null,null,null,null,null,"Puntuación total ","Interpretación",null,"Descripción Del Dolor",null,null,null,null,null,null,"Actividades Especificas ",null,null,null,null,null,null,null,null,null,null,null,null,null,"Actividades Cotidianas",null,null,null,"Puntuación",null,"Puntuación total ","Interpretación",null,"Dolor",null,null,null,null,null,null,"Función",null,null,null,null,null,null,null,null,null,"Puntuación total","Calificación",null,"La capacidad de vencer una resistencia externa o reaccionar contra la misma mediante una tensión muscular. ",null,null,null,null,null,null,null,null,null,null,null,null,"Capacidad del individuo para aprovechar las posibilidades de movimiento de las articulaciones de la manera más optima posible"]
[null,null,null,null,null,null,"Describa el promedio de dolor de muñeca en la última semana remarcando el número que mejor describa su dolor en una escala del 0 al 10. El cero (0) significa ausencia total del dolor y el diez (10) significa el peor dolor que usted haya experimentado o que no puede realizar la actividad a causa del dolor",null,null,null,null,"Puntuación ",null,"Describa el grado de dificultad que experimento al realizar cada una de las actividades listadas debajo durante la\núltima semana, marcando el número del 0 al 10 que mejor describa su situación. Cero (0) significa que no\nexperimenta ninguna dificultad y diez (10) significa que no puede realizar la actividad de ninguna manera",null,null,null,null,null,"Describa el grado de dificultad que experimento durante la última semana al realizar cada una de las actividades listadas a continuación, marcando el número de 0 al 10 que mejor describa su situación. Por “actividades cotidianas” entendemos las actividades que usted realizaba antes de padecer su problema de muñeca. Cero (0) significa que no experimenta ninguna dificultad y diez (10) significa que no puede realizar la actividad de ninguna manera.",null,null,null,"Puntuación",null,null,null,null,"Describa el promedio de dolor de codo en la última semana remarcando el número que mejor describa su dolor en una escala del 0 al 10. El cero (0) significa ausencia total del dolor y el diez (10) significa el peor dolor que usted haya experimentado o que no puede realizar la actividad a causa del dolor",null,null,null,null,"Puntuación ",null,"Describa el grado de dificultad que experimento al realizar cada una de las actividades listadas debajo durante la última semana, marcando el número del 0 al 10 que mejor describa su situación. Cero (0) significa que no experimenta ninguna dificultad y diez (10) significa que no puede realizar la actividad de ninguna manera",null,null,null,null,null,null,null,null,null,null,null,null,null,"Describa el grado de dificultad que experimento durante la última semana al realizar cada una de las actividades listadas a continuación, marcando el número de 0 al 10 que mejor describa su situación. Por “actividades cotidianas” entendemos las actividades que usted realizaba antes de padecer su problema de codo. Cero (0) significa que no experimenta ninguna dificultad y diez (10) significa que no puede realizar la actividad de ninguna manera.",null,null,null,null,null,null,null,null,"Describa el promedio de dolor de hombro en la última semana remarcando el número que mejor describa su dolor en una escala del 0 al 10. El cero (0) significa ausencia total del dolor y el diez (10) significa el peor dolor que usted haya experimentado o que no puede realizar la actividad a causa del dolor",null,null,null,null,"Puntuación",null,"Describa el grado de dificultad que experimento al realizar cada una de las actividades listadas debajo durante la\núltima semana, marcando el número del 0 al 10 que mejor describa su situación. Cero (0) significa que no\nexperimenta ninguna dificultad y diez (10) significa que no puede realizar la actividad de ninguna manera",null,null,null,null,null,null,null,"Puntuación",null,null,null,null,"Nª de Flexiones según la edad\nMUJER",null,null,null,null,"Nª de Flexiones según la edad\nHOMBRE",null,null,null,null,"Nª de Flexiones Ejecutadas","Calificación",null,"Alcance posterior de manos","Calificación"]
[null,null,null,null,null,null,"En reposo","Al realizar una tarea que implica un\nmovimiento repetitivo de muñeca","Al levantar un objeto pesado","Cuando el dolor está en su peor momento","¿Qué tan seguido experimenta dolor?",null,null,"Al dar vuelta la manija de la puerta","Al cortar carne con un cuchillo con la mano\nafectada","Al abrocharse una camisa","Al levantarse de una silla con la mano afectada","Al cargar 5 kg con la mano afectada\n","Al usar papel higiénico con la mano afectada","Actividades de cuidado personal (vestirse,\nlavarse)","Tareas del hogar (tareas de limpieza)\n","Trabajo (su trabajo habitual)","Actividades de tiempo libre\n",null,null,null,null,null,"En reposo","Al realizar una tarea que implica un\nmovimiento repetitivo del codo","Al levantar un objeto pesado","Cuando el dolor está en su peor momento","¿Qué tan seguido experimenta dolor?",null,null,"Al peinarse","Al comer con tenedor o cuchara","Al tirar un objeto pesado ","Al levantarse de una silla con la mano afectada","Al cargar 5 kg con la mano afectada\n","Al usar papel higiénico con la mano afectada","Al utilizar el brazo para levantarse de una silla","Al  llevar un objeto de 10 libras con el brazo afectado","Al lanzar un objeto pequeño, como una pelota de tenis","Al utilizar un teléfono","Haga hasta botones en la parte delantera de mi camisa\n","Al lavar mi hombro opuesta","Al atarse los  zapatos","Al girar en pomo la puerta y al abrir una puerta","Actividades de cuidado personal (vestirse,\nlavarse)","Tareas del hogar (tareas de limpieza)\n","Trabajo (su trabajo habitual)","Actividades de tiempo libre",null,null,null,null,null,"En su peor momento?","Cuando esta tumbado en el lado afectado?","Para llegar a algo en un estante alto?","Al tocar la parte posterior de su cuello?","Al empujar con el brazo afectado?",null,null,"Al lavarse el pelo?","El lavado de la espalda?","Ponerse en una camiseta?","Abotonarse la camisa?","El ponerse los pantalones?","La colocación de un objeto en un estante alto?","Llevar un objeto pesado de 10 libras (4,5 kilogramos)?","Extraer algo de su bolsillo trasero?",null,null,null,null,null,"Excelente","Bien","Promedio","Regular","Pobre","Excelente","Bien","Promedio","Regular","Pobre"]
[{"$f":"'CONDICION DE SALUD INICIAL'!A8","v":0},{"$f":"'CONDICION DE SALUD INICIAL'!B8","v":0},{"$f":"'CONDICION DE SALUD INICIAL'!C8","v":0},{"$f":"'CONDICION DE SALUD INICIAL'!D8","v":0},{"$f":"'CONDICION DE SALUD INICIAL'!H8","v":0},null,0,0,0,0,0,{"$f":"SUM(G8:K8)*0.01","v":0},null,0,0,0,0,0,0,0,0,0,0,{"$f":"SUM(N8:W8)/2*0.01","v":0},null,{"$f":"SUM(L8,X8)","v":0},{"$f":"IF(Z8=0,\"\",(IF(Z8<20%,\"Limitación funcional mínima\",IF(Z8<=65%,\"Limitación funcional moderada\",IF(Z8>65%,\"Limitación funcional alta\",)))))","v":""},null,0,0,0,0,0,{"$f":"SUM(AC8:AG8)*0.01","v":0},null,0,0,0,0,0,0,0,0,0,0,0,0,0,0,0,0,0,0,{"$f":"SUM(AJ8:BA8)/3.6*0.01","v":0},null,{"$f":"SUM(AH8,BB8)","v":0},{"$f":"IF(BD8=0,\"\",IF(BD8<20%,\"Limitación funcional mínima\",IF(BD8<=65%,\"Limitación funcional moderada\",IF(BD8>65%,\"Limitación funcional alta\",))))","v":""},null,0,0,0,0,0,{"$f":"SUM(BG8:BK8)*0.01","v":0},null,0,0,0,0,0,0,0,0,{"$f":"SUM(BN8:BU8)/1.6*0.01","v":0},null,{"$f":"SUM(BL8,BV8)","v":0},{"$f":"IF(BX8=0%,\"\",(IF(BX8<20%,\"Limitación funcional mínima\",IF(BX8<=65%,\"Limitación funcional moderada\",IF(BX8>65%,\"Limitación funcional alta\",)))))","v":""},null,{"$f":"IF(E8<=29,\">48\",IF(E8<=39,\">39\",IF(E8<=49,\">34\",IF(E8<=59,\">29\",IF(E8>=60,\">19\",)))))","v":">48"},{"$f":"IF(E8<=29,\"34-48\",IF(E8<=39,\"25-39\",IF(E8<=49,\"20-34\",IF(E8<=59,\"15-29\",IF(E8>=60,\"5-19\",)))))","v":"34-48"},{"$f":"IF(E8<=29,\"17-33\",IF(E8<=39,\"12-24\",IF(E8<=49,\"8-19\",IF(E8<=59,\"6-14\",IF(E8>=60,\"3-4\",)))))","v":"17-33"},{"$f":"IF(E8<=29,\"6-16\",IF(E8<=39,\"4-11\",IF(E8<=49,\"3-7\",IF(E8<=59,\"2-5\",IF(E8>=60,\"1-2\",)))))","v":"6-16"},{"$f":"IF(E8<=29,\"<6\",IF(E8<=39,\"<4\",IF(E8<=49,\"<3\",IF(E8<=59,\"<2\",IF(E8>=60,\"<1\",)))))","v":"<6"},{"$f":"IF(E8<=29,\">54\",IF(E8<=39,\">44\",IF(E8<=49,\">39\",IF(E8<=59,\">24\",IF(E8>=60,\">29\",)))))","v":">54"},{"$f":"IF(E8<=29,\"45-54\",IF(E8<=39,\"35-44\",IF(E8<=49,\"30-39\",IF(E8<=59,\"25-34\",IF(E8>=60,\"20-29\",)))))","v":"45-54"},{"$f":"IF(E8<=29,\"35-44\",IF(E8<=39,\"25-34\",IF(E8<=49,\"20-29\",IF(E8<=59,\"15-24\",IF(E8>=60,\"10-19\",)))))","v":"35-44"},{"$f":"IF(E8<=29,\"20-34\",IF(E8<=39,\"15-24\",IF(E8<=49,\"12-19\",IF(E8<=59,\"8-14\",IF(E8>=60,\"5-9\",)))))","v":"20-34"},{"$f":"IF(E8<=29,\"<20\",IF(E8<=39,\"<15\",IF(E8<=49,\"<12\",IF(E8<=59,\"<8\",IF(E8>=60,\"<5\",)))))","v":"<20"},null,"Pobre",null,"No se logra el contacto entre las manos",{"$f":"IF(CN8=\"Se sobreponen las manos\",\"Buena\",IF(CN8=\"Entran en contacto puntas de los dedos medios\",\"Regular\",IF(CN8=\"No se logra el contacto entre las manos\",\"Mala\",)))","v":"Mala"}]
[{"$f":"'CONDICION DE SALUD INICIAL'!A9","v":0},{"$f":"'CONDICION DE SALUD INICIAL'!B9","v":0},{"$f":"'CONDICION DE SALUD INICIAL'!C9","v":0},{"$f":"'CONDICION DE SALUD INICIAL'!D9","v":0},{"$f":"'CONDICION DE SALUD INICIAL'!H9","v":0},null,7,5,7,7,6,{"$f":"SUM(G9:K9)*0.01","v":0.32},null,5,6,6,7,8,8,6,6,6,6,{"$f":"SUM(N9:W9)/2*0.01","v":0.32},null,{"$f":"SUM(L9,X9)","v":0.64},{"$f":"IF(Z9=0,\"\",(IF(Z9<20%,\"Limitación funcional mínima\",IF(Z9<=65%,\"Limitación funcional moderada\",IF(Z9>65%,\"Limitación funcional alta\",)))))","v":"Limitación funcional moderada"},null,7,6,6,7,6,{"$f":"SUM(AC9:AG9)*0.01","v":0.32},null,5,5,5,7,7,5,5,5,5,5,5,5,5,5,5,5,5,5,{"$f":"SUM(AJ9:BA9)/3.6*0.01","v":0.26111111111111113},null,{"$f":"SUM(AH9,BB9)","v":0.58111111111111113},{"$f":"IF(BD9=0,\"\",IF(BD9<20%,\"Limitación funcional mínima\",IF(BD9<=65%,\"Limitación funcional moderada\",IF(BD9>65%,\"Limitación funcional alta\",))))","v":"Limitación funcional moderada"},null,8,8,7,6,7,{"$f":"SUM(BG9:BK9)*0.01","v":0.36},null,6,6,6,4,4,7,8,8,{"$f":"SUM(BN9:BU9)/1.6*0.01","v":0.30625000000000002},null,{"$f":"SUM(BL9,BV9)","v":0.66625000000000001},{"$f":"IF(BX9=0%,\"\",(IF(BX9<20%,\"Limitación funcional mínima\",IF(BX9<=65%,\"Limitación funcional moderada\",IF(BX9>65%,\"Limitación funcional alta\",)))))","v":"Limitación funcional alta"},null,">48","34-48","17-33","6-16","<6",">54","45-54","35-44","20-34","<20",null,null,null,null,0]
[{"$f":"'CONDICION DE SALUD INICIAL'!A10","v":0},{"$f":"'CONDICION DE SALUD INICIAL'!B10","v":0},{"$f":"'CONDICION DE SALUD INICIAL'!C10","v":0},{"$f":"'CONDICION DE SALUD INICIAL'!D10","v":0},{"$f":"'CONDICION DE SALUD INICIAL'!H10","v":0},null,0,3,3,5,3,0.14000000000000001,null,0,2,0,0,2,0,0,0,1,0,2.5000000000000001E-2,null,0.16500000000000001,"Limitación funcional mínima",null,0,0,0,0,0,0,null,0,0,0,0,0,0,0,0,0,0,0,0,0,0,0,0,0,0,0,null,0,"",null,0,0,0,0,0,0,null,0,0,0,0,0,0,0,0,0,null,0,"",null,">48","34-48","17-33","6-16","<6",">54","45-54","35-44","20-34","<20",null,null,null,"Entran en contacto puntas de los dedos medios","Regular"]
[{"$f":"'CONDICION DE SALUD INICIAL'!A11","v":0},{"$f":"'CONDICION DE SALUD INICIAL'!B11","v":0},{"$f":"'CONDICION DE SALUD INICIAL'!C11","v":0},{"$f":"'CONDICION DE SALUD INICIAL'!D11","v":0},{"$f":"'CONDICION DE SALUD INICIAL'!H11","v":0},null,6,9,9,9,9,0.42,null,8,9,8,9,9,8,0,9,10,8,0.39,null,0.81,"Limitación funcional alta",null,7,9,10,10,9,0.45,null,6,5,10,10,9,7,9,10,9,6,6,8,8,8,6,9,9,8,0.3972222222222222,null,0.84722222222222221,"Limitación funcional alta",null,9,9,10,9,9,0.46,null,8,9,8,7,7,10,10,9,0.42499999999999999,null,0.88500000000000001,"Limitación funcional alta",null,">48","34-48","17-33","6-16","<6",">54","45-54","35-44","20-34","<20",null,null,null,"No se logra el contacto entre las manos","Mala"]
[{"$f":"'CONDICION DE SALUD INICIAL'!A12","v":0},{"$f":"'CONDICION DE SALUD INICIAL'!B12","v":0},{"$f":"'CONDICION DE SALUD INICIAL'!C12","v":0},{"$f":"'CONDICION DE SALUD INICIAL'!D12","v":0},{"$f":"'CONDICION DE SALUD INICIAL'!H12","v":0},null,0,0,0,0,0,0,null,0,0,0,0,0,0,0,0,0,0,0,null,0,"",null,0,0,0,0,0,0,null,0,0,0,0,0,0,0,0,0,0,0,0,0,0,0,0,0,0,0,null,0,"",null,0,0,0,0,0,0,null,0,0,0,0,0,0,0,0,0,null,0,"",null,">48","34-48","17-33","6-16","<6",">54","45-54","35-44","20-34","<20",30,"Bien",null,"Se sobreponen las manos","Buena"]
[{"$f":"'CONDICION DE SALUD INICIAL'!A13","v":0},{"$f":"'CONDICION DE SALUD INICIAL'!B13","v":0},{"$f":"'CONDICION DE SALUD INICIAL'!C13","v":0},{"$f":"'CONDICION DE SALUD INICIAL'!D13","v":0},{"$f":"'CONDICION DE SALUD INICIAL'!H13","v":0},null,0,0,0,0,0,{"$f":"SUM(G13:K13)*0.01","v":0},null,0,0,0,0,0,0,0,0,0,0,0,null,{"$f":"SUM(L13,X13)","v":0},"",null,0,0,0,0,0,{"$f":"SUM(AC13:AG13)*0.01","v":0},null,0,0,0,0,0,0,0,0,0,0,0,0,0,0,0,0,0,0,0,null,{"$f":"SUM(AH13,BB13)","v":0},"",null,0,0,0,0,0,0,null,0,0,0,0,0,0,0,0,0,null,0,"",null,">48","34-48","17-33","6-16","<6",">54","45-54","35-44","20-34","<20",null,null,null,"No se logra el contacto entre las manos","Mala"]
[{"$f":"'CONDICION DE SALUD INICIAL'!A14","v":0},{"$f":"'CONDICION DE SALUD INICIAL'!B14","v":0},{"$f":"'CONDICION DE SALUD INICIAL'!C14","v":0},{"$f":"'CONDICION DE SALUD INICIAL'!D14","v":0},{"$f":"'CONDICION DE SALUD INICIAL'!H14","v":0},null,0,3,3,5,3,0.14000000000000001,null,2,2,1,2,1,0,0,1,2,0,5.5E-2,null,0.19500000000000001,"Limitación funcional mínima",null,0,0,1,0,0,0.01,null,0,1,2,3,1,0,2,2,0,0,0,0,1,1,0,1,2,0,4.4444444444444446E-2,null,5.4444444444444448E-2,"Limitación funcional mínima",null,0,1,1,1,0,0.03,null,0,1,0,0,0,1,1,0,1.8749999999999999E-2,null,4.8750000000000002E-2,"Limitación funcional mínima",null,">48","34-48","17-33","6-16","<6",">54","45-54","35-44","20-34","<20",null,null,null,null,0]
[{"$f":"'CONDICION DE SALUD INICIAL'!A15","v":0},{"$f":"'CONDICION DE SALUD INICIAL'!B15","v":0},{"$f":"'CONDICION DE SALUD INICIAL'!C15","v":0},{"$f":"'CONDICION DE SALUD INICIAL'!D15","v":0},{"$f":"'CONDICION DE SALUD INICIAL'!H15","v":0},null,10,10,10,10,10,0.5,null,9,9,9,9,9,9,8,9,10,10,0.45500000000000002,null,0.95500000000000007,"Limitación funcional alta",null,9,9,9,10,10,0.47000000000000003,null,9,9,10,9,10,9,9,9,10,10,10,10,10,10,9,9,9,9,0.47222222222222221,null,0.94222222222222229,"Limitación funcional alta",null,9,9,9,9,9,0.45,null,9,9,9,9,9,9,9,9,0.45,null,0.9,"Limitación funcional alta",null,">48","34-48","17-33","6-16","<6",">54","45-54","35-44","20-34","<20",null,null,null,"Entran en contacto puntas de los dedos medios","Regular"]
[{"$f":"'CONDICION DE SALUD INICIAL'!A16","v":0},{"$f":"'CONDICION DE SALUD INICIAL'!B16","v":0},{"$f":"'CONDICION DE SALUD INICIAL'!C16","v":0},{"$f":"'CONDICION DE SALUD INICIAL'!D16","v":0},{"$f":"'CONDICION DE SALUD INICIAL'!H16","v":0},null,2,6,5,8,8,0.28999999999999998,null,3,5,2,5,4,4,3,7,7,5,0.22500000000000001,null,0.51500000000000001,"Limitación funcional moderada",null,1,5,3,7,5,0.21,null,3,3,7,5,6,3,2,6,4,4,3,2,2,2,2,7,7,5,0.20277777777777778,null,0.4127777777777778,"Limitación funcional moderada",null,8,6,8,5,5,0.32,null,2,5,3,1,2,6,7,4,0.1875,null,0.50750000000000006,"Limitación funcional moderada",null,">48","34-48","17-33","6-16","<6",">54","45-54","35-44","20-34","<20",null,null,null,"Entran en contacto puntas de los dedos medios","Regular"]
[{"$f":"'CONDICION DE SALUD INICIAL'!A17","v":0},{"$f":"'CONDICION DE SALUD INICIAL'!B17","v":0},{"$f":"'CONDICION DE SALUD INICIAL'!C17","v":0},{"$f":"'CONDICION DE SALUD INICIAL'!D17","v":0},{"$f":"'CONDICION DE SALUD INICIAL'!H17","v":0},null,5,7,8,9,8,0.37,null,2,3,2,7,9,3,3,5,8,4,0.23,null,0.6,"Limitación funcional moderada",null,2,5,8,9,6,0.3,null,6,4,8,5,8,3,5,8,6,4,3,8,5,6,2,3,7,2,0.2583333333333333,null,0.55833333333333335,"Limitación funcional moderada",null,7,5,3,3,5,0.23,null,4,4,2,2,2,2,7,3,0.16250000000000001,null,0.39250000000000002,"Limitación funcional moderada",null,">48","34-48","17-33","6-16","<6",">54","45-54","35-44","20-34","<20",null,null,null,"No se logra el contacto entre las manos","Mala"]
[{"$f":"'CONDICION DE SALUD INICIAL'!A18","v":0},{"$f":"'CONDICION DE SALUD INICIAL'!B18","v":0},{"$f":"'CONDICION DE SALUD INICIAL'!C18","v":0},{"$f":"'CONDICION DE SALUD INICIAL'!D18","v":0},{"$f":"'CONDICION DE SALUD INICIAL'!H18","v":0},null,5,7,8,8,6,0.34,null,1,3,1,2,7,2,1,6,3,3,0.14499999999999999,null,0.48499999999999999,"Limitación funcional moderada",null,4,7,7,8,3,0.28999999999999998,null,4,0,7,2,7,0,1,6,2,1,1,4,0,3,0,6,3,2,0.1361111111111111,null,0.42611111111111111,"Limitación funcional moderada",null,8,6,5,2,6,0.27,null,3,1,0,0,0,4,6,0,8.7500000000000008E-2,null,0.35750000000000004,"Limitación funcional moderada",null,">48","34-48","17-33","6-16","<6",">54","45-54","35-44","20-34","<20",null,null,null,null,0]
[{"$f":"'CONDICION DE SALUD INICIAL'!A19","v":0},{"$f":"'CONDICION DE SALUD INICIAL'!B19","v":0},{"$f":"'CONDICION DE SALUD INICIAL'!C19","v":0},{"$f":"'CONDICION DE SALUD INICIAL'!D19","v":0},{"$f":"'CONDICION DE SALUD INICIAL'!H19","v":0},null,6,9,9,10,7,0.41000000000000003,null,2,4,3,5,5,5,4,7,4,4,0.215,null,0.625,"Limitación funcional moderada",null,5,7,7,9,7,0.35000000000000003,null,5,3,7,5,7,5,7,8,7,7,5,8,4,6,5,6,6,5,0.29444444444444445,null,0.64444444444444449,"Limitación funcional moderada",null,8,9,8,8,8,0.41000000000000003,null,6,8,6,6,6,8,6,5,0.31875000000000003,null,0.72875000000000001,"Limitación funcional alta",null,">48","34-48","17-33","6-16","<6",">54","45-54","35-44","20-34","<20",null,null,null,null,0]
[{"$f":"'CONDICION DE SALUD INICIAL'!A20","v":0},{"$f":"'CONDICION DE SALUD INICIAL'!B20","v":0},{"$f":"'CONDICION DE SALUD INICIAL'!C20","v":0},{"$f":"'CONDICION DE SALUD INICIAL'!D20","v":0},{"$f":"'CONDICION DE SALUD INICIAL'!H20","v":0},null,0,4,4,4,3,0.15,null,0,3,0,0,3,0,0,3,3,0,0.06,null,0.21,"Limitación funcional moderada",null,0,3,3,4,3,0.13,null,0,0,3,0,3,0,0,3,0,0,0,0,0,0,0,3,0,0,3.3333333333333333E-2,null,0.16333333333333333,"Limitación funcional mínima",null,4,4,3,1,4,0.16,null,0,0,0,0,0,4,4,0,0.05,null,0.21000000000000002,"Limitación funcional moderada",null,">48","34-48","17-33","6-16","<6",">54","45-54","35-44","20-34","<20",null,null,null,"No se logra el contacto entre las manos","Mala"]
[{"$f":"'CONDICION DE SALUD INICIAL'!A21","v":0},{"$f":"'CONDICION DE SALUD INICIAL'!B21","v":0},{"$f":"'CONDICION DE SALUD INICIAL'!C21","v":0},{"$f":"'CONDICION DE SALUD INICIAL'!D21","v":0},{"$f":"'CONDICION DE SALUD INICIAL'!H21","v":0},null,4,7,9,10,8,{"$f":"SUM(G21:K21)*0.01","v":0.38},null,7,7,6,4,10,6,5,7,5,5,0.31,null,{"$f":"SUM(L21,X21)","v":0.69},"Limitación funcional alta",null,4,6,9,10,8,{"$f":"SUM(AC21:AG21)*0.01","v":0.37},null,5,5,8,7,10,3,6,null,7,4,4,8,6,6,4,8,7,7,0.29166666666666663,null,{"$f":"SUM(AH21,BB21)","v":0.66166666666666663},"Limitación funcional alta",null,9,9,9,8,8,0.43,null,8,9,8,5,7,9,10,6,0.38750000000000001,null,0.8175,"Limitación funcional alta",null,">48","34-48","17-33","6-16","<6",">54","45-54","35-44","20-34","<20",14,"Regular",null,"No se logra el contacto entre las manos","Mala"]
[{"$f":"'CONDICION DE SALUD INICIAL'!A22","v":0},{"$f":"'CONDICION DE SALUD INICIAL'!B22","v":0},{"$f":"'CONDICION DE SALUD INICIAL'!C22","v":0},{"$f":"'CONDICION DE SALUD INICIAL'!D22","v":0},{"$f":"'CONDICION DE SALUD INICIAL'!H22","v":0},null,0,1,0,4,1,0.06,null,0,0,0,0,0,0,0,0,0,0,0,null,0.06,"Limitación funcional mínima",null,0,0,0,0,0,0,null,4,0,4,0,0,0,0,0,0,0,0,0,0,0,0,0,0,0,2.2222222222222223E-2,null,2.2222222222222223E-2,"Limitación funcional mínima",null,0,0,0,0,0,0,null,0,0,0,0,0,0,0,0,0,null,0,"",null,">48","34-48","17-33","6-16","<6",">54","45-54","35-44","20-34","<20",null,null,null,null,0]
[{"$f":"'CONDICION DE SALUD INICIAL'!A23","v":0},{"$f":"'CONDICION DE SALUD INICIAL'!B23","v":0},{"$f":"'CONDICION DE SALUD INICIAL'!C23","v":0},{"$f":"'CONDICION DE SALUD INICIAL'!D23","v":0},{"$f":"'CONDICION DE SALUD INICIAL'!H23","v":0},null,5,6,0,0,0,0.11,null,0,0,0,0,0,0,0,10,6,0,0.08,null,0.19,"Limitación funcional mínima",null,0,0,0,0,0,0,null,0,0,0,0,0,0,0,0,0,0,0,0,0,0,0,10,0,0,2.7777777777777776E-2,null,2.7777777777777776E-2,"Limitación funcional mínima",null,10,9,10,9,10,0.48,null,8,8,9,0,8,8,10,0,0.31875000000000003,null,0.79875000000000007,"Limitación funcional alta",null,">48","34-48","17-33","6-16","<6",">54","45-54","35-44","20-34","<20",0,"pobre",null,"No se logra el contacto entre las manos","Mala"]
[{"$f":"'CONDICION DE SALUD INICIAL'!A24","v":0},{"$f":"'CONDICION DE SALUD INICIAL'!B24","v":0},{"$f":"'CONDICION DE SALUD INICIAL'!C24","v":0},{"$f":"'CONDICION DE SALUD INICIAL'!D24","v":0},{"$f":"'CONDICION DE SALUD INICIAL'!H24","v":0},null,null,null,null,null,null,0,null,null,null,null,null,null,null,null,null,null,null,0,null,0,"",null,null,null,null,null,null,0,null,null,null,null,null,null,null,null,null,null,null,null,null,null,null,null,null,null,null,0,null,0,"",null,null,null,null,null,null,0,null,null,null,null,null,null,null,null,null,0,null,0,"",null,">48","34-48","17-33","6-16","<6",">54","45-54","35-44","20-34","<20",null,null,null,null,0]
[{"$f":"'CONDICION DE SALUD INICIAL'!A25","v":0},{"$f":"'CONDICION DE SALUD INICIAL'!B25","v":0},{"$f":"'CONDICION DE SALUD INICIAL'!C25","v":0},{"$f":"'CONDICION DE SALUD INICIAL'!D25","v":0},{"$f":"'CONDICION DE SALUD INICIAL'!H25","v":0},null,null,null,null,null,null,{"$f":"SUM(G25:K25)*0.01","v":0},null,null,null,null,null,null,null,null,null,null,null,0,null,{"$f":"SUM(L25,X25)","v":0},"",null,null,null,null,null,null,{"$f":"SUM(AC25:AG25)*0.01","v":0},null,null,null,null,null,null,null,null,null,null,null,null,null,null,null,null,null,null,null,0,null,{"$f":"SUM(AH25,BB25)","v":0},"",null,null,null,null,null,null,0,null,null,null,null,null,null,null,null,null,0,null,0,"",null,">48","34-48","17-33","6-16","<6",">54","45-54","35-44","20-34","<20",null,null,null,null,0]
[{"$f":"'CONDICION DE SALUD INICIAL'!A26","v":0},{"$f":"'CONDICION DE SALUD INICIAL'!B26","v":0},{"$f":"'CONDICION DE SALUD INICIAL'!C26","v":0},{"$f":"'CONDICION DE SALUD INICIAL'!D26","v":0},{"$f":"'CONDICION DE SALUD INICIAL'!H26","v":0},null,null,null,null,null,null,0,null,null,null,null,null,null,null,null,null,null,null,0,null,0,"",null,null,null,null,null,null,0,null,null,null,null,null,null,null,null,null,null,null,null,null,null,null,null,null,null,null,0,null,0,"",null,null,null,null,null,null,0,null,null,null,null,null,null,null,null,null,0,null,0,"",null,">48","34-48","17-33","6-16","<6",">54","45-54","35-44","20-34","<20",null,null,null,null,0]
[{"$f":"'CONDICION DE SALUD INICIAL'!A27","v":0},{"$f":"'CONDICION DE SALUD INICIAL'!B27","v":0},{"$f":"'CONDICION DE SALUD INICIAL'!C27","v":0},{"$f":"'CONDICION DE SALUD INICIAL'!D27","v":0},{"$f":"'CONDICION DE SALUD INICIAL'!H27","v":0},null,null,null,null,null,null,0,null,null,null,null,null,null,null,null,null,null,null,0,null,0,"",null,null,null,null,null,null,0,null,null,null,null,null,null,null,null,null,null,null,null,null,null,null,null,null,null,null,0,null,0,"",null,null,null,null,null,null,0,null,null,null,null,null,null,null,null,null,0,null,0,"",null,">48","34-48","17-33","6-16","<6",">54","45-54","35-44","20-34","<20",null,null,null,null,0]
[null,null,null,null,null,null,null,null,null,null,null,null,null,null,null,null,null,null,null,null,null,null,null,null,null,null,null,null,null,null,null,null,null,null,null,null,null,null,null,null,null,null,null,null,null,null,null,null,null,null,null,null,null,null,null,null,null,null,null,null,null,null,null,"suma total de dolor/ 50 x 100 = %",null,null,null,null,null,null,null,null,null,"Puntuación total de discapacidad: / 80 x 100 =%",null,"Puntuación total:  suma dolor y dicapacidad / 130 x 100 =%"]

{"sheet":"CAPACIDAD FUNC COLUMNA INICIAL","index":3,"n_rows":44,"n_cols":65,"rows_kept":44,"cut":false,"hidden":false,"merged":[[3,64,7,64],[3,0,7,0],[3,1,7,1],[5,6,7,6],[5,7,7,7],[4,6,4,27],[5,19,7,19],[5,20,7,20],[5,25,7,25],[5,26,7,26],[3,6,3,27],[5,24,7,24],[5,10,7,10],[5,11,7,11],[5,16,7,16],[3,29,3,50],[4,61,4,62],[4,29,6,50],[3,4,7,4],[3,3,7,3],[1,0,1,15],[3,2,7,2],[5,8,7,8],[5,9,7,9],[5,12,7,12],[5,13,7,13],[5,15,7,15],[5,14,7,14],[5,17,7,17],[3,61,3,62],[5,61,7,61],[5,62,7,62],[4,52,4,59],[3,52,3,59],[6,52,6,54],[6,55,6,57],[5,27,7,27],[6,59,7,59],[5,22,7,22],[5,23,7,23],[5,21,7,21],[5,18,7,18],[6,58,7,58],[5,52,5,59]]}
[]
["Base de Datos Intervención Terapeútica\nEvaluación capacidad funcional columna - Inicial"]
[]
["Nº","Empresa","Apellidos","Nombres","Edad",null,"INDICE DE DISCAPACIDAD EN COLUMNA CERVICAL - INICIAL",null,null,null,null,null,null,null,null,null,null,null,null,null,null,null,null,null,null,null,null,null,null,"FUNCIONALIDAD (ESCALA DE LIMITACIÓN FUNCIONAL POR DOLOR LUMBAR DE OSWESTRY) - INICIAL",null,null,null,null,null,null,null,null,null,null,null,null,null,null,null,null,null,null,null,null,null,null,"FUERZA - INICIAL",null,null,null,null,null,null,null,null,"FLEXIBILIDAD - INICIAL",null,null,"Observaciones"]
[null,null,null,null,null,null,"Este cuestionario ha sido diseñado para darnos información sobre cómo su dolor de cuello ha afectado su capacidad de manejar en la vida cotidiana. Por favor, conteste cada sección y marca en cada sección sólo el cuadro que se aplica a su caso.",null,null,null,null,null,null,null,null,null,null,null,null,null,null,null,null,null,null,null,null,null,null,"Este cuestionario ha sido diseñado para dar la información de cuanto y  cómo el dolor de espalda ha afectado la capacidad para realizar actividades en la vida diaria. ",null,null,null,null,null,null,null,null,null,null,null,null,null,null,null,null,null,null,null,null,null,null,"La capacidad de vencer una resistencia externa o reaccionar contra la misma mediante una tensión muscular. ",null,null,null,null,null,null,null,null,"Capacidad del individuo para aprovechar las posibilidades de movimiento de las articulaciones de la manera más optimas posible"]
[null,null,null,null,null,null,"Intensidad del Dolor","Calificación","Cuidado Personal (lavarse, vestirse, etc.)","Calificación","Levantar pesos ","Calificación","Lectura","Calificación","Dolor de cabeza","Calificación","Concentrarse en algo","Calificación","Trabajo","Calificación","Conducción de vehículos","Calificación","Sueño","Calificación","Actividades de ocio","Calificación","Calificación Total","Interpretación",null,null,null,null,null,null,null,null,null,null,null,null,null,null,null,null,null,null,null,null,null,null,null,null,"Prueba de puente en prono",null,null,null,null,null,null,null,null,"Prueba de flexión de tronco en V","Interpretación"]
[null,null,null,null,null,null,null,null,null,null,null,null,null,null,null,null,null,null,null,null,null,null,null,null,null,null,null,null,null,null,null,null,null,null,null,null,null,null,null,null,null,null,null,null,null,null,null,null,null,null,null,null,"Mujer",null,null,"Hombre",null,null,"Resultado de la prueba (min)","Interpretación de la prueba"]
[null,null,null,null,null,null,null,null,null,null,null,null,null,null,null,null,null,null,null,null,null,null,null,null,null,null,null,null,null,"Intensidad del dolor ","Calificación","Cuidados personales (lavarse, vestirse, etc)","Calificación","Levatar peso","Calificación","Andar","Calificación","Estar sentado","Calificación","Estar de pie ","Calificación","Dormir","Calificación","Actividad Sexual","Calificación","Vida social ","Calificación","Viajar","Calificación","Calificación ODI","Interpretación",null,"Excelente","Satisfactorio","Necesita mejorar","Excelente","Satisfactorio","Necesita mejorar"]
[{"$f":"'CONDICION DE SALUD INICIAL'!A8","v":0},{"$f":"'CONDICION DE SALUD INICIAL'!B8","v":0},{"$f":"'CONDICION DE SALUD INICIAL'!C8","v":0},{"$f":"'CONDICION DE SALUD INICIAL'!D8","v":0},{"$f":"'CONDICION DE SALUD INICIAL'!H8","v":0},null,"El dolor es muy severo en este momento",{"$f":"IF(G9=\"No tengo dolor en este momento\",\"0\",IF(G9=\"El dolor es muy leve en este momento\",\"1\",IF(G9=\"El dolor es moderado en este momento\",\"2\",IF(G9=\"El dolor es bastante severo en este momento\",\"3\",IF(G9=\"El dolor es muy severo en este momento\",\"4\",IF(G9=\"El dolor es el peor imaginable en este momento\",\"5\",IF(G9=\"\",\"\")))))))","v":"4"},"Cuidarme me duele de forma que tengo que hacerlo despacio y con cuidado",{"$f":"IF(I9=\"Puedo cuidarme con normalidad sin causar dolor adicional\",\"0\",IF(I9=\"Puedo cuidarme con normalidad pero esto me aumenta el dolor\",\"1\",IF(I9=\"Cuidarme me duele de forma que tengo que hacerlo despacio y con cuidado\",\"2\",IF(I9=\"Aunque necesito alguna ayuda me las arreglo para casi todos mis cuidados\",\"3\",IF(I9=\"Todos los días necesito ayuda para la mayor parte de mis cuidados\",\"4\",IF(I9=\"No puedo vestirme, me baño con dificultad y me quedo en la cama\",\"5\",IF(I9=\"\",\"\")))))))","v":"2"},"Solo puedo levantar objetos muy ligeros",{"$f":"IF(K9=\"Puedo levantar objetos pesados sin aumento del dolor\",\"0\",IF(K9=\"Puedo levantar objetos pesados pero me aumenta el dolor\",\"1\",IF(K9=\"El dolor me impide levantar objetos pesados del suelo, pero lo puedo hacer si están colocados en un sitio fácil, como por ejemplo en una mesa\",\"2\",IF(K9=\"El dolor me impide levantar objetos pesados del suelo, pero puedo levantar objetos medianos o ligeros si están colocados en un sitio fácil\",\"3\",IF(K9=\"Solo puedo levantar objetos muy ligeros\",\"4\",IF(K9=\"No puedo levantar ni llevar ningún tipo de objeto\",\"5\",IF(K9=\"\",\"\")))))))","v":"4"},"No puedo leer todo lo que quiero debido a un dolor moderado en el cuello",{"$f":"IF(M9=\"Puedo leer todo lo que quiera sin que me duela el cuello\",\"0\",IF(M9=\"Puedo leer todo lo que quiera con un dolor leve en el cuello\",\"1\",IF(M9=\"Puedo leer todo lo que quiera con un dolor moderado en el cuello\",\"2\",IF(M9=\"No puedo leer todo lo que quiero debido a un dolor moderado en el cuello\",\"3\",IF(M9=\"Apenas puedo leer por el gran dolor que me produce en el cuello\",\"4\",IF(M9=\"No puedo leer nada en absoluto\",\"5\",IF(M9=\"\",\"\")))))))","v":"3"},"A veces tengo un dolor moderado de cabeza",{"$f":"IF(O9=\"No tengo ningún dolor de cabeza\",\"0\",IF(O9=\"A veces tengo un pequeño dolor de cabeza\",\"1\",IF(O9=\"A veces tengo un dolor moderado de cabeza\",\"2\",IF(O9=\"Con frecuencia tengo un dolor moderado de cabeza\",\"3\",IF(O9=\"Con frecuencia tengo un dolor fuerte de cabeza\",\"4\",IF(O9=\"Tengo dolor de cabeza casi continuo\",\"5\",IF(O9=\"\",\"\")))))))","v":"2"},"No puedo concentrarme nunca",{"$f":"IF(Q9=\"Me concentro totalmente en algo cuando quiero sin dificultad\",\"0\",IF(Q9=\"Me concentro totalmente en algo cuando quiero con alguna dificultad\",\"1\",IF(Q9=\"Tengo alguna dificultad para concentrarme cuando quiero\",\"2\",IF(Q9=\"Tengo bastante dificultad para concentrarme cuando quiero\",\"3\",IF(Q9=\"Tengo mucha dificultad para concentrarme cuando quiero\",\"4\",IF(Q9=\"No puedo concentrarme nunca\",\"5\",IF(Q9=\"\",\"\")))))))","v":"5"},"Puedo hacer mi trabajo habitual, pero no más",{"$f":"IF(S9=\"Puedo trabajar todo lo que quiero\",\"0\",IF(S9=\"Puedo hacer mi trabajo habitual, pero no más\",\"1\",IF(S9=\"Puedo hacer casi todo mi trabajo habitual, pero no más\",\"2\",IF(S9=\"No puedo hacer mi trabajo habitual\",\"3\",IF(S9=\"A duras penas puedo hacer algún tipo de trabajo\",\"4\",IF(S9=\"No puedo trabajar en nada\",\"5\",IF(S9=\"\",\"\")))))))","v":"1"},"Puedo conducir todo lo que quiero, pero con un ligero dolor en el cuello",{"$f":"IF(U9=\"Puedo conducir sin dolor en el cuello\",\"0\",IF(U9=\"Puedo conducir todo lo que quiero, pero con un ligero dolor en el cuello\",\"1\",IF(U9=\"Puedo conducir todo lo que quiero, pero con un moderado dolor en el cuello\",\"2\",IF(U9=\"No puedo conducir todo lo que quiero debido al dolor de cuello\",\"3\",IF(U9=\"Apenas puedo conducir debido al intenso dolor de cuello\",\"4\",IF(U9=\"No puedo conducir nada por el dolor de cuello\",\"5\",IF(U9=\"\",\"\")))))))","v":"1"},"Pierdo de 5 a 7 horas de sueño cada noche por el dolor de cuello",{"$f":"IF(W9=\"No tengo ningún problema para dormir\",\"0\",IF(W9=\"Pierdo menos de 1 hora de sueño cada noche por el dolor de cuello\",\"1\",IF(W9=\"Pierdo de 1 a 2 horas de sueño cada noche por el dolor de cuello\",\"2\",IF(W9=\"Pierdo de 2 a 3 horas de sueño cada noche por el dolor de cuello\",\"3\",IF(W9=\"Pierdo de 3 a 5 horas de sueño cada noche por el dolor de cuello\",\"4\",IF(W9=\"Pierdo de 5 a 7 horas de sueño cada noche por el dolor de cuello\",\"5\",IF(W9=\"\",\"\")))))))","v":"5"},"No puedo realizar ninguna actividad de ocio",{"$f":"IF(Y9=\"Puedo hacer todas mis actividades de ocio sin dolor de cuello\",\"0\",IF(Y9=\"Puedo hacer todas mis actividades de ocio con algún dolor de cuello\",\"1\",IF(Y9=\"No puedo hacer alguna de mis actividades de ocio por el dolor de cuello\",\"2\",IF(Y9=\"Solo puedo hacer unas pocas actividades de ocio por el dolor de cuello\",\"3\",IF(Y9=\"Apenas puedo hacer las cosas que me gustan debido al dolor de cuello\",\"4\",IF(Y9=\"No puedo realizar ninguna actividad de ocio\",\"5\",IF(Y9=\"\",\"\")))))))","v":"5"},{"$f":"(H9+J9+L9+N9+P9+R9+T9+V9+X9+Z9)/50","v":0.64},{"$f":"IF(AA9=0%,\"\",IF(AA9<=15%,\"Discapacidad mínima\",IF(AA9<=34%,\"Discapacidad moderada\",IF(AA9>=35%,\"Discapacidad máxima\",))))","v":"Discapacidad máxima"},null,"Los calmantes me alivian un poco el dolor",{"$f":"IF(AD9=\"Puedo soportar el dolor sin necesidad de tomar calmantes\",\"0\",IF(AD9=\"El dolor es fuerte pero me arreglo sin tomar calmantes\",\"1\",IF(AD9=\"Los calmantes me alivian completamente el dolor\",\"2\",IF(AD9=\"Los calmantes me alivian un poco el dolor\",\"3\",IF(AD9=\"Los calmantes apenas me alivian el dolor\",\"4\",IF(AD9=\"Los calmantes no me quitan el dolor y no los tomo\",\"5\",IF(AD9=\"\",\"\")))))))","v":"3"},"Me las puedo arreglar solo sin que aumente el dolor",{"$f":"IF(AF9=\"Me las puedo arreglar solo sin que aumente el dolor\",\"0\",IF(AF9=\"Me las puedo arreglar solo pero esto me aumenta el dolor\",\"1\",IF(AF9=\"Lavarme, vestirme, etc., me produce dolor y tengo que hacerlo despacio y con cuidado\",\"2\",IF(AF9=\"Necesito alguna ayuda pero consigo hacer la mayoría de las cosas yo solo\",\"3\",IF(AF9=\"Necesito ayuda para hacer la mayoría de las cosas\",\"4\",IF(AF9=\"No puedo vestirme, me cuesta lavarme, y suelo quedarme en la cama\",\"5\",IF(AF9=\"\",\"\")))))))","v":"0"},"Solo puedo levantar objetos muy ligeros",{"$f":"IF(AH9=\"Puedo levantar objetos pesados sin que me aumente el dolor\",\"0\",IF(AH9=\"Puedo levantar objetos pesados pero me aumenta el dolor\",\"1\",IF(AH9=\"El dolor me impide levantar objetos pesados del suelo, pero puedo hacerlo si están en un sitio cómodo (ej. En una mesa)\",\"2\",IF(AH9=\"El dolor me impide levantar objetos pesados, pero si puedo levantar objetos ligeros o medianos si están en un sitio cómodo\",\"3\",IF(AH9=\"Solo puedo levantar objetos muy ligeros\",\"4\",IF(AH9=\"No puedo levantar ni elevar ningún objeto\",\"5\",IF(AH9=\"\",\"\")))))))","v":"4"},"El dolor me impide andar más de 1 kilómetro",{"$f":"IF(AJ9=\"El dolor no me impide andar\",\"0\",IF(AJ9=\"El dolor me impide andar más de 1 kilómetro\",\"1\",IF(AJ9=\"El dolor me impide andar más de 500 metros\",\"2\",IF(AJ9=\"El dolor me impide andar más de 250 metros\",\"3\",IF(AJ9=\"Sólo puedo andar con bastón o muletas\",\"4\",IF(AJ9=\"Permanezco en la cama casi todo el tiempo y tengo que ir a rastras al baño\",\"5\",IF(AJ9=\"\",\"\")))))))","v":"1"},"El dolor me impide estar sentado más de una hora",{"$f":"IF(AL9=\"Puedo estar sentado en cualquier tipo de silla todo el tiempo que quiera\",\"0\",IF(AL9=\"Puedo estar sentado en mi silla favorita todo el tiempo que quiera\",\"1\",IF(AL9=\"El dolor me impide estar sentado más de una hora\",\"2\",IF(AL9=\"El dolor me impide estar sentado más de media hora\",\"3\",IF(AL9=\"El dolor me impide estar sentado más de diez minutos\",\"4\",IF(AL9=\"El dolor me impide estar sentado\",\"5\",IF(AL9=\"\",\"\")))))))","v":"2"},"El dolor me impide estar de pie más de una hora",{"$f":"IF(AN9=\"Puedo estar de pie tanto tiempo como quiera sin que me aumente el dolor\",\"0\",IF(AN9=\"Puedo estar de pie tanto tiempo como quiera pero me aumenta el dolor\",\"1\",IF(AN9=\"El dolor me impide estar de pie más de una hora\",\"2\",IF(AN9=\"El dolor me impide estar de pie más de media hora\",\"3\",IF(AN9=\"El dolor me impide estar de pie más de diez minutos\",\"4\",IF(AN9=\"El dolor me impide estar de pie\",\"5\",IF(AN9=\"\",\"\")))))))","v":"2"},"El dolor no me impide dormir bien",{"$f":"IF(AP9=\"El dolor no me impide dormir bien\",\"0\",IF(AP9=\"Sólo puedo dormir si tomo pastillas\",\"1\",IF(AP9=\"Incluso tomando pastillas duermo menos de seis horas\",\"2\",IF(AP9=\"Incluso tomando pastillas duermo menos de cuatro horas\",\"3\",IF(AP9=\"Incluso tomando pastillas duermo menos de dos horas\",\"4\",IF(AP9=\"El dolor me impide totalmente dormir\",\"5\",IF(AP9=\"\",\"\")))))))","v":"0"},"Mi actividad sexual es normal pero me aumenta el dolor",{"$f":"IF(AR9=\"Mi actividad sexual es normal y no me aumenta el dolor\",\"0\",IF(AR9=\"Mi actividad sexual es normal pero me aumenta el dolor\",\"1\",IF(AR9=\"Mi actividad sexual es casi normal pero me aumenta mucho el dolor\",\"2\",IF(AR9=\"Mi actividad sexual se ha visto muy limitada a causa del dolor\",\"3\",IF(AR9=\"Mi actividad sexual es casi nula a causa del dolor\",\"4\",IF(AR9=\"El dolor me impide todo tipo de actividad sexual\",\"5\",IF(AR9=\"\",\"\")))))))","v":"1"},"El dolor no tiene un efecto importante en mi vida social, pero impide mis actividades más enérgicas, como bailar, etc",{"$f":"IF(AT9=\"Mi vida social es uy normal y no me aumenta el dolor\",\"0\",IF(AT9=\"Mi vida social es normal, pero me aumenta el dolor\",\"1\",IF(AT9=\"El dolor no tiene un efecto importante en mi vida social, pero impide mis actividades más enérgicas, como bailar, etc\",\"2\",IF(AT9=\"El dolor ha limitado mi vida social y no salgo tan a menudo\",\"3\",IF(AT9=\"El dolor ha limitado mi vida social al hogar\",\"4\",IF(AT9=\"No tengo vida social a causa del dolor\",\"5\",IF(AT9=\"\",\"\")))))))","v":"2"},"El dolor es fuerte, pero aguanto viajes de más de dos horas",{"$f":"IF(AV9=\"Puedo viajar a cualquier sitio sin que aumente el dolor\",\"0\",IF(AV9=\"Puedo viajar a cualquier sitio, pero me aumenta el dolor\",\"1\",IF(AV9=\"El dolor es fuerte, pero aguanto viajes de más de dos horas\",\"2\",IF(AV9=\"El dolor me limita a viajes de menos de una hora\",\"3\",IF(AV9=\"El dolor me limita a viajes cortos y necesarios de menos de media hora\",\"4\",IF(AV9=\"El dolor me impide viajar excepto para ir al médico o al hospital\",\"5\",IF(AV9=\"\",\"\")))))))","v":"2"},{"$f":"(AE9+AG9+AI9+AK9+AM9+AO9+AQ9+AS9+AU9+AW9)*0.02","v":0.34},{"$f":"IF(AX9<20%,\"Limitación funcional mínima\",IF(AX9<40%,\"Limitación funcional moderada\",IF(AX9<60%,\"Discapacidad intensa\",IF(AX9<80%,\"Discapacidad 80%\",IF(AX9>=81%,\"Discapacidad máxima\",IF(AX9=\"\",\"\"))))))","v":"Limitación funcional moderada"},null,"> 2.5 min","1.8-2.2 min","< 1.8 min","> 3 min","2.0-2.5 min","< 2 min","<2min","Necesita Mejorar",null,null,{"$f":"IF(BJ9=\"\",\"\",IF(BJ9=\">0\",\"Buena\",IF(BJ9=0,\"Regular\",IF(BJ9=\"<0\",\"Mala\",))))","v":""}]
[{"$f":"'CONDICION DE SALUD INICIAL'!A9","v":0},{"$f":"'CONDICION DE SALUD INICIAL'!B9","v":0},{"$f":"'CONDICION DE SALUD INICIAL'!C9","v":0},{"$f":"'CONDICION DE SALUD INICIAL'!D9","v":0},{"$f":"'CONDICION DE SALUD INICIAL'!H9","v":0},null,"El dolor es muy leve en este momento","1","Puedo cuidarme con normalidad sin causar dolor adicional","0","Puedo levantar objetos pesados sin aumento del dolor","0","Puedo leer todo lo que quiera con un dolor leve en el cuello","1","No tengo ningún dolor de cabeza","0","Tengo alguna dificultad para concentrarme cuando quiero","2","Puedo trabajar todo lo que quiero","0","Puedo conducir sin dolor en el cuello","0","No tengo ningún problema para dormir","0","Puedo hacer todas mis actividades de ocio sin dolor de cuello","0",0.08,{"$f":"IF(AA10=0%,\"\",IF(AA10<=15%,\"Discapacidad mínima\",IF(AA10<=34%,\"Discapacidad moderada\",IF(AA10>=35%,\"Discapacidad máxima\",))))","v":"Discapacidad mínima"},null,"El dolor es fuerte pero me arreglo sin tomar calmantes","1","Me las puedo arreglar solo pero esto me aumenta el dolor","1","Solo puedo levantar objetos muy ligeros","4","El dolor me impide andar más de 500 metros","2","El dolor me impide estar sentado más de una hora","2","El dolor me impide estar de pie más de diez minutos","4","El dolor no me impide dormir bien","0","Mi actividad sexual se ha visto muy limitada a causa del dolor","3","El dolor ha limitado mi vida social al hogar","4","Puedo viajar a cualquier sitio, pero me aumenta el dolor","1",0.44,"Discapacidad intensa",null,"> 2.5 min","1.8-2.2 min","< 1.8 min","> 3 min","2.0-2.5 min","< 2 min",null,null,null,"<0","Mala"]
[{"$f":"'CONDICION DE SALUD INICIAL'!A10","v":0},{"$f":"'CONDICION DE SALUD INICIAL'!B10","v":0},{"$f":"'CONDICION DE SALUD INICIAL'!C10","v":0},{"$f":"'CONDICION DE SALUD INICIAL'!D10","v":0},{"$f":"'CONDICION DE SALUD INICIAL'!H10","v":0},null,"El dolor es moderado en este momento","2","Aunque necesito alguna ayuda me las arreglo para casi todos mis cuidados","3","El dolor me impide levantar objetos pesados del suelo, pero lo puedo hacer si están colocados en un sitio fácil, como por ejemplo en una mesa","2","Puedo leer todo lo que quiera con un dolor moderado en el cuello","2","A veces tengo un pequeño dolor de cabeza","1","Tengo alguna dificultad para concentrarme cuando quiero","2","Puedo hacer mi trabajo habitual, pero no más","1","Puedo conducir sin dolor en el cuello","0","No tengo ningún problema para dormir","0","No puedo hacer alguna de mis actividades de ocio por el dolor de cuello","2",0.3,"Discapacidad moderada",null,"Puedo soportar el dolor sin necesidad de tomar calmantes","0","Me las puedo arreglar solo sin que aumente el dolor","0","Puedo levantar objetos pesados sin que me aumente el dolor","0","El dolor no me impide andar","0","Puedo estar sentado en mi silla favorita todo el tiempo que quiera","1","Puedo estar de pie tanto tiempo como quiera sin que me aumente el dolor","0","El dolor no me impide dormir bien","0","Mi actividad sexual es normal y no me aumenta el dolor","0","Mi vida social es uy normal y no me aumenta el dolor","0","Puedo viajar a cualquier sitio sin que aumente el dolor","0",0.02,"Limitación funcional mínima",null,"> 2.5 min","1.8-2.2 min","< 1.8 min","> 3 min","2.0-2.5 min","< 2 min","37 segundos","Necesita Mejorar",null,null,""]
[{"$f":"'CONDICION DE SALUD INICIAL'!A11","v":0},{"$f":"'CONDICION DE SALUD INICIAL'!B11","v":0},{"$f":"'CONDICION DE SALUD INICIAL'!C11","v":0},{"$f":"'CONDICION DE SALUD INICIAL'!D11","v":0},{"$f":"'CONDICION DE SALUD INICIAL'!H11","v":0},null,null,"",null,"",null,"",null,"",null,"",null,"",null,"",null,"",null,"",null,"",{"$error":"#VALUE!"},{"$error":"#VALUE!"},null,"Los calmantes no me quitan el dolor y no los tomo","5","No puedo vestirme, me cuesta lavarme, y suelo quedarme en la cama","5","No puedo levantar ni elevar ningún objeto","5","Permanezco en la cama casi todo el tiempo y tengo que ir a rastras al baño","5","El dolor me impide estar sentado","5","El dolor me impide estar de pie","5","Sólo puedo dormir si tomo pastillas","1","Mi actividad sexual es normal y no me aumenta el dolor","0","Mi vida social es normal, pero me aumenta el dolor","1","El dolor me impide viajar excepto para ir al médico o al hospital","5",0.74,"Discapacidad 80%",null,"> 2.5 min","1.8-2.2 min","< 1.8 min","> 3 min","2.0-2.5 min","< 2 min","1 min y 7 segundos","Necesita Mejorar",null,0,"Regular"]
[{"$f":"'CONDICION DE SALUD INICIAL'!A12","v":0},{"$f":"'CONDICION DE SALUD INICIAL'!B12","v":0},{"$f":"'CONDICION DE SALUD INICIAL'!C12","v":0},{"$f":"'CONDICION DE SALUD INICIAL'!D12","v":0},{"$f":"'CONDICION DE SALUD INICIAL'!H12","v":0},null,null,"",null,"",null,"",null,"",null,"",null,"",null,"",null,"",null,"",null,"",{"$error":"#VALUE!"},{"$error":"#VALUE!"},null,"Puedo soportar el dolor sin necesidad de tomar calmantes","0","Me las puedo arreglar solo sin que aumente el dolor","0","Puedo levantar objetos pesados pero me aumenta el dolor","1","El dolor no me impide andar","0","Puedo estar sentado en cualquier tipo de silla todo el tiempo que quiera","0","Puedo estar de pie tanto tiempo como quiera sin que me aumente el dolor","0","El dolor no me impide dormir bien","0","Mi actividad sexual es normal y no me aumenta el dolor","0","Mi vida social es uy normal y no me aumenta el dolor","0","Puedo viajar a cualquier sitio sin que aumente el dolor","0",0.02,"Limitación funcional mínima",null,"> 2.5 min","1.8-2.2 min","< 1.8 min","> 3 min","2.0-2.5 min","< 2 min","23 segundos","Necesita Mejorar",null,"<0","Mala"]
[{"$f":"'CONDICION DE SALUD INICIAL'!A13","v":0},{"$f":"'CONDICION DE SALUD INICIAL'!B13","v":0},{"$f":"'CONDICION DE SALUD INICIAL'!C13","v":0},{"$f":"'CONDICION DE SALUD INICIAL'!D13","v":0},{"$f":"'CONDICION DE SALUD INICIAL'!H13","v":0},null,"No tengo dolor en este momento","0","Puedo cuidarme con normalidad pero esto me aumenta el dolor","1","El dolor me impide levantar objetos pesados del suelo, pero lo puedo hacer si están colocados en un sitio fácil, como por ejemplo en una mesa","2","Puedo leer todo lo que quiera sin que me duela el cuello","0","No tengo ningún dolor de cabeza","0","Me concentro totalmente en algo cuando quiero con alguna dificultad","1","Puedo trabajar todo lo que quiero","0","Puedo conducir todo lo que quiero, pero con un ligero dolor en el cuello","1","No tengo ningún problema para dormir","0","Puedo hacer todas mis actividades de ocio sin dolor de cuello","0",0.1,"Discapacidad mínima",null,"El dolor es fuerte pero me arreglo sin tomar calmantes","1","Me las puedo arreglar solo sin que aumente el dolor","0","Puedo levantar objetos pesados sin que me aumente el dolor","0","El dolor no me impide andar","0","Puedo estar sentado en mi silla favorita todo el tiempo que quiera","1","Puedo estar de pie tanto tiempo como quiera pero me aumenta el dolor","1","El dolor no me impide dormir bien","0","Mi actividad sexual es normal y no me aumenta el dolor","0","Mi vida social es uy normal y no me aumenta el dolor","0","Puedo viajar a cualquier sitio sin que aumente el dolor","0",0.06,"Limitación funcional mínima",null,"> 2.5 min","1.8-2.2 min","< 1.8 min","> 3 min","2.0-2.5 min","< 2 min","23 segundos","Necesita Mejorar",null,"<0","Mala"]
[{"$f":"'CONDICION DE SALUD INICIAL'!A14","v":0},{"$f":"'CONDICION DE SALUD INICIAL'!B14","v":0},{"$f":"'CONDICION DE SALUD INICIAL'!C14","v":0},{"$f":"'CONDICION DE SALUD INICIAL'!D14","v":0},{"$f":"'CONDICION DE SALUD INICIAL'!H14","v":0},null,"El dolor es el peor imaginable en este momento","5","No puedo vestirme, me baño con dificultad y me quedo en la cama","5","Solo puedo levantar objetos muy ligeros","4","Apenas puedo leer por el gran dolor que me produce en el cuello","4","Tengo dolor de cabeza casi continuo","5","No puedo concentrarme nunca","5","No puedo hacer mi trabajo habitual","3","No puedo conducir nada por el dolor de cuello","5","Pierdo de 3 a 5 horas de sueño cada noche por el dolor de cuello","4","Puedo hacer todas mis actividades de ocio sin dolor de cuello","0",0.8,"Discapacidad máxima",null,null,"",null,"",null,"",null,"",null,"",null,"",null,"",null,"",null,"",null,"",{"$error":"#VALUE!"},{"$error":"#VALUE!"},null,"> 2.5 min","1.8-2.2 min","< 1.8 min","> 3 min","2.0-2.5 min","< 2 min",null,null,null,null,""]
[{"$f":"'CONDICION DE SALUD INICIAL'!A15","v":0},{"$f":"'CONDICION DE SALUD INICIAL'!B15","v":0},{"$f":"'CONDICION DE SALUD INICIAL'!C15","v":0},{"$f":"'CONDICION DE SALUD INICIAL'!D15","v":0},{"$f":"'CONDICION DE SALUD INICIAL'!H15","v":0},null,"El dolor es moderado en este momento","2","Cuidarme me duele de forma que tengo que hacerlo despacio y con cuidado","2","Puedo levantar objetos pesados pero me aumenta el dolor","1","Puedo leer todo lo que quiera con un dolor moderado en el cuello","2","A veces tengo un pequeño dolor de cabeza","1","Tengo alguna dificultad para concentrarme cuando quiero","2","Puedo hacer mi trabajo habitual, pero no más","1","Puedo conducir sin dolor en el cuello","0","No tengo ningún problema para dormir","0","Puedo hacer todas mis actividades de ocio sin dolor de cuello","0",0.22,"Discapacidad moderada",null,"El dolor es fuerte pero me arreglo sin tomar calmantes","1","Lavarme, vestirme, etc., me produce dolor y tengo que hacerlo despacio y con cuidado","2","Solo puedo levantar objetos muy ligeros","4","El dolor no me impide andar","0","Puedo estar sentado en cualquier tipo de silla todo el tiempo que quiera","0","El dolor me impide estar de pie más de diez minutos","4","El dolor no me impide dormir bien","0","Mi actividad sexual es normal y no me aumenta el dolor","0","Mi vida social es normal, pero me aumenta el dolor","1","El dolor es fuerte, pero aguanto viajes de más de dos horas","2",0.28000000000000003,"Limitación funcional moderada",null,"> 2.5 min","1.8-2.2 min","< 1.8 min","> 3 min","2.0-2.5 min","< 2 min",null,null,null,"<0","Mala"]
[{"$f":"'CONDICION DE SALUD INICIAL'!A16","v":0},{"$f":"'CONDICION DE SALUD INICIAL'!B16","v":0},{"$f":"'CONDICION DE SALUD INICIAL'!C16","v":0},{"$f":"'CONDICION DE SALUD INICIAL'!D16","v":0},{"$f":"'CONDICION DE SALUD INICIAL'!H16","v":0},null,null,"",null,"",null,"",null,"",null,"",null,"",null,"",null,"",null,"",null,"",{"$error":"#VALUE!"},{"$error":"#VALUE!"},null,"Los calmantes me alivian un poco el dolor","3","Me las puedo arreglar solo sin que aumente el dolor","0","Puedo levantar objetos pesados pero me aumenta el dolor","1","El dolor no me impide andar","0","El dolor me impide estar sentado más de una hora","2","Puedo estar de pie tanto tiempo como quiera pero me aumenta el dolor","1","Sólo puedo dormir si tomo pastillas","1","Mi actividad sexual es normal pero me aumenta el dolor","1","El dolor no tiene un efecto importante en mi vida social, pero impide mis actividades más enérgicas, como bailar, etc","2","El dolor es fuerte, pero aguanto viajes de más de dos horas","2",0.26,"Limitación funcional moderada",null,"> 2.5 min","1.8-2.2 min","< 1.8 min","> 3 min","2.0-2.5 min","< 2 min","No realiza prueba por reciente cirugia en codo",null,null,">0","Buena"]
[{"$f":"'CONDICION DE SALUD INICIAL'!A17","v":0},{"$f":"'CONDICION DE SALUD INICIAL'!B17","v":0},{"$f":"'CONDICION DE SALUD INICIAL'!C17","v":0},{"$f":"'CONDICION DE SALUD INICIAL'!D17","v":0},{"$f":"'CONDICION DE SALUD INICIAL'!H17","v":0},null,null,"",null,"",null,"",null,"",null,"",null,"",null,"",null,"",null,"",null,"",{"$error":"#VALUE!"},{"$error":"#VALUE!"},null,"Puedo soportar el dolor sin necesidad de tomar calmantes","0","Me las puedo arreglar solo sin que aumente el dolor","0","Puedo levantar objetos pesados sin que me aumente el dolor","0","El dolor no me impide andar","0","Puedo estar sentado en cualquier tipo de silla todo el tiempo que quiera","0","Puedo estar de pie tanto tiempo como quiera sin que me aumente el dolor","0","El dolor no me impide dormir bien","0","Mi actividad sexual es normal y no me aumenta el dolor","0","Mi vida social es uy normal y no me aumenta el dolor","0","Puedo viajar a cualquier sitio sin que aumente el dolor","0",0,"Limitación funcional mínima",null,"> 2.5 min","1.8-2.2 min","< 1.8 min","> 3 min","2.0-2.5 min","< 2 min","4 segundos","Necesita Mejorar",null,">0","Buena"]
[{"$f":"'CONDICION DE SALUD INICIAL'!A18","v":0},{"$f":"'CONDICION DE SALUD INICIAL'!B18","v":0},{"$f":"'CONDICION DE SALUD INICIAL'!C18","v":0},{"$f":"'CONDICION DE SALUD INICIAL'!D18","v":0},{"$f":"'CONDICION DE SALUD INICIAL'!H18","v":0},null,null,"",null,"",null,"",null,"",null,"",null,"",null,"",null,"",null,"",null,"",{"$error":"#VALUE!"},{"$error":"#VALUE!"},null,null,"",null,"",null,"",null,"",null,"",null,"",null,"",null,"",null,"",null,"",{"$error":"#VALUE!"},{"$error":"#VALUE!"},null,"> 2.5 min","1.8-2.2 min","< 1.8 min","> 3 min","2.0-2.5 min","< 2 min",null,null,null,null,""]
[{"$f":"'CONDICION DE SALUD INICIAL'!A19","v":0},{"$f":"'CONDICION DE SALUD INICIAL'!B19","v":0},{"$f":"'CONDICION DE SALUD INICIAL'!C19","v":0},{"$f":"'CONDICION DE SALUD INICIAL'!D19","v":0},{"$f":"'CONDICION DE SALUD INICIAL'!H19","v":0},null,null,"",null,"",null,"",null,"",null,"",null,"",null,"",null,"",null,"",null,"",{"$error":"#VALUE!"},{"$error":"#VALUE!"},null,"Los calmantes me alivian un poco el dolor","3","Lavarme, vestirme, etc., me produce dolor y tengo que hacerlo despacio y con cuidado","2","El dolor me impide levantar objetos pesados, pero si puedo levantar objetos ligeros o medianos si están en un sitio cómodo","3","El dolor no me impide andar","0","El dolor me impide estar sentado más de una hora","2","El dolor me impide estar de pie más de una hora","2","El dolor no me impide dormir bien","0","Mi actividad sexual es normal pero me aumenta el dolor","1","El dolor no tiene un efecto importante en mi vida social, pero impide mis actividades más enérgicas, como bailar, etc","2","El dolor es fuerte, pero aguanto viajes de más de dos horas","2",0.34,"Limitación funcional moderada",null,"> 2.5 min","1.8-2.2 min","< 1.8 min","> 3 min","2.0-2.5 min","< 2 min",null,null,null,null,""]
[{"$f":"'CONDICION DE SALUD INICIAL'!A20","v":0},{"$f":"'CONDICION DE SALUD INICIAL'!B20","v":0},{"$f":"'CONDICION DE SALUD INICIAL'!C20","v":0},{"$f":"'CONDICION DE SALUD INICIAL'!D20","v":0},{"$f":"'CONDICION DE SALUD INICIAL'!H20","v":0},null,null,"",null,"",null,"",null,"",null,"",null,"",null,"",null,"",null,"",null,"",{"$error":"#VALUE!"},{"$error":"#VALUE!"},null,null,"",null,"",null,"",null,"",null,"",null,"",null,"",null,"",null,"",null,"",{"$error":"#VALUE!"},{"$error":"#VALUE!"},null,"> 2.5 min","1.8-2.2 min","< 1.8 min","> 3 min","2.0-2.5 min","< 2 min",null,null,null,null,""]
[{"$f":"'CONDICION DE SALUD INICIAL'!A21","v":0},{"$f":"'CONDICION DE SALUD INICIAL'!B21","v":0},{"$f":"'CONDICION DE SALUD INICIAL'!C21","v":0},{"$f":"'CONDICION DE SALUD INICIAL'!D21","v":0},{"$f":"'CONDICION DE SALUD INICIAL'!H21","v":0},null,null,"",null,"",null,"",null,"",null,"",null,"",null,"",null,"",null,"",null,"",{"$error":"#VALUE!"},{"$error":"#VALUE!"},null,"Los calmantes me alivian un poco el dolor","3","Lavarme, vestirme, etc., me produce dolor y tengo que hacerlo despacio y con cuidado","2","El dolor me impide levantar objetos pesados, pero si puedo levantar objetos ligeros o medianos si están en un sitio cómodo","3","El dolor me impide andar más de 250 metros","3","Puedo estar sentado en cualquier tipo de silla todo el tiempo que quiera","0","Puedo estar de pie tanto tiempo como quiera pero me aumenta el dolor","1","El dolor no me impide dormir bien","0","Mi actividad sexual es normal pero me aumenta el dolor","1","El dolor ha limitado mi vida social y no salgo tan a menudo","3","Puedo viajar a cualquier sitio, pero me aumenta el dolor","1",0.34,"Limitación funcional moderada",null,"> 2.5 min","1.8-2.2 min","< 1.8 min","> 3 min","2.0-2.5 min","< 2 min",null,null,null,null,""]
[{"$f":"'CONDICION DE SALUD INICIAL'!A22","v":0},{"$f":"'CONDICION DE SALUD INICIAL'!B22","v":0},{"$f":"'CONDICION DE SALUD INICIAL'!C22","v":0},{"$f":"'CONDICION DE SALUD INICIAL'!D22","v":0},{"$f":"'CONDICION DE SALUD INICIAL'!H22","v":0},null,null,"",null,"",null,"",null,"",null,"",null,"",null,"",null,"",null,"",null,"",{"$error":"#VALUE!"},{"$error":"#VALUE!"},null,null,"",null,"",null,"",null,"",null,"",null,"",null,"",null,"",null,"",null,"",{"$error":"#VALUE!"},{"$error":"#VALUE!"},null,"> 2.5 min","1.8-2.2 min","< 1.8 min","> 3 min","2.0-2.5 min","< 2 min",null,null,null,null,""]
[{"$f":"'CONDICION DE SALUD INICIAL'!A23","v":0},{"$f":"'CONDICION DE SALUD INICIAL'!B23","v":0},{"$f":"'CONDICION DE SALUD INICIAL'!C23","v":0},{"$f":"'CONDICION DE SALUD INICIAL'!D23","v":0},{"$f":"'CONDICION DE SALUD INICIAL'!H23","v":0},null,null,"",null,"",null,"",null,"",null,"",null,"",null,"",null,"",null,"",null,"",{"$error":"#VALUE!"},{"$error":"#VALUE!"},null,null,"",null,"",null,"",null,"",null,"",null,"",null,"",null,"",null,"",null,"",{"$error":"#VALUE!"},{"$error":"#VALUE!"},null,"> 2.5 min","1.8-2.2 min","< 1.8 min","> 3 min","2.0-2.5 min","< 2 min",null,null,null,null,""]
[{"$f":"'CONDICION DE SALUD INICIAL'!A24","v":0},{"$f":"'CONDICION DE SALUD INICIAL'!B24","v":0},{"$f":"'CONDICION DE SALUD INICIAL'!C24","v":0},{"$f":"'CONDICION DE SALUD INICIAL'!D24","v":0},{"$f":"'CONDICION DE SALUD INICIAL'!H24","v":0},null,null,"",null,"",null,"",null,"",null,"",null,"",null,"",null,"",null,"",null,"",{"$error":"#VALUE!"},{"$error":"#VALUE!"},null,null,"",null,"",null,"",null,"",null,"",null,"",null,"",null,"",null,"",null,"",{"$error":"#VALUE!"},{"$error":"#VALUE!"},null,"> 2.5 min","1.8-2.2 min","< 1.8 min","> 3 min","2.0-2.5 min","< 2 min",null,null,null,null,""]
[{"$f":"'CONDICION DE SALUD INICIAL'!A25","v":0},{"$f":"'CONDICION DE SALUD INICIAL'!B25","v":0},{"$f":"'CONDICION DE SALUD INICIAL'!C25","v":0},{"$f":"'CONDICION DE SALUD INICIAL'!D25","v":0},{"$f":"'CONDICION DE SALUD INICIAL'!H25","v":0},null,null,"",null,"",null,"",null,"",null,"",null,"",null,"",null,"",null,"",null,"",{"$error":"#VALUE!"},{"$error":"#VALUE!"},null,null,"",null,"",null,"",null,"",null,"",null,"",null,"",null,"",null,"",null,"",{"$error":"#VALUE!"},{"$error":"#VALUE!"},null,"> 2.5 min","1.8-2.2 min","< 1.8 min","> 3 min","2.0-2.5 min","< 2 min",null,null,null,null,""]
[{"$f":"'CONDICION DE SALUD INICIAL'!A26","v":0},{"$f":"'CONDICION DE SALUD INICIAL'!B26","v":0},{"$f":"'CONDICION DE SALUD INICIAL'!C26","v":0},{"$f":"'CONDICION DE SALUD INICIAL'!D26","v":0},{"$f":"'CONDICION DE SALUD INICIAL'!H26","v":0},null,null,"",null,"",null,"",null,"",null,"",null,"",null,"",null,"",null,"",null,"",{"$error":"#VALUE!"},{"$error":"#VALUE!"},null,null,"",null,"",null,"",null,"",null,"",null,"",null,"",null,"",null,"",null,"",{"$error":"#VALUE!"},{"$error":"#VALUE!"},null,"> 2.5 min","1.8-2.2 min","< 1.8 min","> 3 min","2.0-2.5 min","< 2 min",null,null,null,null,""]
[{"$f":"'CONDICION DE SALUD INICIAL'!A27","v":0},{"$f":"'CONDICION DE SALUD INICIAL'!B27","v":0},{"$f":"'CONDICION DE SALUD INICIAL'!C27","v":0},{"$f":"'CONDICION DE SALUD INICIAL'!D27","v":0},{"$f":"'CONDICION DE SALUD INICIAL'!H27","v":0},null,null,"",null,"",null,"",null,"",null,"",null,"",null,"",null,"",null,"",null,"",{"$error":"#VALUE!"},{"$error":"#VALUE!"},null,null,"",null,"",null,"",null,"",null,"",null,"",null,"",null,"",null,"",null,"",{"$error":"#VALUE!"},{"$error":"#VALUE!"},null,"> 2.5 min","1.8-2.2 min","< 1.8 min","> 3 min","2.0-2.5 min","< 2 min",null,null,null,null,""]
[]
[]
[]
[]
[]
[]
[]
[]
[]
[]
[]
[]
[]
[]
[]
[null,null,null,null,null,null,null,null,null,null,null,null,null,null,null,null,null,null,null,null,null,null,null,null,null,null,null,null,null,null,null,null,null,null,null,null,null,null,null,null,null,null,null,null,null,null,null,null,null,null,null,null,null,null,null,null,null,null,null,null,null,"abdominales"]

{"sheet":"CONDICION DE SALUD POST","index":4,"n_rows":27,"n_cols":38,"rows_kept":27,"cut":false,"hidden":false,"merged":[[4,36,6,36],[5,11,6,11],[5,12,6,12],[5,13,5,16],[5,17,5,20],[5,21,5,24],[5,25,6,25],[5,26,6,26],[5,27,5,32],[4,11,4,34],[5,33,6,33],[5,34,6,34],[1,0,1,13],[3,0,3,10],[3,11,3,36],[3,37,6,37],[4,0,6,0],[4,1,6,1],[4,2,6,2],[4,3,6,3],[4,4,6,4],[4,5,6,5],[4,6,6,6],[4,7,6,7],[4,8,6,8],[4,9,6,9],[4,10,6,10],[4,35,6,35]]}
[]
["Base de Datos Intervención Terapeútica\nCondiciones de Salud - Posterior a intervención"]
[]
["DATOS PERSONALES ",null,null,null,null,null,null,null,null,null,null,"“SF-12” SOBRE EL ESTADO DE SALUD - POSTERIOR A INTERVENCIÓN",null,null,null,null,null,null,null,null,null,null,null,null,null,null,null,null,null,null,null,null,null,null,null,null,null,"Observaciones"]
["Nº","Empresa","Apellidos  ","Nombres","Cedula","Fecha de evaluación posterior a intervención","Fecha de nacimiento","Edad (años)","Presenta algún desorden músculo esquelético","Listado de desórdenes músculo esqueléticos","Nivel de dolor posterior a intervención","La siguiente encuesta, es un autocuestionario genérico que permite calcular el perfil de calidad de vida relacionado con la salud ",null,null,null,null,null,null,null,null,null,null,null,null,null,null,null,null,null,null,null,null,null,null,null,"Total","Interpretación "]
[null,null,null,null,null,null,null,null,null,null,null,"En general, usted diría que su salud es","Calificación","Las siguientes preguntas se refieren a actividades  que usted podría hacer en un día normal.  Su salud actual,  ¿le limita para hacer esas actividades ? Si es así, ¿cuánto?",null,null,null,"Durante las 4 últimas semanas, ¿ha tenido alguno de los siguientes problemas en su trabajo o en sus actividades cotidianas, a causa de su salud física?",null,null,null,"Durante las 4 últimas semanas, ¿ha tenido alguno de los siguientes problemas en su trabajo o en sus actividades cotidianas, a causa de algún problema emocional (como estar triste, deprimido, o nervioso)?",null,null,null,"Durante las 4 últimas semanas. Hasta qué punto el dolor le ha dificultado su trabajo habitual (incluido el trabajo fuera de casa y las tareas domésticas)? ","Calificación","Las siguientes preguntas se refieren a cómo se ha sentido y cómo le han ido las cosas durante las 4 últimas semanas. En cada pregunta responda lo que se parezca más a cómo se ha sentido usted. ¿cuánto tiempo?",null,null,null,null,null,"Durante las 4 últimas semanas su salud física y emocional le permitió realizar sus actividades sociales sin dificultadades?","Calificación"]
[null,null,null,null,null,null,null,null,null,null,null,null,null," Esfuerzos moderados, como  mover una mesa, pasar la aspiradora, jugar a los bolos o caminar más de 1 hora","Calificación","Subir varios pisos por la escalera","Calificación","¿Hizo menos de lo que hubiera querido hacer?","Calificación","Tuvo que dejar de hacer algunas tareas en su trabajo o en sus actividades cotidianas?","Calificación","Hizo menos de lo que hubiera querido hacer, por algún problema emocional","Calificación","No hizo su trabajo o sus actividades cotidianas tan cuidadosamente  como de costumbre, por algún problema emocional?","Calificación",null,null,"Se sintió calmado y\ntranquilo?","Calificación"," Tuvo mucha energía?","Calificación","Se sintió muy animado y contento?","Calificación"]
[{"$f":"'CONDICION DE SALUD INICIAL'!A8","v":0},{"$f":"'CONDICION DE SALUD INICIAL'!B8","v":0},{"$f":"'CONDICION DE SALUD INICIAL'!C8","v":0},{"$f":"'CONDICION DE SALUD INICIAL'!D8","v":0},{"$f":"'CONDICION DE SALUD INICIAL'!E8","v":0},null,{"$f":"'CONDICION DE SALUD INICIAL'!G8","v":"00:00:00"},{"$f":"'CONDICION DE SALUD INICIAL'!H8","v":0},{"$f":"'CONDICION DE SALUD INICIAL'!I8","v":"SI"},{"$f":"'CONDICION DE SALUD INICIAL'!J8","v":0},null,null,{"$f":"IF(L8=\"Excelente\",\"1\",IF(L8=\"Muy buena\",\"2\",IF(L8=\"Buena\",\"3\",IF(L8=\"Regular\",\"4\",IF(L8=\"Mala\",\"5\",IF(L8=\"\",\"0\"))))))","v":"0"},null,{"$f":"IF(N8=\"No, no me limita nada\",\"1\",IF(N8=\"Si, me limita un poco\",\"2\",IF(N8=\"Si, me limita mucho\",\"3\",IF(N8=\"\",\"0\"))))","v":"0"},null,{"$f":"IF(P8=\"No, no me limita nada\",\"1\",IF(P8=\"Si, me limita un poco\",\"2\",IF(P8=\"Si, me limita mucho\",\"3\",IF(P8=\"\",\"0\"))))","v":"0"},null,{"$f":"IF(R8=\"SI\",\"2\",IF(R8=\"NO\",\"1\",IF(R8=\"\",\"0\")))","v":"0"},null,{"$f":"IF(T8=\"SI\",\"2\",IF(T8=\"NO\",\"1\",IF(T8=\"\",\"0\")))","v":"0"},null,{"$f":"IF(V8=\"SI\",\"2\",IF(V8=\"NO\",\"1\",IF(V8=\"\",\"0\")))","v":"0"},null,{"$f":"IF(X8=\"SI\",\"2\",IF(X8=\"NO\",\"1\",IF(X8=\"\",\"0\")))","v":"0"},null,{"$f":"IF(Z8=\"Nada\",\"1\",IF(Z8=\"Un poco\",\"2\",IF(Z8=\"Regular\",\"3\",IF(Z8=\"Bastante\",\"4\",IF(Z8=\"Mucho\",\"5\",IF(Z8=\"\",\"0\"))))))","v":"0"},"Nunca",{"$f":"IF(AB8=\"Siempre\",\"1\",IF(AB8=\"Casi siempre\",\"2\",IF(AB8=\"Algunas veces\",\"3\",IF(AB8=\"Solo una vez\",\"4\",IF(AB8=\"Nunca\",\"5\",IF(AB8=\"\",\"0\"))))))","v":"5"},"Siempre",{"$f":"IF(AD8=\"Siempre\",\"1\",IF(AD8=\"Casi siempre\",\"2\",IF(AD8=\"Algunas veces\",\"3\",IF(AD8=\"Solo una vez\",\"4\",IF(AD8=\"Nunca\",\"5\",IF(AD8=\"\",\"0\"))))))","v":"1"},"Nunca",{"$f":"IF(AF8=\"Siempre\",\"1\",IF(AF8=\"Casi siempre\",\"2\",IF(AF8=\"Algunas veces\",\"3\",IF(AF8=\"Solo una vez\",\"4\",IF(AF8=\"Nunca\",\"5\",IF(AF8=\"\",\"0\"))))))","v":"5"},null,{"$f":"IF(AH8=\"Siempre\",\"1\",IF(AH8=\"Casi siempre\",\"2\",IF(AH8=\"Algunas veces\",\"3\",IF(AH8=\"Solo una vez\",\"4\",IF(AH8=\"Nunca\",\"5\",IF(AH8=\"\",\"0\"))))))","v":"0"},{"$f":"(M8+O8+Q8+S8+U8+W8+Y8+AA8+AC8+AE8+AG8+AI8)+0","v":11},{"$f":"IF(AJ8=0,\"\",IF(AJ8<=20,\"BUENO\",IF(AJ8<=40,\"REGULAR\",IF(AJ8>=41,\"MALO\",))))","v":"BUENO"}]
[2,{"$f":"'CONDICION DE SALUD INICIAL'!B9","v":0},{"$f":"'CONDICION DE SALUD INICIAL'!C9","v":0},{"$f":"'CONDICION DE SALUD INICIAL'!D9","v":0},{"$f":"'CONDICION DE SALUD INICIAL'!E9","v":0},null,{"$f":"'CONDICION DE SALUD INICIAL'!G9","v":"00:00:00"},{"$f":"'CONDICION DE SALUD INICIAL'!H9","v":0},{"$f":"'CONDICION DE SALUD INICIAL'!I9","v":0},{"$f":"'CONDICION DE SALUD INICIAL'!J9","v":0},"MEDIO","Buena","3","Si, me limita mucho","3","Si, me limita mucho","3","NO","1","NO","1","NO","1","NO","1","Regular","3","Casi siempre",{"$f":"IF(AB9=\"Siempre\",\"1\",IF(AB9=\"Casi siempre\",\"2\",IF(AB9=\"Algunas veces\",\"3\",IF(AB9=\"Solo una vez\",\"4\",IF(AB9=\"Nunca\",\"5\",IF(AB9=\"\",\"0\"))))))","v":"2"},"Casi siempre",{"$f":"IF(AD9=\"Siempre\",\"1\",IF(AD9=\"Casi siempre\",\"2\",IF(AD9=\"Algunas veces\",\"3\",IF(AD9=\"Solo una vez\",\"4\",IF(AD9=\"Nunca\",\"5\",IF(AD9=\"\",\"0\"))))))","v":"2"},"Casi siempre",{"$f":"IF(AF9=\"Siempre\",\"1\",IF(AF9=\"Casi siempre\",\"2\",IF(AF9=\"Algunas veces\",\"3\",IF(AF9=\"Solo una vez\",\"4\",IF(AF9=\"Nunca\",\"5\",IF(AF9=\"\",\"0\"))))))","v":"2"},"Siempre",{"$f":"IF(AH9=\"Siempre\",\"1\",IF(AH9=\"Casi siempre\",\"2\",IF(AH9=\"Algunas veces\",\"3\",IF(AH9=\"Solo una vez\",\"4\",IF(AH9=\"Nunca\",\"5\",IF(AH9=\"\",\"0\"))))))","v":"1"},23,"REGULAR"]
[3,{"$f":"'CONDICION DE SALUD INICIAL'!B10","v":0},{"$f":"'CONDICION DE SALUD INICIAL'!C10","v":0},{"$f":"'CONDICION DE SALUD INICIAL'!D10","v":0},{"$f":"'CONDICION DE SALUD INICIAL'!E10","v":0},null,{"$f":"'CONDICION DE SALUD INICIAL'!G10","v":"00:00:00"},{"$f":"'CONDICION DE SALUD INICIAL'!H10","v":0},{"$f":"'CONDICION DE SALUD INICIAL'!I10","v":"SI"},{"$f":"'CONDICION DE SALUD INICIAL'!J10","v":0},null,null,"0",null,"0",null,"0",null,"0",null,"0",null,"0",null,"0",null,"0",null,"0",null,"0",null,"0",null,"0",0,""]
[4,{"$f":"'CONDICION DE SALUD INICIAL'!B11","v":0},{"$f":"'CONDICION DE SALUD INICIAL'!C11","v":0},{"$f":"'CONDICION DE SALUD INICIAL'!D11","v":0},{"$f":"'CONDICION DE SALUD INICIAL'!E11","v":0},null,{"$f":"'CONDICION DE SALUD INICIAL'!G11","v":"00:00:00"},{"$f":"'CONDICION DE SALUD INICIAL'!H11","v":0},{"$f":"'CONDICION DE SALUD INICIAL'!I11","v":"SI"},{"$f":"'CONDICION DE SALUD INICIAL'!J11","v":0},null,null,"0",null,"0",null,"0",null,"0",null,"0",null,"0",null,"0",null,"0",null,"0",null,"0",null,"0",null,"0",0,""]
[5,{"$f":"'CONDICION DE SALUD INICIAL'!B12","v":0},{"$f":"'CONDICION DE SALUD INICIAL'!C12","v":0},{"$f":"'CONDICION DE SALUD INICIAL'!D12","v":0},{"$f":"'CONDICION DE SALUD INICIAL'!E12","v":0},null,{"$f":"'CONDICION DE SALUD INICIAL'!G12","v":"00:00:00"},{"$f":"'CONDICION DE SALUD INICIAL'!H12","v":0},{"$f":"'CONDICION DE SALUD INICIAL'!I12","v":"SI"},{"$f":"'CONDICION DE SALUD INICIAL'!J12","v":0},null,null,"0",null,"0",null,"0",null,"0",null,"0",null,"0",null,"0",null,"0",null,"0",null,"0",null,"0",null,"0",0,""]
[6,{"$f":"'CONDICION DE SALUD INICIAL'!B13","v":0},{"$f":"'CONDICION DE SALUD INICIAL'!C13","v":0},{"$f":"'CONDICION DE SALUD INICIAL'!D13","v":0},{"$f":"'CONDICION DE SALUD INICIAL'!E13","v":0},null,{"$f":"'CONDICION DE SALUD INICIAL'!G13","v":"00:00:00"},{"$f":"'CONDICION DE SALUD INICIAL'!H13","v":0},{"$f":"'CONDICION DE SALUD INICIAL'!I13","v":"SI"},{"$f":"'CONDICION DE SALUD INICIAL'!J13","v":0},"ALTO","Muy buena","2","No, no me limita nada","1","No, no me limita nada","1","NO","1","NO","1","NO","1","NO","1","Nada","1","Siempre","1","Siempre","1","Siempre","1","Siempre","1",13,"BUENO"]
[7,{"$f":"'CONDICION DE SALUD INICIAL'!B14","v":0},{"$f":"'CONDICION DE SALUD INICIAL'!C14","v":0},{"$f":"'CONDICION DE SALUD INICIAL'!D14","v":0},{"$f":"'CONDICION DE SALUD INICIAL'!E14","v":0},null,{"$f":"'CONDICION DE SALUD INICIAL'!G14","v":"00:00:00"},{"$f":"'CONDICION DE SALUD INICIAL'!H14","v":0},{"$f":"'CONDICION DE SALUD INICIAL'!I14","v":"SI"},{"$f":"'CONDICION DE SALUD INICIAL'!J14","v":0},"MEDIO","Buena","3","Si, me limita un poco","2","No, no me limita nada","1","SI","2","SI","2","SI","2","SI","2","Un poco","2","Algunas veces","3","Casi siempre","2","Algunas veces","3","Solo una vez","4",28,"REGULAR"]
[8,{"$f":"'CONDICION DE SALUD INICIAL'!B15","v":0},{"$f":"'CONDICION DE SALUD INICIAL'!C15","v":0},{"$f":"'CONDICION DE SALUD INICIAL'!D15","v":0},{"$f":"'CONDICION DE SALUD INICIAL'!E15","v":0},null,{"$f":"'CONDICION DE SALUD INICIAL'!G15","v":"00:00:00"},{"$f":"'CONDICION DE SALUD INICIAL'!H15","v":0},{"$f":"'CONDICION DE SALUD INICIAL'!I15","v":"SI"},{"$f":"'CONDICION DE SALUD INICIAL'!J15","v":0},"MEDIO","Buena","3","Si, me limita un poco","2","No, no me limita nada","1","NO","1","NO","1","NO","1","NO","1","Nada","1","Siempre","1","Siempre","1","Nunca","5","Nunca","5",23,"REGULAR"]
[9,{"$f":"'CONDICION DE SALUD INICIAL'!B16","v":0},{"$f":"'CONDICION DE SALUD INICIAL'!C16","v":0},{"$f":"'CONDICION DE SALUD INICIAL'!D16","v":0},{"$f":"'CONDICION DE SALUD INICIAL'!E16","v":0},null,{"$f":"'CONDICION DE SALUD INICIAL'!G16","v":"00:00:00"},{"$f":"'CONDICION DE SALUD INICIAL'!H16","v":0},{"$f":"'CONDICION DE SALUD INICIAL'!I16","v":"SI"},{"$f":"'CONDICION DE SALUD INICIAL'!J16","v":0},null,null,"0",null,"0",null,"0",null,"0",null,"0",null,"0",null,"0",null,"0",null,"0",null,"0",null,"0",null,"0",0,""]
[10,{"$f":"'CONDICION DE SALUD INICIAL'!B17","v":0},{"$f":"'CONDICION DE SALUD INICIAL'!C17","v":0},{"$f":"'CONDICION DE SALUD INICIAL'!D17","v":0},{"$f":"'CONDICION DE SALUD INICIAL'!E17","v":0},null,{"$f":"'CONDICION DE SALUD INICIAL'!G17","v":"00:00:00"},{"$f":"'CONDICION DE SALUD INICIAL'!H17","v":0},{"$f":"'CONDICION DE SALUD INICIAL'!I17","v":"SI"},{"$f":"'CONDICION DE SALUD INICIAL'!J17","v":0},null,null,"0",null,"0",null,"0",null,"0",null,"0",null,"0",null,"0",null,"0",null,"0",null,"0",null,"0",null,"0",0,""]
[11,{"$f":"'CONDICION DE SALUD INICIAL'!B18","v":0},{"$f":"'CONDICION DE SALUD INICIAL'!C18","v":0},{"$f":"'CONDICION DE SALUD INICIAL'!D18","v":0},{"$f":"'CONDICION DE SALUD INICIAL'!E18","v":0},null,{"$f":"'CONDICION DE SALUD INICIAL'!G18","v":"00:00:00"},{"$f":"'CONDICION DE SALUD INICIAL'!H18","v":0},{"$f":"'CONDICION DE SALUD INICIAL'!I18","v":"SI"},{"$f":"'CONDICION DE SALUD INICIAL'!J18","v":0},null,null,"0",null,"0",null,"0",null,"0",null,"0",null,"0",null,"0",null,"0",null,"0",null,"0",null,"0",null,"0",0,""]
[12,{"$f":"'CONDICION DE SALUD INICIAL'!B19","v":0},{"$f":"'CONDICION DE SALUD INICIAL'!C19","v":0},{"$f":"'CONDICION DE SALUD INICIAL'!D19","v":0},{"$f":"'CONDICION DE SALUD INICIAL'!E19","v":0},null,{"$f":"'CONDICION DE SALUD INICIAL'!G19","v":"00:00:00"},{"$f":"'CONDICION DE SALUD INICIAL'!H19","v":0},{"$f":"'CONDICION DE SALUD INICIAL'!I19","v":"SI"},{"$f":"'CONDICION DE SALUD INICIAL'!J19","v":0},null,null,"0",null,"0",null,"0",null,"0",null,"0",null,"0",null,"0",null,"0",null,"0",null,"0",null,"0",null,"0",0,""]
[13,{"$f":"'CONDICION DE SALUD INICIAL'!B20","v":0},{"$f":"'CONDICION DE SALUD INICIAL'!C20","v":0},{"$f":"'CONDICION DE SALUD INICIAL'!D20","v":0},{"$f":"'CONDICION DE SALUD INICIAL'!E20","v":0},null,{"$f":"'CONDICION DE SALUD INICIAL'!G20","v":"00:00:00"},{"$f":"'CONDICION DE SALUD INICIAL'!H20","v":0},{"$f":"'CONDICION DE SALUD INICIAL'!I20","v":"SI"},{"$f":"'CONDICION DE SALUD INICIAL'!J20","v":0},null,null,"0",null,"0",null,"0",null,"0",null,"0",null,"0",null,"0",null,"0",null,"0",null,"0",null,"0",null,"0",0,""]
[14,{"$f":"'CONDICION DE SALUD INICIAL'!B21","v":0},{"$f":"'CONDICION DE SALUD INICIAL'!C21","v":0},{"$f":"'CONDICION DE SALUD INICIAL'!D21","v":0},{"$f":"'CONDICION DE SALUD INICIAL'!E21","v":0},null,{"$f":"'CONDICION DE SALUD INICIAL'!G21","v":"00:00:00"},{"$f":"'CONDICION DE SALUD INICIAL'!H21","v":0},{"$f":"'CONDICION DE SALUD INICIAL'!I21","v":"SI"},{"$f":"'CONDICION DE SALUD INICIAL'!J21","v":0},"ALTO","Regular","4","Si, me limita mucho","3","Si, me limita mucho","3","SI","2","SI","2","NO","1","NO","1","Un poco","2","Casi siempre","2","Casi siempre","2","Algunas veces","3","Algunas veces","3",28,"REGULAR"]
[15,{"$f":"'CONDICION DE SALUD INICIAL'!B22","v":0},{"$f":"'CONDICION DE SALUD INICIAL'!C22","v":0},{"$f":"'CONDICION DE SALUD INICIAL'!D22","v":0},{"$f":"'CONDICION DE SALUD INICIAL'!E22","v":0},null,{"$f":"'CONDICION DE SALUD INICIAL'!G22","v":"00:00:00"},{"$f":"'CONDICION DE SALUD INICIAL'!H22","v":0},{"$f":"'CONDICION DE SALUD INICIAL'!I22","v":"SI"},{"$f":"'CONDICION DE SALUD INICIAL'!J22","v":0},null,null,"0",null,"0",null,"0",null,"0",null,"0",null,"0",null,"0",null,"0",null,"0",null,"0",null,"0",null,"0",0,""]
[16,{"$f":"'CONDICION DE SALUD INICIAL'!B23","v":0},{"$f":"'CONDICION DE SALUD INICIAL'!C23","v":0},{"$f":"'CONDICION DE SALUD INICIAL'!D23","v":0},{"$f":"'CONDICION DE SALUD INICIAL'!E23","v":0},null,{"$f":"'CONDICION DE SALUD INICIAL'!G23","v":"00:00:00"},{"$f":"'CONDICION DE SALUD INICIAL'!H23","v":0},{"$f":"'CONDICION DE SALUD INICIAL'!I23","v":"SI"},{"$f":"'CONDICION DE SALUD INICIAL'!J23","v":0},null,null,"0",null,"0",null,"0",null,"0",null,"0",null,"0",null,"0",null,"0",null,"0",null,"0",null,"0",null,"0",0,""]
[17,{"$f":"'CONDICION DE SALUD INICIAL'!B24","v":0},{"$f":"'CONDICION DE SALUD INICIAL'!C24","v":0},{"$f":"'CONDICION DE SALUD INICIAL'!D24","v":0},{"$f":"'CONDICION DE SALUD INICIAL'!E24","v":0},null,{"$f":"'CONDICION DE SALUD INICIAL'!G24","v":"00:00:00"},{"$f":"'CONDICION DE SALUD INICIAL'!H24","v":0},{"$f":"'CONDICION DE SALUD INICIAL'!I24","v":0},{"$f":"'CONDICION DE SALUD INICIAL'!J24","v":0},null,null,"0",null,"0",null,"0",null,"0",null,"0",null,"0",null,"0",null,"0",null,"0",null,"0",null,"0",null,"0",0,""]
[18,{"$f":"'CONDICION DE SALUD INICIAL'!B25","v":0},{"$f":"'CONDICION DE SALUD INICIAL'!C25","v":0},{"$f":"'CONDICION DE SALUD INICIAL'!D25","v":0},{"$f":"'CONDICION DE SALUD INICIAL'!E25","v":0},null,{"$f":"'CONDICION DE SALUD INICIAL'!G25","v":"00:00:00"},{"$f":"'CONDICION DE SALUD INICIAL'!H25","v":0},{"$f":"'CONDICION DE SALUD INICIAL'!I25","v":"SI"},{"$f":"'CONDICION DE SALUD INICIAL'!J25","v":0},null,null,"0",null,"0",null,"0",null,"0",null,"0",null,"0",null,"0",null,"0",null,"0",null,"0",null,"0",null,"0",0,""]
[19,{"$f":"'CONDICION DE SALUD INICIAL'!B26","v":0},{"$f":"'CONDICION DE SALUD INICIAL'!C26","v":0},{"$f":"'CONDICION DE SALUD INICIAL'!D26","v":0},{"$f":"'CONDICION DE SALUD INICIAL'!E26","v":0},null,{"$f":"'CONDICION DE SALUD INICIAL'!G26","v":"00:00:00"},{"$f":"'CONDICION DE SALUD INICIAL'!H26","v":0},{"$f":"'CONDICION DE SALUD INICIAL'!I26","v":"SI"},{"$f":"'CONDICION DE SALUD INICIAL'!J26","v":0},null,null,"0",null,"0",null,"0",null,"0",null,"0",null,"0",null,"0",null,"0",null,"0",null,"0",null,"0",null,"0",0,""]
[20,{"$f":"'CONDICION DE SALUD INICIAL'!B27","v":0},{"$f":"'CONDICION DE SALUD INICIAL'!C27","v":0},{"$f":"'CONDICION DE SALUD INICIAL'!D27","v":0},{"$f":"'CONDICION DE SALUD INICIAL'!E27","v":0},null,{"$f":"'CONDICION DE SALUD INICIAL'!G27","v":"00:00:00"},{"$f":"'CONDICION DE SALUD INICIAL'!H27","v":0},{"$f":"'CONDICION DE SALUD INICIAL'!I27","v":0},{"$f":"'CONDICION DE SALUD INICIAL'!J27","v":0},null,null,"0",null,"0",null,"0",null,"0",null,"0",null,"0",null,"0",null,"0",null,"0",null,"0",null,"0",null,"0",0,""]

{"sheet":"CAPACIDAD FUNC MMSS POST","index":5,"n_rows":28,"n_cols":95,"rows_kept":28,"cut":false,"hidden":false,"merged":[[3,78,3,89],[3,91,3,92],[5,23,6,23],[5,28,5,32],[5,33,6,33],[5,35,5,48],[5,49,5,52],[4,56,6,56],[5,78,5,82],[5,83,5,87],[5,88,6,88],[5,89,6,89],[4,65,4,73],[4,75,6,75],[4,76,6,76],[4,78,4,89],[3,94,6,94],[4,28,4,33],[4,35,4,48],[4,49,4,52],[4,53,6,53],[4,55,6,55],[4,91,4,92],[5,58,5,62],[5,63,6,63],[5,65,5,72],[5,73,6,73],[4,58,4,63],[5,92,6,92],[5,91,6,91],[3,28,3,56],[3,58,3,76],[1,0,1,15],[3,0,6,0],[3,1,6,1],[3,2,6,2],[3,3,6,3],[3,4,6,4],[3,6,3,26],[5,6,5,10],[5,11,6,11],[5,13,5,18],[4,6,4,11],[4,13,4,18],[4,19,4,23],[4,25,6,25],[4,26,6,26],[5,19,5,22]]}
[]
["Base de Datos Intervención Terapeútica\nEvaluación capacidad funcional miembros superiores MMSS - Posterior a intervención"]
[]
["Nº","Empresa","Apellidos","Nombres","Edad",null,"DOLOR ( PATIENT RATED WRIST EVALUATION (PRWE)) - EVALUACIÓN DEL DOLOR Y FUNCIONALIDAD  DE MUÑECA REFERIDA POR EL TRABAJADOR - POSTERIOR A INTERVENCIÓN",null,null,null,null,null,null,null,null,null,null,null,null,null,null,null,null,null,null,null,null,null,"THE PATIENT - RATED ELBOW EVALUATION (PREE) - CODO EVALUACIÓN DEL DOLOR Y FUNCIONALIDAD  DE CODO REFERIDA POR EL TRABAJADOR - POSTERIOR A INTERVENCIÓN",null,null,null,null,null,null,null,null,null,null,null,null,null,null,null,null,null,null,null,null,null,null,null,null,null,null,null,null,null,"SHOULDER PAIN DISABILITY INDEX (SPADI) INDICE DE LIMITACIÓN FUNCIONAL  POR DOLOR EN HOMBRO - POSTERIOR A INTERVENCIÓN",null,null,null,null,null,null,null,null,null,null,null,null,null,null,null,null,null,null,null,"FUERZA - POSTERIOR A INTERVENCIÓN",null,null,null,null,null,null,null,null,null,null,null,null,"FLEXIBILIDAD - POSTERIOR A INTERVENCIÓN",null,null,"Observaciones"]
[null,null,null,null,null,null,"Descripción Del Dolor",null,null,null,null,null,null,"Actividades Especificas ",null,null,null,null,null,"Actividades Cotidianas",null,null,null,null,null,"Puntuación total ","Interpretación",null,"Descripción Del Dolor",null,null,null,null,null,null,"Actividades Especificas ",null,null,null,null,null,null,null,null,null,null,null,null,null,"Actividades Cotidianas",null,null,null,"Puntuación",null,"Puntuación total ","Interpretación",null,"Dolor",null,null,null,null,null,null,"Función",null,null,null,null,null,null,null,null,null,"Puntuación total","Calificación",null,"La capacidad de vencer una resistencia externa o reaccionar contra la misma mediante una tensión muscular. ",null,null,null,null,null,null,null,null,null,null,null,null,"Capacidad del individuo para aprovechar las posibilidades de movimiento de las articulaciones de la manera más optima posible"]
[null,null,null,null,null,null,"Describa el promedio de dolor de muñeca en la última semana remarcando el número que mejor describa su dolor en una escala del 0 al 10. El cero (0) significa ausencia total del dolor y el diez (10) significa el peor dolor que usted haya experimentado o que no puede realizar la actividad a causa del dolor",null,null,null,null,"Puntuación ",null,"Describa el grado de dificultad que experimento al realizar cada una de las actividades listadas debajo durante la\núltima semana, marcando el número del 0 al 10 que mejor describa su situación. Cero (0) significa que no\nexperimenta ninguna dificultad y diez (10) significa que no puede realizar la actividad de ninguna manera",null,null,null,null,null,"Describa el grado de dificultad que experimento durante la última semana al realizar cada una de las actividades listadas a continuación, marcando el número de 0 al 10 que mejor describa su situación. Por “actividades cotidianas” entendemos las actividades que usted realizaba antes de padecer su problema de muñeca. Cero (0) significa que no experimenta ninguna dificultad y diez (10) significa que no puede realizar la actividad de ninguna manera.",null,null,null,"Puntuación",null,null,null,null,"Describa el promedio de dolor de codo en la última semana remarcando el número que mejor describa su dolor en una escala del 0 al 10. El cero (0) significa ausencia total del dolor y el diez (10) significa el peor dolor que usted haya experimentado o que no puede realizar la actividad a causa del dolor",null,null,null,null,"Puntuación ",null,"Describa el grado de dificultad que experimento al realizar cada una de las actividades listadas debajo durante la última semana, marcando el número del 0 al 10 que mejor describa su situación. Cero (0) significa que no experimenta ninguna dificultad y diez (10) significa que no puede realizar la actividad de ninguna manera",null,null,null,null,null,null,null,null,null,null,null,null,null,"Describa el grado de dificultad que experimento durante la última semana al realizar cada una de las actividades listadas a continuación, marcando el número de 0 al 10 que mejor describa su situación. Por “actividades cotidianas” entendemos las actividades que usted realizaba antes de padecer su problema de codo. Cero (0) significa que no experimenta ninguna dificultad y diez (10) significa que no puede realizar la actividad de ninguna manera.",null,null,null,null,null,null,null,null,"Describa el promedio de dolor de hombro en la última semana remarcando el número que mejor describa su dolor en una escala del 0 al 10. El cero (0) significa ausencia total del dolor y el diez (10) significa el peor dolor que usted haya experimentado o que no puede realizar la actividad a causa del dolor",null,null,null,null,"Puntuación",null,"Describa el grado de dificultad que experimento al realizar cada una de las actividades listadas debajo durante la\núltima semana, marcando el número del 0 al 10 que mejor describa su situación. Cero (0) significa que no\nexperimenta ninguna dificultad y diez (10) significa que no puede realizar la actividad de ninguna manera",null,null,null,null,null,null,null,"Puntuación",null,null,null,null,"Nª de Flexiones según la edad\nMUJER",null,null,null,null,"Nª de Flexiones según la edad\nHOMBRE",null,null,null,null,"Nª de Flexiones Ejecutadas","Calificación",null,"Alcance posterior de manos","Calificación"]
[null,null,null,null,null,null,"En reposo","Al realizar una tarea que implica un\nmovimiento repetitivo de muñeca","Al levantar un objeto pesado","Cuando el dolor está en su peor momento","¿Qué tan seguido experimenta dolor?",null,null,"Al dar vuelta la manija de la puerta","Al cortar carne con un cuchillo con la mano\nafectada","Al abrocharse una camisa","Al levantarse de una silla con la mano afectada","Al cargar 5 kg con la mano afectada\n","Al usar papel higiénico con la mano afectada","Actividades de cuidado personal (vestirse,\nlavarse)","Tareas del hogar (tareas de limpieza)\n","Trabajo (su trabajo habitual)","Actividades de tiempo libre\n",null,null,null,null,null,"En reposo","Al realizar una tarea que implica un movimiento repetitivo del codo","Al levantar un objeto pesado","Cuando el dolor está en su peor momento","¿Qué tan seguido experimenta dolor?",null,null,"Al peinarse","Al comer con tenedor o cuchara","Al tirar un objeto pesado ","Al levantarse de una silla con la mano afectada","Al cargar 5 kg con la mano afectada\n","Al usar papel higiénico con la mano afectada","Al utilizar el brazo para levantarse de una silla","Al  llevar un objeto de 10 libras con el brazo afectado","Al lanzar un objeto pequeño, como una pelota de tenis","Al utilizar un teléfono","Haga hasta botones en la parte delantera de mi camisa\n","Al lavar mi hombro opuesta","Al atarse los  zapatos","Al girar en pomo la puerta y al abrir una puerta","Actividades de cuidado personal (vestirse, lavarse)","Tareas del hogar (tareas de limpieza)\n","Trabajo (su trabajo habitual)","Actividades de tiempo libre",null,null,null,null,null,"En su peor momento?","Cuando esta tumbado en el lado afectado?","Para llegar a algo en un estante alto?","Al tocar la parte posterior de su cuello?","Al empujar con el brazo afectado?",null,null,"Al lavarse el pelo?","El lavado de la espalda?","Ponerse en una camiseta?","Abotonarse la camisa?","El ponerse los pantalones?","La colocación de un objeto en un estante alto?","Llevar un objeto pesado de 10 libras (4,5 kilogramos)?","Extraer algo de su bolsillo trasero?",null,null,null,null,null,"Excelente","Bien","Promedio","Regular","Pobre","Excelente","Bien","Promedio","Regular","Pobre"]
[{"$f":"'CONDICION DE SALUD INICIAL'!A8","v":0},{"$f":"'CONDICION DE SALUD INICIAL'!B8","v":0},{"$f":"'CONDICION DE SALUD INICIAL'!C8","v":0},{"$f":"'CONDICION DE SALUD INICIAL'!D8","v":0},{"$f":"'CONDICION DE SALUD POST'!H8","v":0},null,null,null,null,null,null,{"$f":"SUM(G8:K8)*0.01","v":0},null,null,null,null,null,null,null,null,null,null,null,{"$f":"SUM(N8:W8)/2*0.01","v":0},null,{"$f":"SUM(L8,X8)","v":0},{"$f":"IF(Z8=0,\"\",(IF(Z8<20%,\"Limitación funcional mínima\",IF(Z8<=65%,\"Limitación funcional moderada\",IF(Z8>65%,\"Limitación funcional alta\",)))))","v":""},null,null,null,null,null,null,{"$f":"SUM(AC8:AG8)*0.01","v":0},null,null,null,null,null,null,null,null,null,null,null,null,null,null,null,null,null,null,null,{"$f":"SUM(AJ8:BA8)/3.6*0.01","v":0},null,{"$f":"SUM(AH8,BB8)","v":0},{"$f":"IF(BD8=0,\"\",IF(BD8<20%,\"Limitación funcional mínima\",IF(BD8<=65%,\"Limitación funcional moderada\",IF(BD8>65%,\"Limitación funcional alta\",))))","v":""},null,null,null,null,null,null,{"$f":"SUM(BG8:BK8)*0.01","v":0},null,null,null,null,null,null,null,null,3,{"$f":"SUM(BN8:BU8)/1.6*0.01","v":1.8749999999999999E-2},null,{"$f":"SUM(BL8,BV8)","v":1.8749999999999999E-2},{"$f":"IF(BX8=0%,\"\",(IF(BX8<20%,\"Limitación funcional mínima\",IF(BX8<=65%,\"Limitación funcional moderada\",IF(BX8>65%,\"Limitación funcional alta\",)))))","v":"Limitación funcional mínima"},null,{"$f":"IF(E8<=29,\">48\",IF(E8<=39,\">39\",IF(E8<=49,\">34\",IF(E8<=59,\">29\",IF(E8>=60,\">19\",)))))","v":">48"},{"$f":"IF(E8<=29,\"34-48\",IF(E8<=39,\"25-39\",IF(E8<=49,\"20-34\",IF(E8<=59,\"15-29\",IF(E8>=60,\"5-19\",)))))","v":"34-48"},{"$f":"IF(E8<=29,\"17-33\",IF(E8<=39,\"12-24\",IF(E8<=49,\"8-19\",IF(E8<=59,\"6-14\",IF(E8>=60,\"3-4\",)))))","v":"17-33"},{"$f":"IF(E8<=29,\"6-16\",IF(E8<=39,\"4-11\",IF(E8<=49,\"3-7\",IF(E8<=59,\"2-5\",IF(E8>=60,\"1-2\",)))))","v":"6-16"},{"$f":"IF(E8<=29,\"<6\",IF(E8<=39,\"<4\",IF(E8<=49,\"<3\",IF(E8<=59,\"<2\",IF(E8>=60,\"<1\",)))))","v":"<6"},{"$f":"IF(E8<=29,\">54\",IF(E8<=39,\">44\",IF(E8<=49,\">39\",IF(E8<=59,\">24\",IF(E8>=60,\">29\",)))))","v":">54"},{"$f":"IF(E8<=29,\"45-54\",IF(E8<=39,\"35-44\",IF(E8<=49,\"30-39\",IF(E8<=59,\"25-34\",IF(E8>=60,\"20-29\",)))))","v":"45-54"},{"$f":"IF(E8<=29,\"35-44\",IF(E8<=39,\"25-34\",IF(E8<=49,\"20-29\",IF(E8<=59,\"15-24\",IF(E8>=60,\"10-19\",)))))","v":"35-44"},{"$f":"IF(E8<=29,\"20-34\",IF(E8<=39,\"15-24\",IF(E8<=49,\"12-19\",IF(E8<=59,\"8-14\",IF(E8>=60,\"5-9\",)))))","v":"20-34"},{"$f":"IF(E8<=29,\"<20\",IF(E8<=39,\"<15\",IF(E8<=49,\"<12\",IF(E8<=59,\"<8\",IF(E8>=60,\"<5\",)))))","v":"<20"},null,null,null,null,{"$f":"IF(CN8=\"Se sobreponen las manos\",\"Buena\",IF(CN8=\"Entran en contacto puntas de los dedos medios\",\"Regular\",IF(CN8=\"No se logra el contacto entre las manos\",\"Mala\",)))","v":0}]
[{"$f":"'CONDICION DE SALUD INICIAL'!A9","v":0},{"$f":"'CONDICION DE SALUD INICIAL'!B9","v":0},{"$f":"'CONDICION DE SALUD INICIAL'!C9","v":0},{"$f":"'CONDICION DE SALUD INICIAL'!D9","v":0},{"$f":"'CONDICION DE SALUD POST'!H9","v":0},null,4,3,6,7,5,{"$f":"SUM(G9:K9)*0.01","v":0.25},null,7,7,7,7,7,7,3,5,5,5,{"$f":"SUM(N9:W9)/2*0.01","v":0.3},null,{"$f":"SUM(L9,X9)","v":0.55000000000000004},{"$f":"IF(Z9=0,\"\",(IF(Z9<20%,\"Limitación funcional mínima\",IF(Z9<=65%,\"Limitación funcional moderada\",IF(Z9>65%,\"Limitación funcional alta\",)))))","v":"Limitación funcional moderada"},null,5,4,5,5,4,{"$f":"SUM(AC9:AG9)*0.01","v":0.23},null,4,3,3,5,5,5,5,6,3,6,5,5,5,6,4,4,5,5,{"$f":"SUM(AJ9:BA9)/3.6*0.01","v":0.23333333333333334},null,{"$f":"SUM(AH9,BB9)","v":0.46333333333333337},{"$f":"IF(BD9=0,\"\",IF(BD9<20%,\"Limitación funcional mínima\",IF(BD9<=65%,\"Limitación funcional moderada\",IF(BD9>65%,\"Limitación funcional alta\",))))","v":"Limitación funcional moderada"},null,7,6,7,5,6,{"$f":"SUM(BG9:BK9)*0.01","v":0.31},null,4,5,5,5,4,6,5,6,{"$f":"SUM(BN9:BU9)/1.6*0.01","v":0.25},null,{"$f":"SUM(BG9:BK9,BN9:BU9)/130*100%","v":0.5461538461538461},{"$f":"IF(BX9=0%,\"\",(IF(BX9<20%,\"Limitación funcional mínima\",IF(BX9<=65%,\"Limitación funcional moderada\",IF(BX9>65%,\"Limitación funcional alta\",)))))","v":"Limitación funcional moderada"},null,">48","34-48","17-33","6-16","<6",">54","45-54","35-44","20-34","<20",null,null,null,null,0]
[{"$f":"'CONDICION DE SALUD INICIAL'!A10","v":0},{"$f":"'CONDICION DE SALUD INICIAL'!B10","v":0},{"$f":"'CONDICION DE SALUD INICIAL'!C10","v":0},{"$f":"'CONDICION DE SALUD INICIAL'!D10","v":0},{"$f":"'CONDICION DE SALUD POST'!H10","v":0},null,null,null,null,null,null,0,null,null,null,null,null,null,null,null,null,null,null,0,null,0,"",null,null,null,null,null,null,0,null,null,null,null,null,null,null,null,null,null,null,null,null,null,null,null,null,null,null,0,null,0,"",null,null,null,null,null,null,0,null,null,null,null,null,null,null,null,1,6.2500000000000003E-3,null,7.6923076923076927E-3,"Limitación funcional mínima",null,">48","34-48","17-33","6-16","<6",">54","45-54","35-44","20-34","<20",null,"Excelente",null,null,0]
[{"$f":"'CONDICION DE SALUD INICIAL'!A11","v":0},{"$f":"'CONDICION DE SALUD INICIAL'!B11","v":0},{"$f":"'CONDICION DE SALUD INICIAL'!C11","v":0},{"$f":"'CONDICION DE SALUD INICIAL'!D11","v":0},{"$f":"'CONDICION DE SALUD POST'!H11","v":0},null,null,null,null,null,null,0,null,null,null,null,null,null,null,null,null,null,null,0,null,0,"",null,null,null,null,null,null,0,null,null,null,null,null,null,null,null,null,null,null,null,null,null,null,null,null,null,null,0,null,0,"",null,null,null,null,null,null,0,null,null,null,null,null,null,null,null,3,1.8749999999999999E-2,null,2.3076923076923078E-2,"Limitación funcional mínima",null,">48","34-48","17-33","6-16","<6",">54","45-54","35-44","20-34","<20",null,null,null,null,0]
[{"$f":"'CONDICION DE SALUD INICIAL'!A12","v":0},{"$f":"'CONDICION DE SALUD INICIAL'!B12","v":0},{"$f":"'CONDICION DE SALUD INICIAL'!C12","v":0},{"$f":"'CONDICION DE SALUD INICIAL'!D12","v":0},{"$f":"'CONDICION DE SALUD POST'!H12","v":0},null,null,null,null,null,null,0,null,null,null,null,null,null,null,null,null,null,null,0,null,0,"",null,null,null,null,null,null,0,null,null,null,null,null,null,null,null,null,null,null,null,null,null,null,null,null,null,null,0,null,0,"",null,0,6,6,6,6,0.24,null,6,7,5,6,10,6,0,0,0.25,null,0.49230769230769234,"Limitación funcional moderada",null,">48","34-48","17-33","6-16","<6",">54","45-54","35-44","20-34","<20",null,null,null,null,0]
[{"$f":"'CONDICION DE SALUD INICIAL'!A13","v":0},{"$f":"'CONDICION DE SALUD INICIAL'!B13","v":0},{"$f":"'CONDICION DE SALUD INICIAL'!C13","v":0},{"$f":"'CONDICION DE SALUD INICIAL'!D13","v":0},{"$f":"'CONDICION DE SALUD POST'!H13","v":0},null,0,0,0,0,0,{"$f":"SUM(G13:K13)*0.01","v":0},null,0,0,0,0,0,0,0,0,0,0,0,null,0,"",null,6,7,0,7,6,{"$f":"SUM(AC13:AG13)*0.01","v":0.26},null,6,6,0,10,6,7,6,10,10,10,10,10,10,10,9,10,10,10,0.41666666666666663,null,0.67666666666666664,"Limitación funcional alta",null,0,0,0,0,0,0,null,0,0,0,0,0,0,0,0,0,null,0,"",null,">48","34-48","17-33","6-16","<6",">54","45-54","35-44","20-34","<20",null,null,null,null,0]
[{"$f":"'CONDICION DE SALUD INICIAL'!A14","v":0},{"$f":"'CONDICION DE SALUD INICIAL'!B14","v":0},{"$f":"'CONDICION DE SALUD INICIAL'!C14","v":0},{"$f":"'CONDICION DE SALUD INICIAL'!D14","v":0},{"$f":"'CONDICION DE SALUD POST'!H14","v":0},null,1,4,2,2,2,0.11,null,4,4,0,6,6,1,0,4,4,0,0.14499999999999999,null,0.255,"Limitación funcional moderada",null,0,1,1,1,1,0.04,null,0,0,0,1,1,0,0,1,0,0,0,0,0,0,0,0,0,0,8.3333333333333332E-3,null,4.8333333333333332E-2,"Limitación funcional mínima",null,2,1,1,0,1,0.05,null,0,0,0,0,0,1,1,0,1.2500000000000001E-2,null,5.3846153846153849E-2,"Limitación funcional mínima",null,">48","34-48","17-33","6-16","<6",">54","45-54","35-44","20-34","<20",null,null,null,null,0]
[{"$f":"'CONDICION DE SALUD INICIAL'!A15","v":0},{"$f":"'CONDICION DE SALUD INICIAL'!B15","v":0},{"$f":"'CONDICION DE SALUD INICIAL'!C15","v":0},{"$f":"'CONDICION DE SALUD INICIAL'!D15","v":0},{"$f":"'CONDICION DE SALUD POST'!H15","v":0},null,7,7,8,8,3,0.33,null,7,8,8,8,8,8,8,8,7,7,0.38500000000000001,null,0.71500000000000008,"Limitación funcional alta",null,7,8,8,9,9,0.41000000000000003,null,8,8,8,8,8,8,8,8,8,2,7,8,0,8,8,7,5,8,0.34722222222222221,null,0.75722222222222224,"Limitación funcional alta",null,5,9,9,6,9,0.38,null,8,9,9,8,7,7,8,8,0.4,null,0.7846153846153846,"Limitación funcional alta",null,">48","34-48","17-33","6-16","<6",">54","45-54","35-44","20-34","<20",null,null,null,null,0]
[{"$f":"'CONDICION DE SALUD INICIAL'!A16","v":0},{"$f":"'CONDICION DE SALUD INICIAL'!B16","v":0},{"$f":"'CONDICION DE SALUD INICIAL'!C16","v":0},{"$f":"'CONDICION DE SALUD INICIAL'!D16","v":0},{"$f":"'CONDICION DE SALUD POST'!H16","v":0},null,null,null,null,null,null,0,null,null,null,null,null,null,null,null,null,null,null,0,null,0,"",null,null,null,null,null,null,0,null,null,null,null,null,null,null,null,null,null,null,null,null,null,null,null,null,null,null,0,null,0,"",null,null,null,null,null,null,0,null,null,null,null,null,null,null,null,null,0,null,0,"",null,">48","34-48","17-33","6-16","<6",">54","45-54","35-44","20-34","<20",null,null,null,null,0]
[{"$f":"'CONDICION DE SALUD INICIAL'!A17","v":0},{"$f":"'CONDICION DE SALUD INICIAL'!B17","v":0},{"$f":"'CONDICION DE SALUD INICIAL'!C17","v":0},{"$f":"'CONDICION DE SALUD INICIAL'!D17","v":0},{"$f":"'CONDICION DE SALUD POST'!H17","v":0},null,null,null,null,null,null,0,null,null,null,null,null,null,null,null,null,null,null,0,null,0,"",null,null,null,null,null,null,0,null,null,null,null,null,null,null,null,null,null,null,null,null,null,null,null,null,null,null,0,null,0,"",null,null,null,null,null,null,0,null,null,null,null,null,null,null,null,null,0,null,0,"",null,">48","34-48","17-33","6-16","<6",">54","45-54","35-44","20-34","<20",null,null,null,null,0]
[{"$f":"'CONDICION DE SALUD INICIAL'!A18","v":0},{"$f":"'CONDICION DE SALUD INICIAL'!B18","v":0},{"$f":"'CONDICION DE SALUD INICIAL'!C18","v":0},{"$f":"'CONDICION DE SALUD INICIAL'!D18","v":0},{"$f":"'CONDICION DE SALUD POST'!H18","v":0},null,null,null,null,null,null,0,null,null,null,null,null,null,null,null,null,null,null,0,null,0,"",null,null,null,null,null,null,0,null,null,null,null,null,null,null,null,null,null,null,null,null,null,null,null,null,null,null,0,null,0,"",null,null,null,null,null,null,0,null,null,null,null,null,null,null,null,null,0,null,0,"",null,">48","34-48","17-33","6-16","<6",">54","45-54","35-44","20-34","<20",null,null,null,null,0]
[{"$f":"'CONDICION DE SALUD INICIAL'!A19","v":0},{"$f":"'CONDICION DE SALUD INICIAL'!B19","v":0},{"$f":"'CONDICION DE SALUD INICIAL'!C19","v":0},{"$f":"'CONDICION DE SALUD INICIAL'!D19","v":0},{"$f":"'CONDICION DE SALUD POST'!H19","v":0},null,null,null,null,null,null,0,null,null,null,null,null,null,null,null,null,null,null,0,null,0,"",null,null,null,null,null,null,0,null,null,null,null,null,null,null,null,null,null,null,null,null,null,null,null,null,null,null,0,null,0,"",null,null,null,null,null,null,0,null,null,null,null,null,null,null,null,null,0,null,0,"",null,">48","34-48","17-33","6-16","<6",">54","45-54","35-44","20-34","<20",null,null,null,null,0]
[{"$f":"'CONDICION DE SALUD INICIAL'!A20","v":0},{"$f":"'CONDICION DE SALUD INICIAL'!B20","v":0},{"$f":"'CONDICION DE SALUD INICIAL'!C20","v":0},{"$f":"'CONDICION DE SALUD INICIAL'!D20","v":0},{"$f":"'CONDICION DE SALUD POST'!H20","v":0},null,null,null,null,null,null,0,null,null,null,null,null,null,null,null,null,null,null,0,null,0,"",null,null,null,null,null,null,0,null,null,null,null,null,null,null,null,null,null,null,null,null,null,null,null,null,null,null,0,null,0,"",null,null,null,null,null,null,0,null,null,null,null,null,null,null,null,null,0,null,0,"",null,">48","34-48","17-33","6-16","<6",">54","45-54","35-44","20-34","<20",null,null,null,null,0]
[{"$f":"'CONDICION DE SALUD INICIAL'!A21","v":0},{"$f":"'CONDICION DE SALUD INICIAL'!B21","v":0},{"$f":"'CONDICION DE SALUD INICIAL'!C21","v":0},{"$f":"'CONDICION DE SALUD INICIAL'!D21","v":0},{"$f":"'CONDICION DE SALUD POST'!H21","v":0},null,6,7,7,8,7,{"$f":"SUM(G21:K21)*0.01","v":0.35000000000000003},null,4,6,3,8,9,0,7,7,5,9,0.28999999999999998,null,0.64,"Limitación funcional moderada",null,0,6,8,8,6,0.28000000000000003,null,6,0,7,4,8,0,0,9,0,0,0,0,0,0,0,6,6,5,0.14166666666666666,null,0.42166666666666669,"Limitación funcional moderada",null,9,8,8,10,8,0.43,null,8,8,7,0,3,8,8,5,0.29375000000000001,null,0.69230769230769229,"Limitación funcional alta",null,">48","34-48","17-33","6-16","<6",">54","45-54","35-44","20-34","<20",null,null,null,null,0]
[{"$f":"'CONDICION DE SALUD INICIAL'!A22","v":0},{"$f":"'CONDICION DE SALUD INICIAL'!B22","v":0},{"$f":"'CONDICION DE SALUD INICIAL'!C22","v":0},{"$f":"'CONDICION DE SALUD INICIAL'!D22","v":0},{"$f":"'CONDICION DE SALUD POST'!H22","v":0},null,null,null,null,null,null,0,null,null,null,null,null,null,null,null,null,null,null,0,null,0,"",null,null,null,null,null,null,0,null,null,null,null,null,null,null,null,null,null,null,null,null,null,null,null,null,null,null,0,null,0,"",null,null,null,null,null,null,0,null,null,null,null,null,null,null,null,null,0,null,0,"",null,">48","34-48","17-33","6-16","<6",">54","45-54","35-44","20-34","<20",null,null,null,null,0]
[{"$f":"'CONDICION DE SALUD INICIAL'!A23","v":0},{"$f":"'CONDICION DE SALUD INICIAL'!B23","v":0},{"$f":"'CONDICION DE SALUD INICIAL'!C23","v":0},{"$f":"'CONDICION DE SALUD INICIAL'!D23","v":0},{"$f":"'CONDICION DE SALUD POST'!H23","v":0},null,null,null,null,null,null,0,null,null,null,null,null,null,null,null,null,null,null,0,null,0,"",null,null,null,null,null,null,0,null,null,null,null,null,null,null,null,null,null,null,null,null,null,null,null,null,null,null,0,null,0,"",null,null,null,null,null,null,0,null,null,null,null,null,null,null,null,null,0,null,0,"",null,">48","34-48","17-33","6-16","<6",">54","45-54","35-44","20-34","<20",null,null,null,null,0]
[{"$f":"'CONDICION DE SALUD INICIAL'!A24","v":0},{"$f":"'CONDICION DE SALUD INICIAL'!B24","v":0},{"$f":"'CONDICION DE SALUD INICIAL'!C24","v":0},{"$f":"'CONDICION DE SALUD INICIAL'!D24","v":0},{"$f":"'CONDICION DE SALUD POST'!H24","v":0},null,null,null,null,null,null,0,null,null,null,null,null,null,null,null,null,null,null,0,null,0,"",null,null,null,null,null,null,0,null,null,null,null,null,null,null,null,null,null,null,null,null,null,null,null,null,null,null,0,null,0,"",null,null,null,null,null,null,0,null,null,null,null,null,null,null,null,null,0,null,0,"",null,">48","34-48","17-33","6-16","<6",">54","45-54","35-44","20-34","<20",null,null,null,null,0]
[{"$f":"'CONDICION DE SALUD INICIAL'!A25","v":0},{"$f":"'CONDICION DE SALUD INICIAL'!B25","v":0},{"$f":"'CONDICION DE SALUD INICIAL'!C25","v":0},{"$f":"'CONDICION DE SALUD INICIAL'!D25","v":0},{"$f":"'CONDICION DE SALUD POST'!H25","v":0},null,null,null,null,null,null,0,null,null,null,null,null,null,null,null,null,null,null,0,null,0,"",null,null,null,null,null,null,0,null,null,null,null,null,null,null,null,null,null,null,null,null,null,null,null,null,null,null,0,null,0,"",null,null,null,null,null,null,0,null,null,null,null,null,null,null,null,null,0,null,0,"",null,">48","34-48","17-33","6-16","<6",">54","45-54","35-44","20-34","<20",null,null,null,null,0]
[{"$f":"'CONDICION DE SALUD INICIAL'!A26","v":0},{"$f":"'CONDICION DE SALUD INICIAL'!B26","v":0},{"$f":"'CONDICION DE SALUD INICIAL'!C26","v":0},{"$f":"'CONDICION DE SALUD INICIAL'!D26","v":0},{"$f":"'CONDICION DE SALUD POST'!H26","v":0},null,null,null,null,null,null,0,null,null,null,null,null,null,null,null,null,null,null,0,null,0,"",null,null,null,null,null,null,0,null,null,null,null,null,null,null,null,null,null,null,null,null,null,null,null,null,null,null,0,null,0,"",null,null,null,null,null,null,0,null,null,null,null,null,null,null,null,null,0,null,0,"",null,">48","34-48","17-33","6-16","<6",">54","45-54","35-44","20-34","<20",null,null,null,null,0]
[{"$f":"'CONDICION DE SALUD INICIAL'!A27","v":0},{"$f":"'CONDICION DE SALUD INICIAL'!B27","v":0},{"$f":"'CONDICION DE SALUD INICIAL'!C27","v":0},{"$f":"'CONDICION DE SALUD INICIAL'!D27","v":0},{"$f":"'CONDICION DE SALUD POST'!H27","v":0},null,null,null,null,null,null,0,null,null,null,null,null,null,null,null,null,null,null,0,null,0,"",null,null,null,null,null,null,0,null,null,null,null,null,null,null,null,null,null,null,null,null,null,null,null,null,null,null,0,null,0,"",null,null,null,null,null,null,0,null,null,null,null,null,null,null,null,null,0,null,0,"",null,">48","34-48","17-33","6-16","<6",">54","45-54","35-44","20-34","<20",null,null,null,null,0]
[null,null,null,null,null,null,null,null,null,null,null,null,null,null,null,null,null,null,null,null,null,null,null,null,null,null,null,null,null,null,null,null,null,null,null,null,null,null,null,null,null,null,null,null,null,null,null,null,null,null,null,null,null,null,null,null,null,null,null,null,null,null,null,"suma total de dolor/ 50 x 100 = %",null,null,null,null,null,null,null,null,null,"Puntuación total de discapacidad: / 80 x 100 =%",null,"Puntuación total:  suma dolor y dicapacidad / 130 x 100 =%"]

{"sheet":"CAPACIDAD FUNC COLUMNA POST","index":6,"n_rows":44,"n_cols":65,"rows_kept":44,"cut":false,"hidden":false,"merged":[[5,61,7,61],[5,62,7,62],[6,52,6,54],[6,55,6,57],[6,58,7,58],[6,59,7,59],[5,52,5,59],[5,23,7,23],[5,24,7,24],[5,25,7,25],[5,26,7,26],[5,27,7,27],[3,29,3,50],[3,52,3,59],[3,61,3,62],[3,64,7,64],[4,6,4,27],[4,29,6,50],[4,52,4,59],[4,61,4,62],[5,6,7,6],[5,7,7,7],[5,22,7,22],[5,11,7,11],[5,12,7,12],[5,13,7,13],[5,14,7,14],[5,15,7,15],[1,0,1,15],[3,0,7,0],[3,1,7,1],[3,2,7,2],[3,3,7,3],[3,4,7,4],[3,6,3,27],[5,8,7,8],[5,9,7,9],[5,10,7,10],[5,16,7,16],[5,17,7,17],[5,18,7,18],[5,19,7,19],[5,20,7,20],[5,21,7,21]]}
[]
["Base de Datos Intervención Terapeútica\nEvaluación capacidad funcional columna - Posterior a intervención"]
[]
["Nº","Empresa","Apellidos","Nombres","Edad",null,"INDICE DE DISCAPACIDAD EN COLUMNA CERVICAL - POSTERIOR A INTERVENCIÓN",null,null,null,null,null,null,null,null,null,null,null,null,null,null,null,null,null,null,null,null,null,null,"FUNCIONALIDAD (ESCALA DE LIMITACIÓN FUNCIONAL POR DOLOR LUMBAR DE OSWESTRY) - POSTERIOR A INTERVENCIÓN",null,null,null,null,null,null,null,null,null,null,null,null,null,null,null,null,null,null,null,null,null,null,"FUERZA - POSTERIOR A INTERVENCIÓN",null,null,null,null,null,null,null,null,"FLEXIBILIDAD - POSTERIOR A INTERVENCIÓN",null,null,"Observaciones"]
[null,null,null,null,null,null,"Este cuestionario ha sido diseñado para darnos información sobre cómo su dolor de cuello ha afectado su capacidad de manejar en la vida cotidiana. Por favor, conteste cada sección y marca en cada sección sólo el cuadro que se aplica a su caso.",null,null,null,null,null,null,null,null,null,null,null,null,null,null,null,null,null,null,null,null,null,null,"Este cuestionario ha sido diseñado para dar la información de cuanto y  cómo el dolor de espalda ha afectado la capacidad para realizar actividades en la vida diaria. ",null,null,null,null,null,null,null,null,null,null,null,null,null,null,null,null,null,null,null,null,null,null,"La capacidad de vencer una resistencia externa o reaccionar contra la misma mediante una tensión muscular. ",null,null,null,null,null,null,null,null,"Capacidad del individuo para aprovechar las posibilidades de movimiento de las articulaciones de la manera más optimas posible"]
[null,null,null,null,null,null,"Intensidad del Dolor","Calificación","Cuidado Personal (lavarse, vestirse, etc.)","Calificación","Levantar pesos ","Calificación","Lectura","Calificación","Dolor de cabeza","Calificación","Concentrarse en algo","Calificación","Trabajo","Calificación","Conducción de vehículos","Calificación","Sueño","Calificación","Actividades de ocio","Calificación","Calificación Total","Interpretación",null,null,null,null,null,null,null,null,null,null,null,null,null,null,null,null,null,null,null,null,null,null,null,null,"Prueba de puente en prono",null,null,null,null,null,null,null,null,"Prueba de flexión de tronco en V","Interpretación"]
[null,null,null,null,null,null,null,null,null,null,null,null,null,null,null,null,null,null,null,null,null,null,null,null,null,null,null,null,null,null,null,null,null,null,null,null,null,null,null,null,null,null,null,null,null,null,null,null,null,null,null,null,"Mujer",null,null,"Hombre",null,null,"Resultado de la prueba (min)","Interpretación de la prueba"]
[null,null,null,null,null,null,null,null,null,null,null,null,null,null,null,null,null,null,null,null,null,null,null,null,null,null,null,null,null,"Intensidad del dolor ","Calificación","Cuidados personales (lavarse, vestirse, etc)","Calificación","Levatar peso","Calificación","Andar","Calificación","Estar sentado","Calificación","Estar de pie ","Calificación","Dormir","Calificación","Actividad Sexual","Calificación","Vida social ","Calificación","Viajar","Calificación","Calificación ODI","Interpretación",null,"Excelente","Satisfactorio","Necesita mejorar","Excelente","Satisfactorio","Necesita mejorar"]
[{"$f":"'CONDICION DE SALUD INICIAL'!A8","v":0},{"$f":"'CONDICION DE SALUD INICIAL'!B8","v":0},{"$f":"'CONDICION DE SALUD INICIAL'!C8","v":0},{"$f":"'CONDICION DE SALUD INICIAL'!D8","v":0},{"$f":"'CONDICION DE SALUD POST'!H8","v":0},null,null,{"$f":"IF(G9=\"No tengo dolor en este momento\",\"0\",IF(G9=\"El dolor es muy leve en este momento\",\"1\",IF(G9=\"El dolor es moderado en este momento\",\"2\",IF(G9=\"El dolor es bastante severo en este momento\",\"3\",IF(G9=\"El dolor es muy severo en este momento\",\"4\",IF(G9=\"El dolor es el peor imaginable en este momento\",\"5\",IF(G9=\"\",\"\")))))))","v":""},null,{"$f":"IF(I9=\"Puedo cuidarme con normalidad sin causar dolor adicional\",\"0\",IF(I9=\"Puedo cuidarme con normalidad pero esto me aumenta el dolor\",\"1\",IF(I9=\"Cuidarme me duele de forma que tengo que hacerlo despacio y con cuidado\",\"2\",IF(I9=\"Aunque necesito alguna ayuda me las arreglo para casi todos mis cuidados\",\"3\",IF(I9=\"Todos los días necesito ayuda para la mayor parte de mis cuidados\",\"4\",IF(I9=\"No puedo vestirme, me baño con dificultad y me quedo en la cama\",\"5\",IF(I9=\"\",\"\")))))))","v":""},null,{"$f":"IF(K9=\"Puedo levantar objetos pesados sin aumento del dolor\",\"0\",IF(K9=\"Puedo levantar objetos pesados pero me aumenta el dolor\",\"1\",IF(K9=\"El dolor me impide levantar objetos pesados del suelo, pero lo puedo hacer si están colocados en un sitio fácil, como por ejemplo en una mesa\",\"2\",IF(K9=\"El dolor me impide levantar objetos pesados del suelo, pero puedo levantar objetos medianos o ligeros si están colocados en un sitio fácil\",\"3\",IF(K9=\"Solo puedo levantar objetos muy ligeros\",\"4\",IF(K9=\"No puedo levantar ni llevar ningún tipo de objeto\",\"5\",IF(K9=\"\",\"\")))))))","v":""},null,{"$f":"IF(M9=\"Puedo leer todo lo que quiera sin que me duela el cuello\",\"0\",IF(M9=\"Puedo leer todo lo que quiera con un dolor leve en el cuello\",\"1\",IF(M9=\"Puedo leer todo lo que quiera con un dolor moderado en el cuello\",\"2\",IF(M9=\"No puedo leer todo lo que quiero debido a un dolor moderado en el cuello\",\"3\",IF(M9=\"Apenas puedo leer por el gran dolor que me produce en el cuello\",\"4\",IF(M9=\"No puedo leer nada en absoluto\",\"5\",IF(M9=\"\",\"\")))))))","v":""},null,{"$f":"IF(O9=\"No tengo ningún dolor de cabeza\",\"0\",IF(O9=\"A veces tengo un pequeño dolor de cabeza\",\"1\",IF(O9=\"A veces tengo un dolor moderado de cabeza\",\"2\",IF(O9=\"Con frecuencia tengo un dolor moderado de cabeza\",\"3\",IF(O9=\"Con frecuencia tengo un dolor fuerte de cabeza\",\"4\",IF(O9=\"Tengo dolor de cabeza casi continuo\",\"5\",IF(O9=\"\",\"\")))))))","v":""},null,{"$f":"IF(Q9=\"Me concentro totalmente en algo cuando quiero sin dificultad\",\"0\",IF(Q9=\"Me concentro totalmente en algo cuando quiero con alguna dificultad\",\"1\",IF(Q9=\"Tengo alguna dificultad para concentrarme cuando quiero\",\"2\",IF(Q9=\"Tengo bastante dificultad para concentrarme cuando quiero\",\"3\",IF(Q9=\"Tengo mucha dificultad para concentrarme cuando quiero\",\"4\",IF(Q9=\"No puedo concentrarme nunca\",\"5\",IF(Q9=\"\",\"\")))))))","v":""},null,{"$f":"IF(S9=\"Puedo trabajar todo lo que quiero\",\"0\",IF(S9=\"Puedo hacer mi trabajo habitual, pero no más\",\"1\",IF(S9=\"Puedo hacer casi todo mi trabajo habitual, pero no más\",\"2\",IF(S9=\"No puedo hacer mi trabajo habitual\",\"3\",IF(S9=\"A duras penas puedo hacer algún tipo de trabajo\",\"4\",IF(S9=\"No puedo trabajar en nada\",\"5\",IF(S9=\"\",\"\")))))))","v":""},null,{"$f":"IF(U9=\"Puedo conducir sin dolor en el cuello\",\"0\",IF(U9=\"Puedo conducir todo lo que quiero, pero con un ligero dolor en el cuello\",\"1\",IF(U9=\"Puedo conducir todo lo que quiero, pero con un moderado dolor en el cuello\",\"2\",IF(U9=\"No puedo conducir todo lo que quiero debido al dolor de cuello\",\"3\",IF(U9=\"Apenas puedo conducir debido al intenso dolor de cuello\",\"4\",IF(U9=\"No puedo conducir nada por el dolor de cuello\",\"5\",IF(U9=\"\",\"\")))))))","v":""},null,{"$f":"IF(W9=\"No tengo ningún problema para dormir\",\"0\",IF(W9=\"Pierdo menos de 1 hora de sueño cada noche por el dolor de cuello\",\"1\",IF(W9=\"Pierdo de 1 a 2 horas de sueño cada noche por el dolor de cuello\",\"2\",IF(W9=\"Pierdo de 2 a 3 horas de sueño cada noche por el dolor de cuello\",\"3\",IF(W9=\"Pierdo de 3 a 5 horas de sueño cada noche por el dolor de cuello\",\"4\",IF(W9=\"Pierdo de 5 a 7 horas de sueño cada noche por el dolor de cuello\",\"5\",IF(W9=\"\",\"\")))))))","v":""},null,{"$f":"IF(Y9=\"Puedo hacer todas mis actividades de ocio sin dolor de cuello\",\"0\",IF(Y9=\"Puedo hacer todas mis actividades de ocio con algún dolor de cuello\",\"1\",IF(Y9=\"No puedo hacer alguna de mis actividades de ocio por el dolor de cuello\",\"2\",IF(Y9=\"Solo puedo hacer unas pocas actividades de ocio por el dolor de cuello\",\"3\",IF(Y9=\"Apenas puedo hacer las cosas que me gustan debido al dolor de cuello\",\"4\",IF(Y9=\"No puedo realizar ninguna actividad de ocio\",\"5\",IF(Y9=\"\",\"\")))))))","v":""},{"$f":"(H9+J9+L9+N9+P9+R9+T9+V9+X9+Z9)/50","v":{"$error":"#VALUE!"}},{"$f":"IF(AA9=0%,\"\",IF(AA9<=15%,\"Discapacidad mínima\",IF(AA9<=34%,\"Discapacidad moderada\",IF(AA9>=35%,\"Discapacidad máxima\",))))","v":{"$error":"#VALUE!"}},null,null,{"$f":"IF(AD9=\"Puedo soportar el dolor sin necesidad de tomar calmantes\",\"0\",IF(AD9=\"El dolor es fuerte pero me arreglo sin tomar calmantes\",\"1\",IF(AD9=\"Los calmantes me alivian completamente el dolor\",\"2\",IF(AD9=\"Los calmantes me alivian un poco el dolor\",\"3\",IF(AD9=\"Los calmantes apenas me alivian el dolor\",\"4\",IF(AD9=\"Los calmantes no me quitan el dolor y no los tomo\",\"5\",IF(AD9=\"\",\"\")))))))","v":""},null,{"$f":"IF(AF9=\"Me las puedo arreglar solo sin que aumente el dolor\",\"0\",IF(AF9=\"Me las puedo arreglar solo pero esto me aumenta el dolor\",\"1\",IF(AF9=\"Lavarme, vestirme, etc., me produce dolor y tengo que hacerlo despacio y con cuidado\",\"2\",IF(AF9=\"Necesito alguna ayuda pero consigo hacer la mayoría de las cosas yo solo\",\"3\",IF(AF9=\"Necesito ayuda para hacer la mayoría de las cosas\",\"4\",IF(AF9=\"No puedo vestirme, me cuesta lavarme, y suelo quedarme en la cama\",\"5\",IF(AF9=\"\",\"\")))))))","v":""},null,{"$f":"IF(AH9=\"Puedo levantar objetos pesados sin que me aumente el dolor\",\"0\",IF(AH9=\"Puedo levantar objetos pesados pero me aumenta el dolor\",\"1\",IF(AH9=\"El dolor me impide levantar objetos pesados del suelo, pero puedo hacerlo si están en un sitio cómodo (ej. En una mesa)\",\"2\",IF(AH9=\"El dolor me impide levantar objetos pesados, pero si puedo levantar objetos ligeros o medianos si están en un sitio cómodo\",\"3\",IF(AH9=\"Solo puedo levantar objetos muy ligeros\",\"4\",IF(AH9=\"No puedo levantar ni elevar ningún objeto\",\"5\",IF(AH9=\"\",\"\")))))))","v":""},null,{"$f":"IF(AJ9=\"El dolor no me impide andar\",\"0\",IF(AJ9=\"El dolor me impide andar más de 1 kilómetro\",\"1\",IF(AJ9=\"El dolor me impide andar más de 500 metros\",\"2\",IF(AJ9=\"El dolor me impide andar más de 250 metros\",\"3\",IF(AJ9=\"Sólo puedo andar con bastón o muletas\",\"4\",IF(AJ9=\"Permanezco en la cama casi todo el tiempo y tengo que ir a rastras al baño\",\"5\",IF(AJ9=\"\",\"\")))))))","v":""},null,{"$f":"IF(AL9=\"Puedo estar sentado en cualquier tipo de silla todo el tiempo que quiera\",\"0\",IF(AL9=\"Puedo estar sentado en mi silla favorita todo el tiempo que quiera\",\"1\",IF(AL9=\"El dolor me impide estar sentado más de una hora\",\"2\",IF(AL9=\"El dolor me impide estar sentado más de media hora\",\"3\",IF(AL9=\"El dolor me impide estar sentado más de diez minutos\",\"4\",IF(AL9=\"El dolor me impide estar sentado\",\"5\",IF(AL9=\"\",\"\")))))))","v":""},null,{"$f":"IF(AN9=\"Puedo estar de pie tanto tiempo como quiera sin que me aumente el dolor\",\"0\",IF(AN9=\"Puedo estar de pie tanto tiempo como quiera pero me aumenta el dolor\",\"1\",IF(AN9=\"El dolor me impide estar de pie más de una hora\",\"2\",IF(AN9=\"El dolor me impide estar de pie más de media hora\",\"3\",IF(AN9=\"El dolor me impide estar de pie más de diez minutos\",\"4\",IF(AN9=\"El dolor me impide estar de pie\",\"5\",IF(AN9=\"\",\"\")))))))","v":""},null,{"$f":"IF(AP9=\"El dolor no me impide dormir bien\",\"0\",IF(AP9=\"Sólo puedo dormir si tomo pastillas\",\"1\",IF(AP9=\"Incluso tomando pastillas duermo menos de seis horas\",\"2\",IF(AP9=\"Incluso tomando pastillas duermo menos de cuatro horas\",\"3\",IF(AP9=\"Incluso tomando pastillas duermo menos de dos horas\",\"4\",IF(AP9=\"El dolor me impide totalmente dormir\",\"5\",IF(AP9=\"\",\"\")))))))","v":""},null,{"$f":"IF(AR9=\"Mi actividad sexual es normal y no me aumenta el dolor\",\"0\",IF(AR9=\"Mi actividad sexual es normal pero me aumenta el dolor\",\"1\",IF(AR9=\"Mi actividad sexual es casi normal pero me aumenta mucho el dolor\",\"2\",IF(AR9=\"Mi actividad sexual se ha visto muy limitada a causa del dolor\",\"3\",IF(AR9=\"Mi actividad sexual es casi nula a causa del dolor\",\"4\",IF(AR9=\"El dolor me impide todo tipo de actividad sexual\",\"5\",IF(AR9=\"\",\"\")))))))","v":""},null,{"$f":"IF(AT9=\"Mi vida social es uy normal y no me aumenta el dolor\",\"0\",IF(AT9=\"Mi vida social es normal, pero me aumenta el dolor\",\"1\",IF(AT9=\"El dolor no tiene un efecto importante en mi vida social, pero impide mis actividades más enérgicas, como bailar, etc\",\"2\",IF(AT9=\"El dolor ha limitado mi vida social y no salgo tan a menudo\",\"3\",IF(AT9=\"El dolor ha limitado mi vida social al hogar\",\"4\",IF(AT9=\"No tengo vida social a causa del dolor\",\"5\",IF(AT9=\"\",\"\")))))))","v":""},null,{"$f":"IF(AV9=\"Puedo viajar a cualquier sitio sin que aumente el dolor\",\"0\",IF(AV9=\"Puedo viajar a cualquier sitio, pero me aumenta el dolor\",\"1\",IF(AV9=\"El dolor es fuerte, pero aguanto viajes de más de dos horas\",\"2\",IF(AV9=\"El dolor me limita a viajes de menos de una hora\",\"3\",IF(AV9=\"El dolor me limita a viajes cortos y necesarios de menos de media hora\",\"4\",IF(AV9=\"El dolor me impide viajar excepto para ir al médico o al hospital\",\"5\",IF(AV9=\"\",\"\")))))))","v":""},{"$f":"(AE9+AG9+AI9+AK9+AM9+AO9+AQ9+AS9+AU9+AW9)*0.02","v":{"$error":"#VALUE!"}},{"$f":"IF(AX9<20%,\"Limitación funcional mínima\",IF(AX9<40%,\"Limitación funcional moderada\",IF(AX9<60%,\"Discapacidad intensa\",IF(AX9<80%,\"Discapacidad 80%\",IF(AX9>=81%,\"Discapacidad máxima\",IF(AX9=\"\",\"\"))))))","v":{"$error":"#VALUE!"}},null,"> 2.5 min","1.8-2.2 min","< 1.8 min","> 3 min","2.0-2.5 min","< 2 min",null,null,null,null,{"$f":"IF(BJ9=\"\",\"\",IF(BJ9=\">0\",\"Buena\",IF(BJ9=0,\"Regular\",IF(BJ9=\"<0\",\"Mala\",))))","v":""}]
[{"$f":"'CONDICION DE SALUD INICIAL'!A9","v":0},{"$f":"'CONDICION DE SALUD INICIAL'!B9","v":0},{"$f":"'CONDICION DE SALUD INICIAL'!C9","v":0},{"$f":"'CONDICION DE SALUD INICIAL'!D9","v":0},{"$f":"'CONDICION DE SALUD POST'!H9","v":0},null,"El dolor es moderado en este momento","2","Cuidarme me duele de forma que tengo que hacerlo despacio y con cuidado","2","El dolor me impide levantar objetos pesados del suelo, pero lo puedo hacer si están colocados en un sitio fácil, como por ejemplo en una mesa","2","Puedo leer todo lo que quiera con un dolor leve en el cuello","1","Con frecuencia tengo un dolor fuerte de cabeza","4","Tengo bastante dificultad para concentrarme cuando quiero","3","No puedo hacer mi trabajo habitual","3","No puedo conducir nada por el dolor de cuello","5","Pierdo menos de 1 hora de sueño cada noche por el dolor de cuello","1","No puedo realizar ninguna actividad de ocio","5",0.56000000000000005,{"$f":"IF(AA10=0%,\"\",IF(AA10<=15%,\"Discapacidad mínima\",IF(AA10<=34%,\"Discapacidad moderada\",IF(AA10>=35%,\"Discapacidad máxima\",))))","v":"Discapacidad máxima"},null,"Puedo soportar el dolor sin necesidad de tomar calmantes","0","Lavarme, vestirme, etc., me produce dolor y tengo que hacerlo despacio y con cuidado","2","El dolor me impide levantar objetos pesados del suelo, pero puedo hacerlo si están en un sitio cómodo (ej. En una mesa)","2","El dolor no me impide andar","0","El dolor me impide estar sentado más de una hora","2","El dolor me impide estar de pie más de una hora","2","Incluso tomando pastillas duermo menos de seis horas","2","Mi actividad sexual se ha visto muy limitada a causa del dolor","3","El dolor no tiene un efecto importante en mi vida social, pero impide mis actividades más enérgicas, como bailar, etc","2","Puedo viajar a cualquier sitio, pero me aumenta el dolor","1",0.32,"Limitación funcional moderada",null,"> 2.5 min","1.8-2.2 min","< 1.8 min","> 3 min","2.0-2.5 min","< 2 min",null,null,null,null,""]
[{"$f":"'CONDICION DE SALUD INICIAL'!A10","v":0},{"$f":"'CONDICION DE SALUD INICIAL'!B10","v":0},{"$f":"'CONDICION DE SALUD INICIAL'!C10","v":0},{"$f":"'CONDICION DE SALUD INICIAL'!D10","v":0},{"$f":"'CONDICION DE SALUD POST'!H10","v":0},null,null,"",null,"",null,"",null,"",null,"",null,"",null,"",null,"",null,"",null,"",{"$error":"#VALUE!"},{"$error":"#VALUE!"},null,null,"",null,"",null,"",null,"",null,"",null,"",null,"",null,"",null,"",null,"",{"$error":"#VALUE!"},{"$error":"#VALUE!"},null,"> 2.5 min","1.8-2.2 min","< 1.8 min","> 3 min","2.0-2.5 min","< 2 min",null,null,null,null,""]
[{"$f":"'CONDICION DE SALUD INICIAL'!A11","v":0},{"$f":"'CONDICION DE SALUD INICIAL'!B11","v":0},{"$f":"'CONDICION DE SALUD INICIAL'!C11","v":0},{"$f":"'CONDICION DE SALUD INICIAL'!D11","v":0},{"$f":"'CONDICION DE SALUD POST'!H11","v":0},null,null,"",null,"",null,"",null,"",null,"",null,"",null,"",null,"",null,"",null,"",{"$error":"#VALUE!"},{"$error":"#VALUE!"},null,null,"",null,"",null,"",null,"",null,"",null,"",null,"",null,"",null,"",null,"",{"$error":"#VALUE!"},{"$error":"#VALUE!"},null,"> 2.5 min","1.8-2.2 min","< 1.8 min","> 3 min","2.0-2.5 min","< 2 min",null,null,null,null,""]
[{"$f":"'CONDICION DE SALUD INICIAL'!A12","v":0},{"$f":"'CONDICION DE SALUD INICIAL'!B12","v":0},{"$f":"'CONDICION DE SALUD INICIAL'!C12","v":0},{"$f":"'CONDICION DE SALUD INICIAL'!D12","v":0},{"$f":"'CONDICION DE SALUD POST'!H12","v":0},null,null,"",null,"",null,"",null,"",null,"",null,"",null,"",null,"",null,"",null,"",{"$error":"#VALUE!"},{"$error":"#VALUE!"},null,null,"",null,"",null,"",null,"",null,"",null,"",null,"",null,"",null,"",null,"",{"$error":"#VALUE!"},{"$error":"#VALUE!"},null,"> 2.5 min","1.8-2.2 min","< 1.8 min","> 3 min","2.0-2.5 min","< 2 min",null,null,null,null,""]
[{"$f":"'CONDICION DE SALUD INICIAL'!A13","v":0},{"$f":"'CONDICION DE SALUD INICIAL'!B13","v":0},{"$f":"'CONDICION DE SALUD INICIAL'!C13","v":0},{"$f":"'CONDICION DE SALUD INICIAL'!D13","v":0},{"$f":"'CONDICION DE SALUD POST'!H13","v":0},null,"El dolor es moderado en este momento","2","Puedo cuidarme con normalidad sin causar dolor adicional","0","Puedo levantar objetos pesados sin aumento del dolor","0","Puedo leer todo lo que quiera con un dolor moderado en el cuello","2","No tengo ningún dolor de cabeza","0","Me concentro totalmente en algo cuando quiero sin dificultad","0","Puedo trabajar todo lo que quiero","0","Puedo conducir sin dolor en el cuello","0","Pierdo menos de 1 hora de sueño cada noche por el dolor de cuello","1","Puedo hacer todas mis actividades de ocio con algún dolor de cuello","1",0.12,"Discapacidad mínima",null,"Puedo soportar el dolor sin necesidad de tomar calmantes","0","Me las puedo arreglar solo sin que aumente el dolor","0","Puedo levantar objetos pesados sin que me aumente el dolor","0","El dolor no me impide andar","0","Puedo estar sentado en cualquier tipo de silla todo el tiempo que quiera","0","Puedo estar de pie tanto tiempo como quiera sin que me aumente el dolor","0","El dolor no me impide dormir bien","0","Mi actividad sexual es normal y no me aumenta el dolor","0","Mi vida social es uy normal y no me aumenta el dolor","0","Puedo viajar a cualquier sitio sin que aumente el dolor","0",0,"Limitación funcional mínima",null,"> 2.5 min","1.8-2.2 min","< 1.8 min","> 3 min","2.0-2.5 min","< 2 min",null,null,null,null,""]
[{"$f":"'CONDICION DE SALUD INICIAL'!A14","v":0},{"$f":"'CONDICION DE SALUD INICIAL'!B14","v":0},{"$f":"'CONDICION DE SALUD INICIAL'!C14","v":0},{"$f":"'CONDICION DE SALUD INICIAL'!D14","v":0},{"$f":"'CONDICION DE SALUD POST'!H14","v":0},null,"El dolor es muy leve en este momento","1","Puedo cuidarme con normalidad sin causar dolor adicional","0","Puedo levantar objetos pesados pero me aumenta el dolor","1","Puedo leer todo lo que quiera con un dolor leve en el cuello","1","Con frecuencia tengo un dolor moderado de cabeza","3","Me concentro totalmente en algo cuando quiero con alguna dificultad","1","Puedo hacer casi todo mi trabajo habitual, pero no más","2","Puedo conducir sin dolor en el cuello","0","Pierdo menos de 1 hora de sueño cada noche por el dolor de cuello","1","Puedo hacer todas mis actividades de ocio con algún dolor de cuello","1",0.22,"Discapacidad moderada",null,"Puedo soportar el dolor sin necesidad de tomar calmantes","0","Me las puedo arreglar solo sin que aumente el dolor","0","Puedo levantar objetos pesados pero me aumenta el dolor","1","El dolor no me impide andar","0","Puedo estar sentado en mi silla favorita todo el tiempo que quiera","1","Puedo estar de pie tanto tiempo como quiera sin que me aumente el dolor","0","El dolor no me impide dormir bien","0","Mi actividad sexual es normal y no me aumenta el dolor","0","Mi vida social es uy normal y no me aumenta el dolor","0","Puedo viajar a cualquier sitio sin que aumente el dolor","0",0.04,"Limitación funcional mínima",null,"> 2.5 min","1.8-2.2 min","< 1.8 min","> 3 min","2.0-2.5 min","< 2 min",null,null,null,null,""]
[{"$f":"'CONDICION DE SALUD INICIAL'!A15","v":0},{"$f":"'CONDICION DE SALUD INICIAL'!B15","v":0},{"$f":"'CONDICION DE SALUD INICIAL'!C15","v":0},{"$f":"'CONDICION DE SALUD INICIAL'!D15","v":0},{"$f":"'CONDICION DE SALUD POST'!H15","v":0},null,null,"",null,"",null,"",null,"",null,"",null,"",null,"",null,"",null,"",null,"",{"$error":"#VALUE!"},{"$error":"#VALUE!"},null,null,"",null,"",null,"",null,"",null,"",null,"",null,"",null,"",null,"",null,"",{"$error":"#VALUE!"},{"$error":"#VALUE!"},null,"> 2.5 min","1.8-2.2 min","< 1.8 min","> 3 min","2.0-2.5 min","< 2 min",null,null,null,null,""]
[{"$f":"'CONDICION DE SALUD INICIAL'!A16","v":0},{"$f":"'CONDICION DE SALUD INICIAL'!B16","v":0},{"$f":"'CONDICION DE SALUD INICIAL'!C16","v":0},{"$f":"'CONDICION DE SALUD INICIAL'!D16","v":0},{"$f":"'CONDICION DE SALUD POST'!H16","v":0},null,null,"",null,"",null,"",null,"",null,"",null,"",null,"",null,"",null,"",null,"",{"$error":"#VALUE!"},{"$error":"#VALUE!"},null,null,"",null,"",null,"",null,"",null,"",null,"",null,"",null,"",null,"",null,"",{"$error":"#VALUE!"},{"$error":"#VALUE!"},null,"> 2.5 min","1.8-2.2 min","< 1.8 min","> 3 min","2.0-2.5 min","< 2 min",null,null,null,null,""]
[{"$f":"'CONDICION DE SALUD INICIAL'!A17","v":0},{"$f":"'CONDICION DE SALUD INICIAL'!B17","v":0},{"$f":"'CONDICION DE SALUD INICIAL'!C17","v":0},{"$f":"'CONDICION DE SALUD INICIAL'!D17","v":0},{"$f":"'CONDICION DE SALUD POST'!H17","v":0},null,null,"",null,"",null,"",null,"",null,"",null,"",null,"",null,"",null,"",null,"",{"$error":"#VALUE!"},{"$error":"#VALUE!"},null,null,"",null,"",null,"",null,"",null,"",null,"",null,"",null,"",null,"",null,"",{"$error":"#VALUE!"},{"$error":"#VALUE!"},null,"> 2.5 min","1.8-2.2 min","< 1.8 min","> 3 min","2.0-2.5 min","< 2 min",null,null,null,null,""]
[{"$f":"'CONDICION DE SALUD INICIAL'!A18","v":0},{"$f":"'CONDICION DE SALUD INICIAL'!B18","v":0},{"$f":"'CONDICION DE SALUD INICIAL'!C18","v":0},{"$f":"'CONDICION DE SALUD INICIAL'!D18","v":0},{"$f":"'CONDICION DE SALUD POST'!H18","v":0},null,null,"",null,"",null,"",null,"",null,"",null,"",null,"",null,"",null,"",null,"",{"$error":"#VALUE!"},{"$error":"#VALUE!"},null,null,"",null,"",null,"",null,"",null,"",null,"",null,"",null,"",null,"",null,"",{"$error":"#VALUE!"},{"$error":"#VALUE!"},null,"> 2.5 min","1.8-2.2 min","< 1.8 min","> 3 min","2.0-2.5 min","< 2 min",null,null,null,null,""]
[{"$f":"'CONDICION DE SALUD INICIAL'!A19","v":0},{"$f":"'CONDICION DE SALUD INICIAL'!B19","v":0},{"$f":"'CONDICION DE SALUD INICIAL'!C19","v":0},{"$f":"'CONDICION DE SALUD INICIAL'!D19","v":0},{"$f":"'CONDICION DE SALUD POST'!H19","v":0},null,null,"",null,"",null,"",null,"",null,"",null,"",null,"",null,"",null,"",null,"",{"$error":"#VALUE!"},{"$error":"#VALUE!"},null,null,"",null,"",null,"",null,"",null,"",null,"",null,"",null,"",null,"",null,"",{"$error":"#VALUE!"},{"$error":"#VALUE!"},null,"> 2.5 min","1.8-2.2 min","< 1.8 min","> 3 min","2.0-2.5 min","< 2 min",null,null,null,null,""]
[{"$f":"'CONDICION DE SALUD INICIAL'!A20","v":0},{"$f":"'CONDICION DE SALUD INICIAL'!B20","v":0},{"$f":"'CONDICION DE SALUD INICIAL'!C20","v":0},{"$f":"'CONDICION DE SALUD INICIAL'!D20","v":0},{"$f":"'CONDICION DE SALUD POST'!H20","v":0},null,null,"",null,"",null,"",null,"",null,"",null,"",null,"",null,"",null,"",null,"",{"$error":"#VALUE!"},{"$error":"#VALUE!"},null,null,"",null,"",null,"",null,"",null,"",null,"",null,"",null,"",null,"",null,"",{"$error":"#VALUE!"},{"$error":"#VALUE!"},null,"> 2.5 min","1.8-2.2 min","< 1.8 min","> 3 min","2.0-2.5 min","< 2 min",null,null,null,null,""]
[{"$f":"'CONDICION DE SALUD INICIAL'!A21","v":0},{"$f":"'CONDICION DE SALUD INICIAL'!B21","v":0},{"$f":"'CONDICION DE SALUD INICIAL'!C21","v":0},{"$f":"'CONDICION DE SALUD INICIAL'!D21","v":0},{"$f":"'CONDICION DE SALUD POST'!H21","v":0},null,"El dolor es moderado en este momento","2","Cuidarme me duele de forma que tengo que hacerlo despacio y con cuidado","2","Solo puedo levantar objetos muy ligeros","4","No puedo leer todo lo que quiero debido a un dolor moderado en el cuello","3","A veces tengo un dolor moderado de cabeza","2","Tengo alguna dificultad para concentrarme cuando quiero","2","Puedo hacer casi todo mi trabajo habitual, pero no más","2",null,"",null,"",null,"",{"$error":"#VALUE!"},{"$error":"#VALUE!"},null,null,"",null,"",null,"",null,"",null,"",null,"",null,"",null,"",null,"",null,"",{"$error":"#VALUE!"},{"$error":"#VALUE!"},null,"> 2.5 min","1.8-2.2 min","< 1.8 min","> 3 min","2.0-2.5 min","< 2 min",null,null,null,null,""]
[{"$f":"'CONDICION DE SALUD INICIAL'!A22","v":0},{"$f":"'CONDICION DE SALUD INICIAL'!B22","v":0},{"$f":"'CONDICION DE SALUD INICIAL'!C22","v":0},{"$f":"'CONDICION DE SALUD INICIAL'!D22","v":0},{"$f":"'CONDICION DE SALUD POST'!H22","v":0},null,null,"",null,"",null,"",null,"",null,"",null,"",null,"",null,"",null,"",null,"",{"$error":"#VALUE!"},{"$error":"#VALUE!"},null,null,"",null,"",null,"",null,"",null,"",null,"",null,"",null,"",null,"",null,"",{"$error":"#VALUE!"},{"$error":"#VALUE!"},null,"> 2.5 min","1.8-2.2 min","< 1.8 min","> 3 min","2.0-2.5 min","< 2 min",null,null,null,null,""]
[{"$f":"'CONDICION DE SALUD INICIAL'!A23","v":0},{"$f":"'CONDICION DE SALUD INICIAL'!B23","v":0},{"$f":"'CONDICION DE SALUD INICIAL'!C23","v":0},{"$f":"'CONDICION DE SALUD INICIAL'!D23","v":0},{"$f":"'CONDICION DE SALUD POST'!H23","v":0},null,null,"",null,"",null,"",null,"",null,"",null,"",null,"",null,"",null,"",null,"",{"$error":"#VALUE!"},{"$error":"#VALUE!"},null,null,"",null,"",null,"",null,"",null,"",null,"",null,"",null,"",null,"",null,"",{"$error":"#VALUE!"},{"$error":"#VALUE!"},null,"> 2.5 min","1.8-2.2 min","< 1.8 min","> 3 min","2.0-2.5 min","< 2 min",null,null,null,null,""]
[{"$f":"'CONDICION DE SALUD INICIAL'!A24","v":0},{"$f":"'CONDICION DE SALUD INICIAL'!B24","v":0},{"$f":"'CONDICION DE SALUD INICIAL'!C24","v":0},{"$f":"'CONDICION DE SALUD INICIAL'!D24","v":0},{"$f":"'CONDICION DE SALUD POST'!H24","v":0},null,null,"",null,"",null,"",null,"",null,"",null,"",null,"",null,"",null,"",null,"",{"$error":"#VALUE!"},{"$error":"#VALUE!"},null,null,"",null,"",null,"",null,"",null,"",null,"",null,"",null,"",null,"",null,"",{"$error":"#VALUE!"},{"$error":"#VALUE!"},null,"> 2.5 min","1.8-2.2 min","< 1.8 min","> 3 min","2.0-2.5 min","< 2 min",null,null,null,null,""]
[{"$f":"'CONDICION DE SALUD INICIAL'!A25","v":0},{"$f":"'CONDICION DE SALUD INICIAL'!B25","v":0},{"$f":"'CONDICION DE SALUD INICIAL'!C25","v":0},{"$f":"'CONDICION DE SALUD INICIAL'!D25","v":0},{"$f":"'CONDICION DE SALUD POST'!H25","v":0},null,null,"",null,"",null,"",null,"",null,"",null,"",null,"",null,"",null,"",null,"",{"$error":"#VALUE!"},{"$error":"#VALUE!"},null,null,"",null,"",null,"",null,"",null,"",null,"",null,"",null,"",null,"",null,"",{"$error":"#VALUE!"},{"$error":"#VALUE!"},null,"> 2.5 min","1.8-2.2 min","< 1.8 min","> 3 min","2.0-2.5 min","< 2 min",null,null,null,null,""]
[{"$f":"'CONDICION DE SALUD INICIAL'!A26","v":0},{"$f":"'CONDICION DE SALUD INICIAL'!B26","v":0},{"$f":"'CONDICION DE SALUD INICIAL'!C26","v":0},{"$f":"'CONDICION DE SALUD INICIAL'!D26","v":0},{"$f":"'CONDICION DE SALUD POST'!H26","v":0},null,null,"",null,"",null,"",null,"",null,"",null,"",null,"",null,"",null,"",null,"",{"$error":"#VALUE!"},{"$error":"#VALUE!"},null,null,"",null,"",null,"",null,"",null,"",null,"",null,"",null,"",null,"",null,"",{"$error":"#VALUE!"},{"$error":"#VALUE!"},null,"> 2.5 min","1.8-2.2 min","< 1.8 min","> 3 min","2.0-2.5 min","< 2 min",null,null,null,null,""]
[{"$f":"'CONDICION DE SALUD INICIAL'!A27","v":0},{"$f":"'CONDICION DE SALUD INICIAL'!B27","v":0},{"$f":"'CONDICION DE SALUD INICIAL'!C27","v":0},{"$f":"'CONDICION DE SALUD INICIAL'!D27","v":0},{"$f":"'CONDICION DE SALUD POST'!H27","v":0},null,null,"",null,"",null,"",null,"",null,"",null,"",null,"",null,"",null,"",null,"",{"$error":"#VALUE!"},{"$error":"#VALUE!"},null,null,"",null,"",null,"",null,"",null,"",null,"",null,"",null,"",null,"",null,"",{"$error":"#VALUE!"},{"$error":"#VALUE!"},null,"> 2.5 min","1.8-2.2 min","< 1.8 min","> 3 min","2.0-2.5 min","< 2 min",null,null,null,null,""]
[]
[]
[]
[]
[]
[]
[]
[]
[]
[]
[]
[]
[]
[]
[]
[null,null,null,null,null,null,null,null,null,null,null,null,null,null,null,null,null,null,null,null,null,null,null,null,null,null,null,null,null,null,null,null,null,null,null,null,null,null,null,null,null,null,null,null,null,null,null,null,null,null,null,null,null,null,null,null,null,null,null,null,null,"abdominales"]

{"sheet":"BASE DE DATOS CONSOLIDADO","index":7,"n_rows":29,"n_cols":69,"rows_kept":29,"cut":false,"hidden":false,"merged":[[6,43,8,43],[3,22,3,44],[4,56,4,64],[5,56,5,57],[5,58,5,59],[5,60,5,61],[4,34,4,44],[5,34,5,35],[5,36,5,37],[5,38,5,39],[5,40,5,41],[5,42,5,43],[5,44,8,44],[6,34,8,34],[6,35,8,35],[6,36,8,36],[3,68,8,68],[6,62,8,62],[6,63,8,63],[3,46,3,64],[3,66,8,66],[5,62,5,63],[5,64,8,64],[6,56,8,56],[6,57,8,57],[6,58,8,58],[6,59,8,59],[6,60,8,60],[6,61,8,61],[6,42,8,42],[4,18,4,20],[5,18,8,18],[5,19,8,19],[5,20,8,20],[6,30,8,30],[6,31,8,31],[5,22,5,23],[5,24,5,25],[5,26,5,27],[5,28,5,29],[6,37,8,37],[6,38,8,38],[6,39,8,39],[6,40,8,40],[6,41,8,41],[3,14,3,20],[5,54,8,54],[4,46,4,54],[5,46,5,47],[5,48,5,49],[6,46,8,46],[6,47,8,47],[6,48,8,48],[6,49,8,49],[5,50,5,51],[5,52,5,53],[6,50,8,50],[6,51,8,51],[6,52,8,52],[6,53,8,53],[6,29,8,29],[3,5,8,5],[5,30,5,31],[1,0,1,13],[5,14,8,14],[5,15,8,15],[5,16,8,16],[4,14,4,16],[6,22,8,22],[6,23,8,23],[6,24,8,24],[6,25,8,25],[4,22,4,32],[5,32,8,32],[6,26,8,26],[6,27,8,27],[6,28,8,28],[3,1,8,1],[3,0,8,0],[3,2,8,2],[3,3,8,3],[3,4,8,4],[3,11,8,11],[3,12,8,12],[3,6,8,6],[3,7,8,7],[3,8,8,8],[3,9,8,9],[3,10,8,10]]}
[]
["Base de datos consolidados"]
[]
["Nº","Apellidos","Nombres","Empresa","Fecha de evaluación inicial","Fecha de evaluación posterior a intervención","Cédula","Fecha de Nacimiento","Edad","Presenta algún desorden músculo esquelético","Listado de desórdenes músculo esqueléticos","Nivel de dolor inicial","Nivel de dolor posterior",null,"CONDICIÓN DE SALUD",null,null,null,null,null,null,null,"CAPACIDAD FUNCIONAL MIEMBROS SUPERIORES",null,null,null,null,null,null,null,null,null,null,null,null,null,null,null,null,null,null,null,null,null,null,null,"CAPACIDAD FUNCIONAL COLUMNA",null,null,null,null,null,null,null,null,null,null,null,null,null,null,null,null,null,null,null,"CONCLUSIONES DE LA ACTIVIDAD LABORAL",null,"RECOMENDACIONES DE LA ACTIVIDAD LABORAL"]
[null,null,null,null,null,null,null,null,null,null,null,null,null,null,"INICIAL ",null,null,null,"POSTERIOR A INTERVENCIÓN",null,null,null,"INICIAL",null,null,null,null,null,null,null,null,null,null,null,"POSTERIOR A INTERVENCIÓN",null,null,null,null,null,null,null,null,null,null,null,"INICIAL",null,null,null,null,null,null,null,null,null,"POSTERIOR A INTERVENCIÓN"]
[null,null,null,null,null,null,null,null,null,null,null,null,null,null,"Calificación total","Interpretación","Observaciones",null,"Calificación total","Interpretación","Observaciones",null,"DOLOR ( PATIENT RATED WRIST EVALUATION (PRWE))",null,"THE PATIENT - RATED ELBOW EVALUATION (PREE) - CODO",null,"SHOULDER PAIN DISABILITY INDEX (SPADI) ",null,"FUERZA",null,"FLEXIBILIDAD",null,"Observaciones",null,"DOLOR (PATIENT RATED WRIST EVALUATION (PRWE))",null,"THE PATIENT - RATED ELBOW EVALUATION (PREE) - CODO",null,"SHOULDER PAIN DISABILITY INDEX (SPADI) ",null,"FUERZA",null,"FLEXIBILIDAD",null,"Observaciones",null,"INDICE DE DISCAPACIDAD EN COLUMNA CERVICAL",null,"FUNCIONALIDAD (ESCALA DE DISCAPACIDAD POR DOLOR LUMBAR DE OSWESTRY)",null,"FUERZA",null,"FLEXIBILIDAD",null,"Observaciones",null,"INDICE DE DISCAPACIDAD EN COLUMNA CERVICAL",null,"FUNCIONALIDAD (ESCALA DE DISCAPACIDAD POR DOLOR LUMBAR DE OSWESTRY)",null,"FUERZA",null,"FLEXIBILIDAD",null,"Observaciones"]
[null,null,null,null,null,null,null,null,null,null,null,null,null,null,null,null,null,null,null,null,null,null,"Puntuación total","Interpretación","Puntuación total","Interpretación","Puntuación total","Interpretación","No. de flexiones ejecutadas","Interpretación","Alcance posterior manos","Interpretación",null,null,"Puntuación total","Interpretación","Puntuación total","Interpretación","Puntuación total","Interpretación","No. de flexiones ejecutadas","Interpretación","Alcance posterior manos","Interpretación",null,null,"Calificación Total","Interpretación","Calificación ODI","Interpretación","Resultado de la prueba (min)","Interpretación de la prueba","Prueba de flexión de tronco en V","Interpretación",null,null,"Calificación Total","Interpretación","Calificación ODI","Interpretación","Resultado de la prueba (min)","Interpretación de la prueba","Prueba de flexión de tronco en V","Interpretación"]
[]
[]
[{"$f":"'CONDICION DE SALUD INICIAL'!A8","v":0},{"$f":"'CONDICION DE SALUD INICIAL'!C8","v":0},{"$f":"'CONDICION DE SALUD INICIAL'!D8","v":0},{"$f":"'CONDICION DE SALUD INICIAL'!B8","v":0},{"$f":"'CONDICION DE SALUD INICIAL'!F8","v":"00:00:00"},{"$f":"'CONDICION DE SALUD POST'!F8","v":"00:00:00"},{"$f":"'CONDICION DE SALUD INICIAL'!E8","v":0},{"$f":"'CONDICION DE SALUD INICIAL'!G8","v":"00:00:00"},{"$f":"'CONDICION DE SALUD INICIAL'!H8","v":0},{"$f":"'CONDICION DE SALUD INICIAL'!I8","v":"SI"},{"$f":"'CONDICION DE SALUD INICIAL'!J8","v":0},{"$f":"'CONDICION DE SALUD INICIAL'!K8","v":"MEDIO"},{"$f":"'CONDICION DE SALUD POST'!K8","v":0},null,{"$f":"'CONDICION DE SALUD INICIAL'!AJ8","v":30},{"$f":"'CONDICION DE SALUD INICIAL'!AK8","v":"REGULAR"},{"$f":"'CONDICION DE SALUD INICIAL'!AL8","v":0},null,{"$f":"'CONDICION DE SALUD POST'!AJ8","v":11},{"$f":"'CONDICION DE SALUD POST'!AK8","v":"BUENO"},{"$f":"'CONDICION DE SALUD POST'!AL8","v":0},null,{"$f":"'CAPACIDAD FUNC MMSS INICIAL'!Z8","v":0},{"$f":"'CAPACIDAD FUNC MMSS INICIAL'!AA8","v":""},{"$f":"'CAPACIDAD FUNC MMSS INICIAL'!BD8","v":0},{"$f":"'CAPACIDAD FUNC MMSS INICIAL'!BE8","v":""},{"$f":"'CAPACIDAD FUNC MMSS INICIAL'!BX8","v":0},{"$f":"'CAPACIDAD FUNC MMSS INICIAL'!BY8","v":""},{"$f":"'CAPACIDAD FUNC MMSS INICIAL'!CK8","v":0},{"$f":"'CAPACIDAD FUNC MMSS INICIAL'!CL8","v":"Pobre"},{"$f":"'CAPACIDAD FUNC MMSS INICIAL'!CN8","v":"No se logra el contacto entre las manos"},{"$f":"'CAPACIDAD FUNC MMSS INICIAL'!CO8","v":"Mala"},{"$f":"'CAPACIDAD FUNC MMSS INICIAL'!CQ9","v":0},null,{"$f":"'CAPACIDAD FUNC MMSS POST'!Z8","v":0},{"$f":"'CAPACIDAD FUNC MMSS POST'!AA8","v":""},{"$f":"'CAPACIDAD FUNC MMSS POST'!BD8","v":0},{"$f":"'CAPACIDAD FUNC MMSS POST'!BE8","v":""},{"$f":"'CAPACIDAD FUNC MMSS POST'!BX8","v":1.8749999999999999E-2},{"$f":"'CAPACIDAD FUNC MMSS POST'!BY8","v":"Limitación funcional mínima"},{"$f":"'CAPACIDAD FUNC MMSS POST'!CK8","v":0},{"$f":"'CAPACIDAD FUNC MMSS POST'!CL8","v":0},{"$f":"'CAPACIDAD FUNC COLUMNA POST'!BJ9","v":0},{"$f":"'CAPACIDAD FUNC COLUMNA POST'!BK9","v":""},{"$f":"'CAPACIDAD FUNC COLUMNA POST'!BM9","v":0},null,{"$f":"'CAPACIDAD FUNC COLUMNA INICIAL'!AA9","v":0.64},{"$f":"'CAPACIDAD FUNC COLUMNA INICIAL'!AB9","v":"Discapacidad máxima"},{"$f":"'CAPACIDAD FUNC COLUMNA INICIAL'!AX9","v":0.34},{"$f":"'CAPACIDAD FUNC COLUMNA INICIAL'!AY9","v":"Limitación funcional moderada"},{"$f":"'CAPACIDAD FUNC COLUMNA INICIAL'!BG9","v":"<2min"},{"$f":"'CAPACIDAD FUNC COLUMNA INICIAL'!BH9","v":"Necesita Mejorar"},{"$f":"'CAPACIDAD FUNC COLUMNA INICIAL'!BJ9","v":0},{"$f":"'CAPACIDAD FUNC COLUMNA INICIAL'!BK9","v":""},{"$f":"'CAPACIDAD FUNC COLUMNA INICIAL'!BM9","v":0},null,{"$f":"'CAPACIDAD FUNC COLUMNA POST'!AA9","v":{"$error":"#VALUE!"}},{"$f":"'CAPACIDAD FUNC COLUMNA POST'!AB9","v":{"$error":"#VALUE!"}},{"$f":"'CAPACIDAD FUNC COLUMNA POST'!AX9","v":{"$error":"#VALUE!"}},{"$f":"'CAPACIDAD FUNC COLUMNA POST'!AY9","v":{"$error":"#VALUE!"}},{"$f":"'CAPACIDAD FUNC COLUMNA POST'!BG9","v":0},{"$f":"'CAPACIDAD FUNC COLUMNA POST'!BH9","v":0},{"$f":"'CAPACIDAD FUNC COLUMNA POST'!BJ9","v":0},{"$f":"'CAPACIDAD FUNC COLUMNA POST'!BK9","v":""},{"$f":"'CAPACIDAD FUNC COLUMNA POST'!BM9","v":0}]
[{"$f":"'CONDICION DE SALUD INICIAL'!A9","v":0},{"$f":"'CONDICION DE SALUD INICIAL'!C9","v":0},{"$f":"'CONDICION DE SALUD INICIAL'!D9","v":0},{"$f":"'CONDICION DE SALUD INICIAL'!B9","v":0},{"$f":"'CONDICION DE SALUD INICIAL'!F9","v":"00:00:00"},{"$f":"'CONDICION DE SALUD POST'!F9","v":"00:00:00"},{"$f":"'CONDICION DE SALUD INICIAL'!E9","v":0},{"$f":"'CONDICION DE SALUD INICIAL'!G9","v":"00:00:00"},{"$f":"'CONDICION DE SALUD INICIAL'!H9","v":0},{"$f":"'CONDICION DE SALUD INICIAL'!I9","v":0},{"$f":"'CONDICION DE SALUD INICIAL'!J9","v":0},{"$f":"'CONDICION DE SALUD INICIAL'!K9","v":"ALTO"},{"$f":"'CONDICION DE SALUD POST'!K9","v":"MEDIO"},null,{"$f":"'CONDICION DE SALUD INICIAL'!AJ9","v":30},{"$f":"'CONDICION DE SALUD INICIAL'!AK9","v":"REGULAR"},{"$f":"'CONDICION DE SALUD INICIAL'!AL9","v":0},null,{"$f":"'CONDICION DE SALUD POST'!AJ9","v":23},{"$f":"'CONDICION DE SALUD POST'!AK9","v":"REGULAR"},{"$f":"'CONDICION DE SALUD POST'!AL9","v":0},null,{"$f":"'CAPACIDAD FUNC MMSS INICIAL'!Z9","v":0.64},{"$f":"'CAPACIDAD FUNC MMSS INICIAL'!AA9","v":"Limitación funcional moderada"},{"$f":"'CAPACIDAD FUNC MMSS INICIAL'!BD9","v":0.58111111111111113},{"$f":"'CAPACIDAD FUNC MMSS INICIAL'!BE9","v":"Limitación funcional moderada"},{"$f":"'CAPACIDAD FUNC MMSS INICIAL'!BX9","v":0.66625000000000001},{"$f":"'CAPACIDAD FUNC MMSS INICIAL'!BY9","v":"Limitación funcional alta"},{"$f":"'CAPACIDAD FUNC MMSS INICIAL'!CK9","v":0},{"$f":"'CAPACIDAD FUNC MMSS INICIAL'!CL9","v":0},{"$f":"'CAPACIDAD FUNC MMSS INICIAL'!CN9","v":0},{"$f":"'CAPACIDAD FUNC MMSS INICIAL'!CO9","v":0},{"$f":"'CAPACIDAD FUNC MMSS INICIAL'!CQ10","v":0},null,{"$f":"'CAPACIDAD FUNC MMSS POST'!Z9","v":0.55000000000000004},{"$f":"'CAPACIDAD FUNC MMSS POST'!AA9","v":"Limitación funcional moderada"},{"$f":"'CAPACIDAD FUNC MMSS POST'!BD9","v":0.46333333333333337},{"$f":"'CAPACIDAD FUNC MMSS POST'!BE9","v":"Limitación funcional moderada"},{"$f":"'CAPACIDAD FUNC MMSS POST'!BX9","v":0.5461538461538461},{"$f":"'CAPACIDAD FUNC MMSS POST'!BY9","v":"Limitación funcional moderada"},{"$f":"'CAPACIDAD FUNC MMSS POST'!CK9","v":0},{"$f":"'CAPACIDAD FUNC MMSS POST'!CL9","v":0},{"$f":"'CAPACIDAD FUNC COLUMNA POST'!BJ10","v":0},{"$f":"'CAPACIDAD FUNC COLUMNA POST'!BK10","v":""},{"$f":"'CAPACIDAD FUNC COLUMNA POST'!BM10","v":0},null,{"$f":"'CAPACIDAD FUNC COLUMNA INICIAL'!AA10","v":0.08},{"$f":"'CAPACIDAD FUNC COLUMNA INICIAL'!AB10","v":"Discapacidad mínima"},{"$f":"'CAPACIDAD FUNC COLUMNA INICIAL'!AX10","v":0.44},{"$f":"'CAPACIDAD FUNC COLUMNA INICIAL'!AY10","v":"Discapacidad intensa"},{"$f":"'CAPACIDAD FUNC COLUMNA INICIAL'!BG10","v":0},{"$f":"'CAPACIDAD FUNC COLUMNA INICIAL'!BH10","v":0},{"$f":"'CAPACIDAD FUNC COLUMNA INICIAL'!BJ10","v":"<0"},{"$f":"'CAPACIDAD FUNC COLUMNA INICIAL'!BK10","v":"Mala"},{"$f":"'CAPACIDAD FUNC COLUMNA INICIAL'!BM10","v":0},null,{"$f":"'CAPACIDAD FUNC COLUMNA POST'!AA10","v":0.56000000000000005},{"$f":"'CAPACIDAD FUNC COLUMNA POST'!AB10","v":"Discapacidad máxima"},{"$f":"'CAPACIDAD FUNC COLUMNA POST'!AX10","v":0.32},{"$f":"'CAPACIDAD FUNC COLUMNA POST'!AY10","v":"Limitación funcional moderada"},{"$f":"'CAPACIDAD FUNC COLUMNA POST'!BG10","v":0},{"$f":"'CAPACIDAD FUNC COLUMNA POST'!BH10","v":0},{"$f":"'CAPACIDAD FUNC COLUMNA POST'!BJ10","v":0},{"$f":"'CAPACIDAD FUNC COLUMNA POST'!BK10","v":""},{"$f":"'CAPACIDAD FUNC COLUMNA POST'!BM10","v":0}]
[{"$f":"'CONDICION DE SALUD INICIAL'!A10","v":0},{"$f":"'CONDICION DE SALUD INICIAL'!C10","v":0},{"$f":"'CONDICION DE SALUD INICIAL'!D10","v":0},{"$f":"'CONDICION DE SALUD INICIAL'!B10","v":0},{"$f":"'CONDICION DE SALUD INICIAL'!F10","v":"00:00:00"},{"$f":"'CONDICION DE SALUD POST'!F10","v":"00:00:00"},{"$f":"'CONDICION DE SALUD INICIAL'!E10","v":0},{"$f":"'CONDICION DE SALUD INICIAL'!G10","v":"00:00:00"},{"$f":"'CONDICION DE SALUD INICIAL'!H10","v":0},{"$f":"'CONDICION DE SALUD INICIAL'!I10","v":"SI"},{"$f":"'CONDICION DE SALUD INICIAL'!J10","v":0},{"$f":"'CONDICION DE SALUD INICIAL'!K10","v":"MEDIO"},{"$f":"'CONDICION DE SALUD POST'!K10","v":0},null,{"$f":"'CONDICION DE SALUD INICIAL'!AJ10","v":26},{"$f":"'CONDICION DE SALUD INICIAL'!AK10","v":"REGULAR"},{"$f":"'CONDICION DE SALUD INICIAL'!AL10","v":0},null,{"$f":"'CONDICION DE SALUD POST'!AJ10","v":0},{"$f":"'CONDICION DE SALUD POST'!AK10","v":""},{"$f":"'CONDICION DE SALUD POST'!AL10","v":0},null,{"$f":"'CAPACIDAD FUNC MMSS INICIAL'!Z10","v":0.16500000000000001},{"$f":"'CAPACIDAD FUNC MMSS INICIAL'!AA10","v":"Limitación funcional mínima"},{"$f":"'CAPACIDAD FUNC MMSS INICIAL'!BD10","v":0},{"$f":"'CAPACIDAD FUNC MMSS INICIAL'!BE10","v":""},{"$f":"'CAPACIDAD FUNC MMSS INICIAL'!BX10","v":0},{"$f":"'CAPACIDAD FUNC MMSS INICIAL'!BY10","v":""},{"$f":"'CAPACIDAD FUNC MMSS INICIAL'!CK10","v":0},{"$f":"'CAPACIDAD FUNC MMSS INICIAL'!CL10","v":0},{"$f":"'CAPACIDAD FUNC MMSS INICIAL'!CN10","v":"Entran en contacto puntas de los dedos medios"},{"$f":"'CAPACIDAD FUNC MMSS INICIAL'!CO10","v":"Regular"},{"$f":"'CAPACIDAD FUNC MMSS INICIAL'!CQ11","v":0},null,{"$f":"'CAPACIDAD FUNC MMSS POST'!Z10","v":0},{"$f":"'CAPACIDAD FUNC MMSS POST'!AA10","v":""},{"$f":"'CAPACIDAD FUNC MMSS POST'!BD10","v":0},{"$f":"'CAPACIDAD FUNC MMSS POST'!BE10","v":""},{"$f":"'CAPACIDAD FUNC MMSS POST'!BX10","v":7.6923076923076927E-3},{"$f":"'CAPACIDAD FUNC MMSS POST'!BY10","v":"Limitación funcional mínima"},{"$f":"'CAPACIDAD FUNC MMSS POST'!CK10","v":0},{"$f":"'CAPACIDAD FUNC MMSS POST'!CL10","v":"Excelente"},{"$f":"'CAPACIDAD FUNC COLUMNA POST'!BJ11","v":0},{"$f":"'CAPACIDAD FUNC COLUMNA POST'!BK11","v":""},{"$f":"'CAPACIDAD FUNC COLUMNA POST'!BM11","v":0},null,{"$f":"'CAPACIDAD FUNC COLUMNA INICIAL'!AA11","v":0.3},{"$f":"'CAPACIDAD FUNC COLUMNA INICIAL'!AB11","v":"Discapacidad moderada"},{"$f":"'CAPACIDAD FUNC COLUMNA INICIAL'!AX11","v":0.02},{"$f":"'CAPACIDAD FUNC COLUMNA INICIAL'!AY11","v":"Limitación funcional mínima"},{"$f":"'CAPACIDAD FUNC COLUMNA INICIAL'!BG11","v":"37 segundos"},{"$f":"'CAPACIDAD FUNC COLUMNA INICIAL'!BH11","v":"Necesita Mejorar"},{"$f":"'CAPACIDAD FUNC COLUMNA INICIAL'!BJ11","v":0},{"$f":"'CAPACIDAD FUNC COLUMNA INICIAL'!BK11","v":""},{"$f":"'CAPACIDAD FUNC COLUMNA INICIAL'!BM11","v":0},null,{"$f":"'CAPACIDAD FUNC COLUMNA POST'!AA11","v":{"$error":"#VALUE!"}},{"$f":"'CAPACIDAD FUNC COLUMNA POST'!AB11","v":{"$error":"#VALUE!"}},{"$f":"'CAPACIDAD FUNC COLUMNA POST'!AX11","v":{"$error":"#VALUE!"}},{"$f":"'CAPACIDAD FUNC COLUMNA POST'!AY11","v":{"$error":"#VALUE!"}},{"$f":"'CAPACIDAD FUNC COLUMNA POST'!BG11","v":0},{"$f":"'CAPACIDAD FUNC COLUMNA POST'!BH11","v":0},{"$f":"'CAPACIDAD FUNC COLUMNA POST'!BJ11","v":0},{"$f":"'CAPACIDAD FUNC COLUMNA POST'!BK11","v":""},{"$f":"'CAPACIDAD FUNC COLUMNA POST'!BM11","v":0}]
[{"$f":"'CONDICION DE SALUD INICIAL'!A11","v":0},{"$f":"'CONDICION DE SALUD INICIAL'!C11","v":0},{"$f":"'CONDICION DE SALUD INICIAL'!D11","v":0},{"$f":"'CONDICION DE SALUD INICIAL'!B11","v":0},{"$f":"'CONDICION DE SALUD INICIAL'!F11","v":"00:00:00"},{"$f":"'CONDICION DE SALUD POST'!F11","v":"00:00:00"},{"$f":"'CONDICION DE SALUD INICIAL'!E11","v":0},{"$f":"'CONDICION DE SALUD INICIAL'!G11","v":"00:00:00"},{"$f":"'CONDICION DE SALUD INICIAL'!H11","v":0},{"$f":"'CONDICION DE SALUD INICIAL'!I11","v":"SI"},{"$f":"'CONDICION DE SALUD INICIAL'!J11","v":0},{"$f":"'CONDICION DE SALUD INICIAL'!K11","v":"ALTO"},{"$f":"'CONDICION DE SALUD POST'!K11","v":0},null,{"$f":"'CONDICION DE SALUD INICIAL'!AJ11","v":27},{"$f":"'CONDICION DE SALUD INICIAL'!AK11","v":"REGULAR"},{"$f":"'CONDICION DE SALUD INICIAL'!AL11","v":0},null,{"$f":"'CONDICION DE SALUD POST'!AJ11","v":0},{"$f":"'CONDICION DE SALUD POST'!AK11","v":""},{"$f":"'CONDICION DE SALUD POST'!AL11","v":0},null,{"$f":"'CAPACIDAD FUNC MMSS INICIAL'!Z11","v":0.81},{"$f":"'CAPACIDAD FUNC MMSS INICIAL'!AA11","v":"Limitación funcional alta"},{"$f":"'CAPACIDAD FUNC MMSS INICIAL'!BD11","v":0.84722222222222221},{"$f":"'CAPACIDAD FUNC MMSS INICIAL'!BE11","v":"Limitación funcional alta"},{"$f":"'CAPACIDAD FUNC MMSS INICIAL'!BX11","v":0.88500000000000001},{"$f":"'CAPACIDAD FUNC MMSS INICIAL'!BY11","v":"Limitación funcional alta"},{"$f":"'CAPACIDAD FUNC MMSS INICIAL'!CK11","v":0},{"$f":"'CAPACIDAD FUNC MMSS INICIAL'!CL11","v":0},{"$f":"'CAPACIDAD FUNC MMSS INICIAL'!CN11","v":"No se logra el contacto entre las manos"},{"$f":"'CAPACIDAD FUNC MMSS INICIAL'!CO11","v":"Mala"},{"$f":"'CAPACIDAD FUNC MMSS INICIAL'!CQ12","v":0},null,{"$f":"'CAPACIDAD FUNC MMSS POST'!Z11","v":0},{"$f":"'CAPACIDAD FUNC MMSS POST'!AA11","v":""},{"$f":"'CAPACIDAD FUNC MMSS POST'!BD11","v":0},{"$f":"'CAPACIDAD FUNC MMSS POST'!BE11","v":""},{"$f":"'CAPACIDAD FUNC MMSS POST'!BX11","v":2.3076923076923078E-2},{"$f":"'CAPACIDAD FUNC MMSS POST'!BY11","v":"Limitación funcional mínima"},{"$f":"'CAPACIDAD FUNC MMSS POST'!CK11","v":0},{"$f":"'CAPACIDAD FUNC MMSS POST'!CL11","v":0},{"$f":"'CAPACIDAD FUNC COLUMNA POST'!BJ12","v":0},{"$f":"'CAPACIDAD FUNC COLUMNA POST'!BK12","v":""},{"$f":"'CAPACIDAD FUNC COLUMNA POST'!BM12","v":0},null,{"$f":"'CAPACIDAD FUNC COLUMNA INICIAL'!AA12","v":{"$error":"#VALUE!"}},{"$f":"'CAPACIDAD FUNC COLUMNA INICIAL'!AB12","v":{"$error":"#VALUE!"}},{"$f":"'CAPACIDAD FUNC COLUMNA INICIAL'!AX12","v":0.74},{"$f":"'CAPACIDAD FUNC COLUMNA INICIAL'!AY12","v":"Discapacidad 80%"},{"$f":"'CAPACIDAD FUNC COLUMNA INICIAL'!BG12","v":"1 min y 7 segundos"},{"$f":"'CAPACIDAD FUNC COLUMNA INICIAL'!BH12","v":"Necesita Mejorar"},{"$f":"'CAPACIDAD FUNC COLUMNA INICIAL'!BJ12","v":0},{"$f":"'CAPACIDAD FUNC COLUMNA INICIAL'!BK12","v":"Regular"},{"$f":"'CAPACIDAD FUNC COLUMNA INICIAL'!BM12","v":0},null,{"$f":"'CAPACIDAD FUNC COLUMNA POST'!AA12","v":{"$error":"#VALUE!"}},{"$f":"'CAPACIDAD FUNC COLUMNA POST'!AB12","v":{"$error":"#VALUE!"}},{"$f":"'CAPACIDAD FUNC COLUMNA POST'!AX12","v":{"$error":"#VALUE!"}},{"$f":"'CAPACIDAD FUNC COLUMNA POST'!AY12","v":{"$error":"#VALUE!"}},{"$f":"'CAPACIDAD FUNC COLUMNA POST'!BG12","v":0},{"$f":"'CAPACIDAD FUNC COLUMNA POST'!BH12","v":0},{"$f":"'CAPACIDAD FUNC COLUMNA POST'!BJ12","v":0},{"$f":"'CAPACIDAD FUNC COLUMNA POST'!BK12","v":""},{"$f":"'CAPACIDAD FUNC COLUMNA POST'!BM12","v":0}]
[{"$f":"'CONDICION DE SALUD INICIAL'!A12","v":0},{"$f":"'CONDICION DE SALUD INICIAL'!C12","v":0},{"$f":"'CONDICION DE SALUD INICIAL'!D12","v":0},{"$f":"'CONDICION DE SALUD INICIAL'!B12","v":0},{"$f":"'CONDICION DE SALUD INICIAL'!F12","v":"00:00:00"},{"$f":"'CONDICION DE SALUD POST'!F12","v":"00:00:00"},{"$f":"'CONDICION DE SALUD INICIAL'!E12","v":0},{"$f":"'CONDICION DE SALUD INICIAL'!G12","v":"00:00:00"},{"$f":"'CONDICION DE SALUD INICIAL'!H12","v":0},{"$f":"'CONDICION DE SALUD INICIAL'!I12","v":"SI"},{"$f":"'CONDICION DE SALUD INICIAL'!J12","v":0},{"$f":"'CONDICION DE SALUD INICIAL'!K12","v":"MEDIO"},{"$f":"'CONDICION DE SALUD POST'!K12","v":0},null,{"$f":"'CONDICION DE SALUD INICIAL'!AJ12","v":22},{"$f":"'CONDICION DE SALUD INICIAL'!AK12","v":"REGULAR"},{"$f":"'CONDICION DE SALUD INICIAL'!AL12","v":0},null,{"$f":"'CONDICION DE SALUD POST'!AJ12","v":0},{"$f":"'CONDICION DE SALUD POST'!AK12","v":""},{"$f":"'CONDICION DE SALUD POST'!AL12","v":0},null,{"$f":"'CAPACIDAD FUNC MMSS INICIAL'!Z12","v":0},{"$f":"'CAPACIDAD FUNC MMSS INICIAL'!AA12","v":""},{"$f":"'CAPACIDAD FUNC MMSS INICIAL'!BD12","v":0},{"$f":"'CAPACIDAD FUNC MMSS INICIAL'!BE12","v":""},{"$f":"'CAPACIDAD FUNC MMSS INICIAL'!BX12","v":0},{"$f":"'CAPACIDAD FUNC MMSS INICIAL'!BY12","v":""},{"$f":"'CAPACIDAD FUNC MMSS INICIAL'!CK12","v":30},{"$f":"'CAPACIDAD FUNC MMSS INICIAL'!CL12","v":"Bien"},{"$f":"'CAPACIDAD FUNC MMSS INICIAL'!CN12","v":"Se sobreponen las manos"},{"$f":"'CAPACIDAD FUNC MMSS INICIAL'!CO12","v":"Buena"},{"$f":"'CAPACIDAD FUNC MMSS INICIAL'!CQ13","v":0},null,{"$f":"'CAPACIDAD FUNC MMSS POST'!Z12","v":0},{"$f":"'CAPACIDAD FUNC MMSS POST'!AA12","v":""},{"$f":"'CAPACIDAD FUNC MMSS POST'!BD12","v":0},{"$f":"'CAPACIDAD FUNC MMSS POST'!BE12","v":""},{"$f":"'CAPACIDAD FUNC MMSS POST'!BX12","v":0.49230769230769234},{"$f":"'CAPACIDAD FUNC MMSS POST'!BY12","v":"Limitación funcional moderada"},{"$f":"'CAPACIDAD FUNC MMSS POST'!CK12","v":0},{"$f":"'CAPACIDAD FUNC MMSS POST'!CL12","v":0},{"$f":"'CAPACIDAD FUNC COLUMNA POST'!BJ13","v":0},{"$f":"'CAPACIDAD FUNC COLUMNA POST'!BK13","v":""},{"$f":"'CAPACIDAD FUNC COLUMNA POST'!BM13","v":0},null,{"$f":"'CAPACIDAD FUNC COLUMNA INICIAL'!AA13","v":{"$error":"#VALUE!"}},{"$f":"'CAPACIDAD FUNC COLUMNA INICIAL'!AB13","v":{"$error":"#VALUE!"}},{"$f":"'CAPACIDAD FUNC COLUMNA INICIAL'!AX13","v":0.02},{"$f":"'CAPACIDAD FUNC COLUMNA INICIAL'!AY13","v":"Limitación funcional mínima"},{"$f":"'CAPACIDAD FUNC COLUMNA INICIAL'!BG13","v":"23 segundos"},{"$f":"'CAPACIDAD FUNC COLUMNA INICIAL'!BH13","v":"Necesita Mejorar"},{"$f":"'CAPACIDAD FUNC COLUMNA INICIAL'!BJ13","v":"<0"},{"$f":"'CAPACIDAD FUNC COLUMNA INICIAL'!BK13","v":"Mala"},{"$f":"'CAPACIDAD FUNC COLUMNA INICIAL'!BM13","v":0},null,{"$f":"'CAPACIDAD FUNC COLUMNA POST'!AA13","v":{"$error":"#VALUE!"}},{"$f":"'CAPACIDAD FUNC COLUMNA POST'!AB13","v":{"$error":"#VALUE!"}},{"$f":"'CAPACIDAD FUNC COLUMNA POST'!AX13","v":{"$error":"#VALUE!"}},{"$f":"'CAPACIDAD FUNC COLUMNA POST'!AY13","v":{"$error":"#VALUE!"}},{"$f":"'CAPACIDAD FUNC COLUMNA POST'!BG13","v":0},{"$f":"'CAPACIDAD FUNC COLUMNA POST'!BH13","v":0},{"$f":"'CAPACIDAD FUNC COLUMNA POST'!BJ13","v":0},{"$f":"'CAPACIDAD FUNC COLUMNA POST'!BK13","v":""},{"$f":"'CAPACIDAD FUNC COLUMNA POST'!BM13","v":0}]
[{"$f":"'CONDICION DE SALUD INICIAL'!A13","v":0},{"$f":"'CONDICION DE SALUD INICIAL'!C13","v":0},{"$f":"'CONDICION DE SALUD INICIAL'!D13","v":0},{"$f":"'CONDICION DE SALUD INICIAL'!B13","v":0},{"$f":"'CONDICION DE SALUD INICIAL'!F13","v":"00:00:00"},{"$f":"'CONDICION DE SALUD POST'!F13","v":"00:00:00"},{"$f":"'CONDICION DE SALUD INICIAL'!E13","v":0},{"$f":"'CONDICION DE SALUD INICIAL'!G13","v":"00:00:00"},{"$f":"'CONDICION DE SALUD INICIAL'!H13","v":0},{"$f":"'CONDICION DE SALUD INICIAL'!I13","v":"SI"},{"$f":"'CONDICION DE SALUD INICIAL'!J13","v":0},{"$f":"'CONDICION DE SALUD INICIAL'!K13","v":"ALTO"},{"$f":"'CONDICION DE SALUD POST'!K13","v":"ALTO"},null,{"$f":"'CONDICION DE SALUD INICIAL'!AJ13","v":24},{"$f":"'CONDICION DE SALUD INICIAL'!AK13","v":"REGULAR"},{"$f":"'CONDICION DE SALUD INICIAL'!AL13","v":0},null,{"$f":"'CONDICION DE SALUD POST'!AJ13","v":13},{"$f":"'CONDICION DE SALUD POST'!AK13","v":"BUENO"},{"$f":"'CONDICION DE SALUD POST'!AL13","v":0},null,{"$f":"'CAPACIDAD FUNC MMSS INICIAL'!Z13","v":0},{"$f":"'CAPACIDAD FUNC MMSS INICIAL'!AA13","v":""},{"$f":"'CAPACIDAD FUNC MMSS INICIAL'!BD13","v":0},{"$f":"'CAPACIDAD FUNC MMSS INICIAL'!BE13","v":""},{"$f":"'CAPACIDAD FUNC MMSS INICIAL'!BX13","v":0},{"$f":"'CAPACIDAD FUNC MMSS INICIAL'!BY13","v":""},{"$f":"'CAPACIDAD FUNC MMSS INICIAL'!CK13","v":0},{"$f":"'CAPACIDAD FUNC MMSS INICIAL'!CL13","v":0},{"$f":"'CAPACIDAD FUNC MMSS INICIAL'!CN13","v":"No se logra el contacto entre las manos"},{"$f":"'CAPACIDAD FUNC MMSS INICIAL'!CO13","v":"Mala"},{"$f":"'CAPACIDAD FUNC MMSS INICIAL'!CQ14","v":0},null,{"$f":"'CAPACIDAD FUNC MMSS POST'!Z13","v":0},{"$f":"'CAPACIDAD FUNC MMSS POST'!AA13","v":""},{"$f":"'CAPACIDAD FUNC MMSS POST'!BD13","v":0.67666666666666664},{"$f":"'CAPACIDAD FUNC MMSS POST'!BE13","v":"Limitación funcional alta"},{"$f":"'CAPACIDAD FUNC MMSS POST'!BX13","v":0},{"$f":"'CAPACIDAD FUNC MMSS POST'!BY13","v":""},{"$f":"'CAPACIDAD FUNC MMSS POST'!CK13","v":0},{"$f":"'CAPACIDAD FUNC MMSS POST'!CL13","v":0},{"$f":"'CAPACIDAD FUNC COLUMNA POST'!BJ14","v":0},{"$f":"'CAPACIDAD FUNC COLUMNA POST'!BK14","v":""},{"$f":"'CAPACIDAD FUNC COLUMNA POST'!BM14","v":0},null,{"$f":"'CAPACIDAD FUNC COLUMNA INICIAL'!AA14","v":0.1},{"$f":"'CAPACIDAD FUNC COLUMNA INICIAL'!AB14","v":"Discapacidad mínima"},{"$f":"'CAPACIDAD FUNC COLUMNA INICIAL'!AX14","v":0.06},{"$f":"'CAPACIDAD FUNC COLUMNA INICIAL'!AY14","v":"Limitación funcional mínima"},{"$f":"'CAPACIDAD FUNC COLUMNA INICIAL'!BG14","v":"23 segundos"},{"$f":"'CAPACIDAD FUNC COLUMNA INICIAL'!BH14","v":"Necesita Mejorar"},{"$f":"'CAPACIDAD FUNC COLUMNA INICIAL'!BJ14","v":"<0"},{"$f":"'CAPACIDAD FUNC COLUMNA INICIAL'!BK14","v":"Mala"},{"$f":"'CAPACIDAD FUNC COLUMNA INICIAL'!BM14","v":0},null,{"$f":"'CAPACIDAD FUNC COLUMNA POST'!AA14","v":0.12},{"$f":"'CAPACIDAD FUNC COLUMNA POST'!AB14","v":"Discapacidad mínima"},{"$f":"'CAPACIDAD FUNC COLUMNA POST'!AX14","v":0},{"$f":"'CAPACIDAD FUNC COLUMNA POST'!AY14","v":"Limitación funcional mínima"},{"$f":"'CAPACIDAD FUNC COLUMNA POST'!BG14","v":0},{"$f":"'CAPACIDAD FUNC COLUMNA POST'!BH14","v":0},{"$f":"'CAPACIDAD FUNC COLUMNA POST'!BJ14","v":0},{"$f":"'CAPACIDAD FUNC COLUMNA POST'!BK14","v":""},{"$f":"'CAPACIDAD FUNC COLUMNA POST'!BM14","v":0}]
[{"$f":"'CONDICION DE SALUD INICIAL'!A14","v":0},{"$f":"'CONDICION DE SALUD INICIAL'!C14","v":0},{"$f":"'CONDICION DE SALUD INICIAL'!D14","v":0},{"$f":"'CONDICION DE SALUD INICIAL'!B14","v":0},{"$f":"'CONDICION DE SALUD INICIAL'!F14","v":"00:00:00"},{"$f":"'CONDICION DE SALUD POST'!F14","v":"00:00:00"},{"$f":"'CONDICION DE SALUD INICIAL'!E14","v":0},{"$f":"'CONDICION DE SALUD INICIAL'!G14","v":"00:00:00"},{"$f":"'CONDICION DE SALUD INICIAL'!H14","v":0},{"$f":"'CONDICION DE SALUD INICIAL'!I14","v":"SI"},{"$f":"'CONDICION DE SALUD INICIAL'!J14","v":0},{"$f":"'CONDICION DE SALUD INICIAL'!K14","v":"MEDIO"},{"$f":"'CONDICION DE SALUD POST'!K14","v":"MEDIO"},null,{"$f":"'CONDICION DE SALUD INICIAL'!AJ14","v":0},{"$f":"'CONDICION DE SALUD INICIAL'!AK14","v":""},{"$f":"'CONDICION DE SALUD INICIAL'!AL14","v":0},null,{"$f":"'CONDICION DE SALUD POST'!AJ14","v":28},{"$f":"'CONDICION DE SALUD POST'!AK14","v":"REGULAR"},{"$f":"'CONDICION DE SALUD POST'!AL14","v":0},null,{"$f":"'CAPACIDAD FUNC MMSS INICIAL'!Z14","v":0.19500000000000001},{"$f":"'CAPACIDAD FUNC MMSS INICIAL'!AA14","v":"Limitación funcional mínima"},{"$f":"'CAPACIDAD FUNC MMSS INICIAL'!BD14","v":5.4444444444444448E-2},{"$f":"'CAPACIDAD FUNC MMSS INICIAL'!BE14","v":"Limitación funcional mínima"},{"$f":"'CAPACIDAD FUNC MMSS INICIAL'!BX14","v":4.8750000000000002E-2},{"$f":"'CAPACIDAD FUNC MMSS INICIAL'!BY14","v":"Limitación funcional mínima"},{"$f":"'CAPACIDAD FUNC MMSS INICIAL'!CK14","v":0},{"$f":"'CAPACIDAD FUNC MMSS INICIAL'!CL14","v":0},{"$f":"'CAPACIDAD FUNC MMSS INICIAL'!CN14","v":0},{"$f":"'CAPACIDAD FUNC MMSS INICIAL'!CO14","v":0},{"$f":"'CAPACIDAD FUNC MMSS INICIAL'!CQ15","v":0},null,{"$f":"'CAPACIDAD FUNC MMSS POST'!Z14","v":0.255},{"$f":"'CAPACIDAD FUNC MMSS POST'!AA14","v":"Limitación funcional moderada"},{"$f":"'CAPACIDAD FUNC MMSS POST'!BD14","v":4.8333333333333332E-2},{"$f":"'CAPACIDAD FUNC MMSS POST'!BE14","v":"Limitación funcional mínima"},{"$f":"'CAPACIDAD FUNC MMSS POST'!BX14","v":5.3846153846153849E-2},{"$f":"'CAPACIDAD FUNC MMSS POST'!BY14","v":"Limitación funcional mínima"},{"$f":"'CAPACIDAD FUNC MMSS POST'!CK14","v":0},{"$f":"'CAPACIDAD FUNC MMSS POST'!CL14","v":0},{"$f":"'CAPACIDAD FUNC COLUMNA POST'!BJ15","v":0},{"$f":"'CAPACIDAD FUNC COLUMNA POST'!BK15","v":""},{"$f":"'CAPACIDAD FUNC COLUMNA POST'!BM15","v":0},null,{"$f":"'CAPACIDAD FUNC COLUMNA INICIAL'!AA15","v":0.8},{"$f":"'CAPACIDAD FUNC COLUMNA INICIAL'!AB15","v":"Discapacidad máxima"},{"$f":"'CAPACIDAD FUNC COLUMNA INICIAL'!AX15","v":{"$error":"#VALUE!"}},{"$f":"'CAPACIDAD FUNC COLUMNA INICIAL'!AY15","v":{"$error":"#VALUE!"}},{"$f":"'CAPACIDAD FUNC COLUMNA INICIAL'!BG15","v":0},{"$f":"'CAPACIDAD FUNC COLUMNA INICIAL'!BH15","v":0},{"$f":"'CAPACIDAD FUNC COLUMNA INICIAL'!BJ15","v":0},{"$f":"'CAPACIDAD FUNC COLUMNA INICIAL'!BK15","v":""},{"$f":"'CAPACIDAD FUNC COLUMNA INICIAL'!BM15","v":0},null,{"$f":"'CAPACIDAD FUNC COLUMNA POST'!AA15","v":0.22},{"$f":"'CAPACIDAD FUNC COLUMNA POST'!AB15","v":"Discapacidad moderada"},{"$f":"'CAPACIDAD FUNC COLUMNA POST'!AX15","v":0.04},{"$f":"'CAPACIDAD FUNC COLUMNA POST'!AY15","v":"Limitación funcional mínima"},{"$f":"'CAPACIDAD FUNC COLUMNA POST'!BG15","v":0},{"$f":"'CAPACIDAD FUNC COLUMNA POST'!BH15","v":0},{"$f":"'CAPACIDAD FUNC COLUMNA POST'!BJ15","v":0},{"$f":"'CAPACIDAD FUNC COLUMNA POST'!BK15","v":""},{"$f":"'CAPACIDAD FUNC COLUMNA POST'!BM15","v":0}]
[{"$f":"'CONDICION DE SALUD INICIAL'!A15","v":0},{"$f":"'CONDICION DE SALUD INICIAL'!C15","v":0},{"$f":"'CONDICION DE SALUD INICIAL'!D15","v":0},{"$f":"'CONDICION DE SALUD INICIAL'!B15","v":0},{"$f":"'CONDICION DE SALUD INICIAL'!F15","v":"00:00:00"},{"$f":"'CONDICION DE SALUD POST'!F15","v":"00:00:00"},{"$f":"'CONDICION DE SALUD INICIAL'!E15","v":0},{"$f":"'CONDICION DE SALUD INICIAL'!G15","v":"00:00:00"},{"$f":"'CONDICION DE SALUD INICIAL'!H15","v":0},{"$f":"'CONDICION DE SALUD INICIAL'!I15","v":"SI"},{"$f":"'CONDICION DE SALUD INICIAL'!J15","v":0},{"$f":"'CONDICION DE SALUD INICIAL'!K15","v":"ALTO"},{"$f":"'CONDICION DE SALUD POST'!K15","v":"MEDIO"},null,{"$f":"'CONDICION DE SALUD INICIAL'!AJ15","v":33},{"$f":"'CONDICION DE SALUD INICIAL'!AK15","v":"REGULAR"},{"$f":"'CONDICION DE SALUD INICIAL'!AL15","v":0},null,{"$f":"'CONDICION DE SALUD POST'!AJ15","v":23},{"$f":"'CONDICION DE SALUD POST'!AK15","v":"REGULAR"},{"$f":"'CONDICION DE SALUD POST'!AL15","v":0},null,{"$f":"'CAPACIDAD FUNC MMSS INICIAL'!Z15","v":0.95500000000000007},{"$f":"'CAPACIDAD FUNC MMSS INICIAL'!AA15","v":"Limitación funcional alta"},{"$f":"'CAPACIDAD FUNC MMSS INICIAL'!BD15","v":0.94222222222222229},{"$f":"'CAPACIDAD FUNC MMSS INICIAL'!BE15","v":"Limitación funcional alta"},{"$f":"'CAPACIDAD FUNC MMSS INICIAL'!BX15","v":0.9},{"$f":"'CAPACIDAD FUNC MMSS INICIAL'!BY15","v":"Limitación funcional alta"},{"$f":"'CAPACIDAD FUNC MMSS INICIAL'!CK15","v":0},{"$f":"'CAPACIDAD FUNC MMSS INICIAL'!CL15","v":0},{"$f":"'CAPACIDAD FUNC MMSS INICIAL'!CN15","v":"Entran en contacto puntas de los dedos medios"},{"$f":"'CAPACIDAD FUNC MMSS INICIAL'!CO15","v":"Regular"},{"$f":"'CAPACIDAD FUNC MMSS INICIAL'!CQ16","v":0},null,{"$f":"'CAPACIDAD FUNC MMSS POST'!Z15","v":0.71500000000000008},{"$f":"'CAPACIDAD FUNC MMSS POST'!AA15","v":"Limitación funcional alta"},{"$f":"'CAPACIDAD FUNC MMSS POST'!BD15","v":0.75722222222222224},{"$f":"'CAPACIDAD FUNC MMSS POST'!BE15","v":"Limitación funcional alta"},{"$f":"'CAPACIDAD FUNC MMSS POST'!BX15","v":0.7846153846153846},{"$f":"'CAPACIDAD FUNC MMSS POST'!BY15","v":"Limitación funcional alta"},{"$f":"'CAPACIDAD FUNC MMSS POST'!CK15","v":0},{"$f":"'CAPACIDAD FUNC MMSS POST'!CL15","v":0},{"$f":"'CAPACIDAD FUNC COLUMNA POST'!BJ16","v":0},{"$f":"'CAPACIDAD FUNC COLUMNA POST'!BK16","v":""},{"$f":"'CAPACIDAD FUNC COLUMNA POST'!BM16","v":0},null,{"$f":"'CAPACIDAD FUNC COLUMNA INICIAL'!AA16","v":0.22},{"$f":"'CAPACIDAD FUNC COLUMNA INICIAL'!AB16","v":"Discapacidad moderada"},{"$f":"'CAPACIDAD FUNC COLUMNA INICIAL'!AX16","v":0.28000000000000003},{"$f":"'CAPACIDAD FUNC COLUMNA INICIAL'!AY16","v":"Limitación funcional moderada"},{"$f":"'CAPACIDAD FUNC COLUMNA INICIAL'!BG16","v":0},{"$f":"'CAPACIDAD FUNC COLUMNA INICIAL'!BH16","v":0},{"$f":"'CAPACIDAD FUNC COLUMNA INICIAL'!BJ16","v":"<0"},{"$f":"'CAPACIDAD FUNC COLUMNA INICIAL'!BK16","v":"Mala"},{"$f":"'CAPACIDAD FUNC COLUMNA INICIAL'!BM16","v":0},null,{"$f":"'CAPACIDAD FUNC COLUMNA POST'!AA16","v":{"$error":"#VALUE!"}},{"$f":"'CAPACIDAD FUNC COLUMNA POST'!AB16","v":{"$error":"#VALUE!"}},{"$f":"'CAPACIDAD FUNC COLUMNA POST'!AX16","v":{"$error":"#VALUE!"}},{"$f":"'CAPACIDAD FUNC COLUMNA POST'!AY16","v":{"$error":"#VALUE!"}},{"$f":"'CAPACIDAD FUNC COLUMNA POST'!BG16","v":0},{"$f":"'CAPACIDAD FUNC COLUMNA POST'!BH16","v":0},{"$f":"'CAPACIDAD FUNC COLUMNA POST'!BJ16","v":0},{"$f":"'CAPACIDAD FUNC COLUMNA POST'!BK16","v":""},{"$f":"'CAPACIDAD FUNC COLUMNA POST'!BM16","v":0}]
[{"$f":"'CONDICION DE SALUD INICIAL'!A16","v":0},{"$f":"'CONDICION DE SALUD INICIAL'!C16","v":0},{"$f":"'CONDICION DE SALUD INICIAL'!D16","v":0},{"$f":"'CONDICION DE SALUD INICIAL'!B16","v":0},{"$f":"'CONDICION DE SALUD INICIAL'!F16","v":"00:00:00"},{"$f":"'CONDICION DE SALUD POST'!F16","v":"00:00:00"},{"$f":"'CONDICION DE SALUD INICIAL'!E16","v":0},{"$f":"'CONDICION DE SALUD INICIAL'!G16","v":"00:00:00"},{"$f":"'CONDICION DE SALUD INICIAL'!H16","v":0},{"$f":"'CONDICION DE SALUD INICIAL'!I16","v":"SI"},{"$f":"'CONDICION DE SALUD INICIAL'!J16","v":0},{"$f":"'CONDICION DE SALUD INICIAL'!K16","v":"MEDIO"},{"$f":"'CONDICION DE SALUD POST'!K16","v":0},null,{"$f":"'CONDICION DE SALUD INICIAL'!AJ16","v":29},{"$f":"'CONDICION DE SALUD INICIAL'!AK16","v":"REGULAR"},{"$f":"'CONDICION DE SALUD INICIAL'!AL16","v":0},null,{"$f":"'CONDICION DE SALUD POST'!AJ16","v":0},{"$f":"'CONDICION DE SALUD POST'!AK16","v":""},{"$f":"'CONDICION DE SALUD POST'!AL16","v":0},null,{"$f":"'CAPACIDAD FUNC MMSS INICIAL'!Z16","v":0.51500000000000001},{"$f":"'CAPACIDAD FUNC MMSS INICIAL'!AA16","v":"Limitación funcional moderada"},{"$f":"'CAPACIDAD FUNC MMSS INICIAL'!BD16","v":0.4127777777777778},{"$f":"'CAPACIDAD FUNC MMSS INICIAL'!BE16","v":"Limitación funcional moderada"},{"$f":"'CAPACIDAD FUNC MMSS INICIAL'!BX16","v":0.50750000000000006},{"$f":"'CAPACIDAD FUNC MMSS INICIAL'!BY16","v":"Limitación funcional moderada"},{"$f":"'CAPACIDAD FUNC MMSS INICIAL'!CK16","v":0},{"$f":"'CAPACIDAD FUNC MMSS INICIAL'!CL16","v":0},{"$f":"'CAPACIDAD FUNC MMSS INICIAL'!CN16","v":"Entran en contacto puntas de los dedos medios"},{"$f":"'CAPACIDAD FUNC MMSS INICIAL'!CO16","v":"Regular"},{"$f":"'CAPACIDAD FUNC MMSS INICIAL'!CQ17","v":0},null,{"$f":"'CAPACIDAD FUNC MMSS POST'!Z16","v":0},{"$f":"'CAPACIDAD FUNC MMSS POST'!AA16","v":""},{"$f":"'CAPACIDAD FUNC MMSS POST'!BD16","v":0},{"$f":"'CAPACIDAD FUNC MMSS POST'!BE16","v":""},{"$f":"'CAPACIDAD FUNC MMSS POST'!BX16","v":0},{"$f":"'CAPACIDAD FUNC MMSS POST'!BY16","v":""},{"$f":"'CAPACIDAD FUNC MMSS POST'!CK16","v":0},{"$f":"'CAPACIDAD FUNC MMSS POST'!CL16","v":0},{"$f":"'CAPACIDAD FUNC COLUMNA POST'!BJ17","v":0},{"$f":"'CAPACIDAD FUNC COLUMNA POST'!BK17","v":""},{"$f":"'CAPACIDAD FUNC COLUMNA POST'!BM17","v":0},null,{"$f":"'CAPACIDAD FUNC COLUMNA INICIAL'!AA17","v":{"$error":"#VALUE!"}},{"$f":"'CAPACIDAD FUNC COLUMNA INICIAL'!AB17","v":{"$error":"#VALUE!"}},{"$f":"'CAPACIDAD FUNC COLUMNA INICIAL'!AX17","v":0.26},{"$f":"'CAPACIDAD FUNC COLUMNA INICIAL'!AY17","v":"Limitación funcional moderada"},{"$f":"'CAPACIDAD FUNC COLUMNA INICIAL'!BG17","v":"No realiza prueba por reciente cirugia en codo"},{"$f":"'CAPACIDAD FUNC COLUMNA INICIAL'!BH17","v":0},{"$f":"'CAPACIDAD FUNC COLUMNA INICIAL'!BJ17","v":">0"},{"$f":"'CAPACIDAD FUNC COLUMNA INICIAL'!BK17","v":"Buena"},{"$f":"'CAPACIDAD FUNC COLUMNA INICIAL'!BM17","v":0},null,{"$f":"'CAPACIDAD FUNC COLUMNA POST'!AA17","v":{"$error":"#VALUE!"}},{"$f":"'CAPACIDAD FUNC COLUMNA POST'!AB17","v":{"$error":"#VALUE!"}},{"$f":"'CAPACIDAD FUNC COLUMNA POST'!AX17","v":{"$error":"#VALUE!"}},{"$f":"'CAPACIDAD FUNC COLUMNA POST'!AY17","v":{"$error":"#VALUE!"}},{"$f":"'CAPACIDAD FUNC COLUMNA POST'!BG17","v":0},{"$f":"'CAPACIDAD FUNC COLUMNA POST'!BH17","v":0},{"$f":"'CAPACIDAD FUNC COLUMNA POST'!BJ17","v":0},{"$f":"'CAPACIDAD FUNC COLUMNA POST'!BK17","v":""},{"$f":"'CAPACIDAD FUNC COLUMNA POST'!BM17","v":0}]
[{"$f":"'CONDICION DE SALUD INICIAL'!A17","v":0},{"$f":"'CONDICION DE SALUD INICIAL'!C17","v":0},{"$f":"'CONDICION DE SALUD INICIAL'!D17","v":0},{"$f":"'CONDICION DE SALUD INICIAL'!B17","v":0},{"$f":"'CONDICION DE SALUD INICIAL'!F17","v":"00:00:00"},{"$f":"'CONDICION DE SALUD POST'!F17","v":"00:00:00"},{"$f":"'CONDICION DE SALUD INICIAL'!E17","v":0},{"$f":"'CONDICION DE SALUD INICIAL'!G17","v":"00:00:00"},{"$f":"'CONDICION DE SALUD INICIAL'!H17","v":0},{"$f":"'CONDICION DE SALUD INICIAL'!I17","v":"SI"},{"$f":"'CONDICION DE SALUD INICIAL'!J17","v":0},{"$f":"'CONDICION DE SALUD INICIAL'!K17","v":"ALTO"},{"$f":"'CONDICION DE SALUD POST'!K17","v":0},null,{"$f":"'CONDICION DE SALUD INICIAL'!AJ17","v":28},{"$f":"'CONDICION DE SALUD INICIAL'!AK17","v":"REGULAR"},{"$f":"'CONDICION DE SALUD INICIAL'!AL17","v":0},null,{"$f":"'CONDICION DE SALUD POST'!AJ17","v":0},{"$f":"'CONDICION DE SALUD POST'!AK17","v":""},{"$f":"'CONDICION DE SALUD POST'!AL17","v":0},null,{"$f":"'CAPACIDAD FUNC MMSS INICIAL'!Z17","v":0.6},{"$f":"'CAPACIDAD FUNC MMSS INICIAL'!AA17","v":"Limitación funcional moderada"},{"$f":"'CAPACIDAD FUNC MMSS INICIAL'!BD17","v":0.55833333333333335},{"$f":"'CAPACIDAD FUNC MMSS INICIAL'!BE17","v":"Limitación funcional moderada"},{"$f":"'CAPACIDAD FUNC MMSS INICIAL'!BX17","v":0.39250000000000002},{"$f":"'CAPACIDAD FUNC MMSS INICIAL'!BY17","v":"Limitación funcional moderada"},{"$f":"'CAPACIDAD FUNC MMSS INICIAL'!CK17","v":0},{"$f":"'CAPACIDAD FUNC MMSS INICIAL'!CL17","v":0},{"$f":"'CAPACIDAD FUNC MMSS INICIAL'!CN17","v":"No se logra el contacto entre las manos"},{"$f":"'CAPACIDAD FUNC MMSS INICIAL'!CO17","v":"Mala"},{"$f":"'CAPACIDAD FUNC MMSS INICIAL'!CQ18","v":0},null,{"$f":"'CAPACIDAD FUNC MMSS POST'!Z17","v":0},{"$f":"'CAPACIDAD FUNC MMSS POST'!AA17","v":""},{"$f":"'CAPACIDAD FUNC MMSS POST'!BD17","v":0},{"$f":"'CAPACIDAD FUNC MMSS POST'!BE17","v":""},{"$f":"'CAPACIDAD FUNC MMSS POST'!BX17","v":0},{"$f":"'CAPACIDAD FUNC MMSS POST'!BY17","v":""},{"$f":"'CAPACIDAD FUNC MMSS POST'!CK17","v":0},{"$f":"'CAPACIDAD FUNC MMSS POST'!CL17","v":0},{"$f":"'CAPACIDAD FUNC COLUMNA POST'!BJ18","v":0},{"$f":"'CAPACIDAD FUNC COLUMNA POST'!BK18","v":""},{"$f":"'CAPACIDAD FUNC COLUMNA POST'!BM18","v":0},null,{"$f":"'CAPACIDAD FUNC COLUMNA INICIAL'!AA18","v":{"$error":"#VALUE!"}},{"$f":"'CAPACIDAD FUNC COLUMNA INICIAL'!AB18","v":{"$error":"#VALUE!"}},{"$f":"'CAPACIDAD FUNC COLUMNA INICIAL'!AX18","v":0},{"$f":"'CAPACIDAD FUNC COLUMNA INICIAL'!AY18","v":"Limitación funcional mínima"},{"$f":"'CAPACIDAD FUNC COLUMNA INICIAL'!BG18","v":"4 segundos"},{"$f":"'CAPACIDAD FUNC COLUMNA INICIAL'!BH18","v":"Necesita Mejorar"},{"$f":"'CAPACIDAD FUNC COLUMNA INICIAL'!BJ18","v":">0"},{"$f":"'CAPACIDAD FUNC COLUMNA INICIAL'!BK18","v":"Buena"},{"$f":"'CAPACIDAD FUNC COLUMNA INICIAL'!BM18","v":0},null,{"$f":"'CAPACIDAD FUNC COLUMNA POST'!AA18","v":{"$error":"#VALUE!"}},{"$f":"'CAPACIDAD FUNC COLUMNA POST'!AB18","v":{"$error":"#VALUE!"}},{"$f":"'CAPACIDAD FUNC COLUMNA POST'!AX18","v":{"$error":"#VALUE!"}},{"$f":"'CAPACIDAD FUNC COLUMNA POST'!AY18","v":{"$error":"#VALUE!"}},{"$f":"'CAPACIDAD FUNC COLUMNA POST'!BG18","v":0},{"$f":"'CAPACIDAD FUNC COLUMNA POST'!BH18","v":0},{"$f":"'CAPACIDAD FUNC COLUMNA POST'!BJ18","v":0},{"$f":"'CAPACIDAD FUNC COLUMNA POST'!BK18","v":""},{"$f":"'CAPACIDAD FUNC COLUMNA POST'!BM18","v":0}]
[{"$f":"'CONDICION DE SALUD INICIAL'!A18","v":0},{"$f":"'CONDICION DE SALUD INICIAL'!C18","v":0},{"$f":"'CONDICION DE SALUD INICIAL'!D18","v":0},{"$f":"'CONDICION DE SALUD INICIAL'!B18","v":0},{"$f":"'CONDICION DE SALUD INICIAL'!F18","v":"00:00:00"},{"$f":"'CONDICION DE SALUD POST'!F18","v":"00:00:00"},{"$f":"'CONDICION DE SALUD INICIAL'!E18","v":0},{"$f":"'CONDICION DE SALUD INICIAL'!G18","v":"00:00:00"},{"$f":"'CONDICION DE SALUD INICIAL'!H18","v":0},{"$f":"'CONDICION DE SALUD INICIAL'!I18","v":"SI"},{"$f":"'CONDICION DE SALUD INICIAL'!J18","v":0},{"$f":"'CONDICION DE SALUD INICIAL'!K18","v":"ALTO"},{"$f":"'CONDICION DE SALUD POST'!K18","v":0},null,{"$f":"'CONDICION DE SALUD INICIAL'!AJ18","v":24},{"$f":"'CONDICION DE SALUD INICIAL'!AK18","v":"REGULAR"},{"$f":"'CONDICION DE SALUD INICIAL'!AL18","v":0},null,{"$f":"'CONDICION DE SALUD POST'!AJ18","v":0},{"$f":"'CONDICION DE SALUD POST'!AK18","v":""},{"$f":"'CONDICION DE SALUD POST'!AL18","v":0},null,{"$f":"'CAPACIDAD FUNC MMSS INICIAL'!Z18","v":0.48499999999999999},{"$f":"'CAPACIDAD FUNC MMSS INICIAL'!AA18","v":"Limitación funcional moderada"},{"$f":"'CAPACIDAD FUNC MMSS INICIAL'!BD18","v":0.42611111111111111},{"$f":"'CAPACIDAD FUNC MMSS INICIAL'!BE18","v":"Limitación funcional moderada"},{"$f":"'CAPACIDAD FUNC MMSS INICIAL'!BX18","v":0.35750000000000004},{"$f":"'CAPACIDAD FUNC MMSS INICIAL'!BY18","v":"Limitación funcional moderada"},{"$f":"'CAPACIDAD FUNC MMSS INICIAL'!CK18","v":0},{"$f":"'CAPACIDAD FUNC MMSS INICIAL'!CL18","v":0},{"$f":"'CAPACIDAD FUNC MMSS INICIAL'!CN18","v":0},{"$f":"'CAPACIDAD FUNC MMSS INICIAL'!CO18","v":0},{"$f":"'CAPACIDAD FUNC MMSS INICIAL'!CQ19","v":0},null,{"$f":"'CAPACIDAD FUNC MMSS POST'!Z18","v":0},{"$f":"'CAPACIDAD FUNC MMSS POST'!AA18","v":""},{"$f":"'CAPACIDAD FUNC MMSS POST'!BD18","v":0},{"$f":"'CAPACIDAD FUNC MMSS POST'!BE18","v":""},{"$f":"'CAPACIDAD FUNC MMSS POST'!BX18","v":0},{"$f":"'CAPACIDAD FUNC MMSS POST'!BY18","v":""},{"$f":"'CAPACIDAD FUNC MMSS POST'!CK18","v":0},{"$f":"'CAPACIDAD FUNC MMSS POST'!CL18","v":0},{"$f":"'CAPACIDAD FUNC COLUMNA POST'!BJ19","v":0},{"$f":"'CAPACIDAD FUNC COLUMNA POST'!BK19","v":""},{"$f":"'CAPACIDAD FUNC COLUMNA POST'!BM19","v":0},null,{"$f":"'CAPACIDAD FUNC COLUMNA INICIAL'!AA19","v":{"$error":"#VALUE!"}},{"$f":"'CAPACIDAD FUNC COLUMNA INICIAL'!AB19","v":{"$error":"#VALUE!"}},{"$f":"'CAPACIDAD FUNC COLUMNA INICIAL'!AX19","v":{"$error":"#VALUE!"}},{"$f":"'CAPACIDAD FUNC COLUMNA INICIAL'!AY19","v":{"$error":"#VALUE!"}},{"$f":"'CAPACIDAD FUNC COLUMNA INICIAL'!BG19","v":0},{"$f":"'CAPACIDAD FUNC COLUMNA INICIAL'!BH19","v":0},{"$f":"'CAPACIDAD FUNC COLUMNA INICIAL'!BJ19","v":0},{"$f":"'CAPACIDAD FUNC COLUMNA INICIAL'!BK19","v":""},{"$f":"'CAPACIDAD FUNC COLUMNA INICIAL'!BM19","v":0},null,{"$f":"'CAPACIDAD FUNC COLUMNA POST'!AA19","v":{"$error":"#VALUE!"}},{"$f":"'CAPACIDAD FUNC COLUMNA POST'!AB19","v":{"$error":"#VALUE!"}},{"$f":"'CAPACIDAD FUNC COLUMNA POST'!AX19","v":{"$error":"#VALUE!"}},{"$f":"'CAPACIDAD FUNC COLUMNA POST'!AY19","v":{"$error":"#VALUE!"}},{"$f":"'CAPACIDAD FUNC COLUMNA POST'!BG19","v":0},{"$f":"'CAPACIDAD FUNC COLUMNA POST'!BH19","v":0},{"$f":"'CAPACIDAD FUNC COLUMNA POST'!BJ19","v":0},{"$f":"'CAPACIDAD FUNC COLUMNA POST'!BK19","v":""},{"$f":"'CAPACIDAD FUNC COLUMNA POST'!BM19","v":0}]
[{"$f":"'CONDICION DE SALUD INICIAL'!A19","v":0},{"$f":"'CONDICION DE SALUD INICIAL'!C19","v":0},{"$f":"'CONDICION DE SALUD INICIAL'!D19","v":0},{"$f":"'CONDICION DE SALUD INICIAL'!B19","v":0},{"$f":"'CONDICION DE SALUD INICIAL'!F19","v":"00:00:00"},{"$f":"'CONDICION DE SALUD POST'!F19","v":"00:00:00"},{"$f":"'CONDICION DE SALUD INICIAL'!E19","v":0},{"$f":"'CONDICION DE SALUD INICIAL'!G19","v":"00:00:00"},{"$f":"'CONDICION DE SALUD INICIAL'!H19","v":0},{"$f":"'CONDICION DE SALUD INICIAL'!I19","v":"SI"},{"$f":"'CONDICION DE SALUD INICIAL'!J19","v":0},{"$f":"'CONDICION DE SALUD INICIAL'!K19","v":"MEDIO"},{"$f":"'CONDICION DE SALUD POST'!K19","v":0},null,{"$f":"'CONDICION DE SALUD INICIAL'!AJ19","v":29},{"$f":"'CONDICION DE SALUD INICIAL'!AK19","v":"REGULAR"},{"$f":"'CONDICION DE SALUD INICIAL'!AL19","v":0},null,{"$f":"'CONDICION DE SALUD POST'!AJ19","v":0},{"$f":"'CONDICION DE SALUD POST'!AK19","v":""},{"$f":"'CONDICION DE SALUD POST'!AL19","v":0},null,{"$f":"'CAPACIDAD FUNC MMSS INICIAL'!Z19","v":0.625},{"$f":"'CAPACIDAD FUNC MMSS INICIAL'!AA19","v":"Limitación funcional moderada"},{"$f":"'CAPACIDAD FUNC MMSS INICIAL'!BD19","v":0.64444444444444449},{"$f":"'CAPACIDAD FUNC MMSS INICIAL'!BE19","v":"Limitación funcional moderada"},{"$f":"'CAPACIDAD FUNC MMSS INICIAL'!BX19","v":0.72875000000000001},{"$f":"'CAPACIDAD FUNC MMSS INICIAL'!BY19","v":"Limitación funcional alta"},{"$f":"'CAPACIDAD FUNC MMSS INICIAL'!CK19","v":0},{"$f":"'CAPACIDAD FUNC MMSS INICIAL'!CL19","v":0},{"$f":"'CAPACIDAD FUNC MMSS INICIAL'!CN19","v":0},{"$f":"'CAPACIDAD FUNC MMSS INICIAL'!CO19","v":0},{"$f":"'CAPACIDAD FUNC MMSS INICIAL'!CQ20","v":0},null,{"$f":"'CAPACIDAD FUNC MMSS POST'!Z19","v":0},{"$f":"'CAPACIDAD FUNC MMSS POST'!AA19","v":""},{"$f":"'CAPACIDAD FUNC MMSS POST'!BD19","v":0},{"$f":"'CAPACIDAD FUNC MMSS POST'!BE19","v":""},{"$f":"'CAPACIDAD FUNC MMSS POST'!BX19","v":0},{"$f":"'CAPACIDAD FUNC MMSS POST'!BY19","v":""},{"$f":"'CAPACIDAD FUNC MMSS POST'!CK19","v":0},{"$f":"'CAPACIDAD FUNC MMSS POST'!CL19","v":0},{"$f":"'CAPACIDAD FUNC COLUMNA POST'!BJ20","v":0},{"$f":"'CAPACIDAD FUNC COLUMNA POST'!BK20","v":""},{"$f":"'CAPACIDAD FUNC COLUMNA POST'!BM20","v":0},null,{"$f":"'CAPACIDAD FUNC COLUMNA INICIAL'!AA20","v":{"$error":"#VALUE!"}},{"$f":"'CAPACIDAD FUNC COLUMNA INICIAL'!AB20","v":{"$error":"#VALUE!"}},{"$f":"'CAPACIDAD FUNC COLUMNA INICIAL'!AX20","v":0.34},{"$f":"'CAPACIDAD FUNC COLUMNA INICIAL'!AY20","v":"Limitación funcional moderada"},{"$f":"'CAPACIDAD FUNC COLUMNA INICIAL'!BG20","v":0},{"$f":"'CAPACIDAD FUNC COLUMNA INICIAL'!BH20","v":0},{"$f":"'CAPACIDAD FUNC COLUMNA INICIAL'!BJ20","v":0},{"$f":"'CAPACIDAD FUNC COLUMNA INICIAL'!BK20","v":""},{"$f":"'CAPACIDAD FUNC COLUMNA INICIAL'!BM20","v":0},null,{"$f":"'CAPACIDAD FUNC COLUMNA POST'!AA20","v":{"$error":"#VALUE!"}},{"$f":"'CAPACIDAD FUNC COLUMNA POST'!AB20","v":{"$error":"#VALUE!"}},{"$f":"'CAPACIDAD FUNC COLUMNA POST'!AX20","v":{"$error":"#VALUE!"}},{"$f":"'CAPACIDAD FUNC COLUMNA POST'!AY20","v":{"$error":"#VALUE!"}},{"$f":"'CAPACIDAD FUNC COLUMNA POST'!BG20","v":0},{"$f":"'CAPACIDAD FUNC COLUMNA POST'!BH20","v":0},{"$f":"'CAPACIDAD FUNC COLUMNA POST'!BJ20","v":0},{"$f":"'CAPACIDAD FUNC COLUMNA POST'!BK20","v":""},{"$f":"'CAPACIDAD FUNC COLUMNA POST'!BM20","v":0}]
[{"$f":"'CONDICION DE SALUD INICIAL'!A20","v":0},{"$f":"'CONDICION DE SALUD INICIAL'!C20","v":0},{"$f":"'CONDICION DE SALUD INICIAL'!D20","v":0},{"$f":"'CONDICION DE SALUD INICIAL'!B20","v":0},{"$f":"'CONDICION DE SALUD INICIAL'!F20","v":"00:00:00"},{"$f":"'CONDICION DE SALUD POST'!F20","v":"00:00:00"},{"$f":"'CONDICION DE SALUD INICIAL'!E20","v":0},{"$f":"'CONDICION DE SALUD INICIAL'!G20","v":"00:00:00"},{"$f":"'CONDICION DE SALUD INICIAL'!H20","v":0},{"$f":"'CONDICION DE SALUD INICIAL'!I20","v":"SI"},{"$f":"'CONDICION DE SALUD INICIAL'!J20","v":0},{"$f":"'CONDICION DE SALUD INICIAL'!K20","v":"MEDIO"},{"$f":"'CONDICION DE SALUD POST'!K20","v":0},null,{"$f":"'CONDICION DE SALUD INICIAL'!AJ20","v":19},{"$f":"'CONDICION DE SALUD INICIAL'!AK20","v":"BUENO"},{"$f":"'CONDICION DE SALUD INICIAL'!AL20","v":0},null,{"$f":"'CONDICION DE SALUD POST'!AJ20","v":0},{"$f":"'CONDICION DE SALUD POST'!AK20","v":""},{"$f":"'CONDICION DE SALUD POST'!AL20","v":0},null,{"$f":"'CAPACIDAD FUNC MMSS INICIAL'!Z20","v":0.21},{"$f":"'CAPACIDAD FUNC MMSS INICIAL'!AA20","v":"Limitación funcional moderada"},{"$f":"'CAPACIDAD FUNC MMSS INICIAL'!BD20","v":0.16333333333333333},{"$f":"'CAPACIDAD FUNC MMSS INICIAL'!BE20","v":"Limitación funcional mínima"},{"$f":"'CAPACIDAD FUNC MMSS INICIAL'!BX20","v":0.21000000000000002},{"$f":"'CAPACIDAD FUNC MMSS INICIAL'!BY20","v":"Limitación funcional moderada"},{"$f":"'CAPACIDAD FUNC MMSS INICIAL'!CK20","v":0},{"$f":"'CAPACIDAD FUNC MMSS INICIAL'!CL20","v":0},{"$f":"'CAPACIDAD FUNC MMSS INICIAL'!CN20","v":"No se logra el contacto entre las manos"},{"$f":"'CAPACIDAD FUNC MMSS INICIAL'!CO20","v":"Mala"},{"$f":"'CAPACIDAD FUNC MMSS INICIAL'!CQ21","v":0},null,{"$f":"'CAPACIDAD FUNC MMSS POST'!Z20","v":0},{"$f":"'CAPACIDAD FUNC MMSS POST'!AA20","v":""},{"$f":"'CAPACIDAD FUNC MMSS POST'!BD20","v":0},{"$f":"'CAPACIDAD FUNC MMSS POST'!BE20","v":""},{"$f":"'CAPACIDAD FUNC MMSS POST'!BX20","v":0},{"$f":"'CAPACIDAD FUNC MMSS POST'!BY20","v":""},{"$f":"'CAPACIDAD FUNC MMSS POST'!CK20","v":0},{"$f":"'CAPACIDAD FUNC MMSS POST'!CL20","v":0},{"$f":"'CAPACIDAD FUNC COLUMNA POST'!BJ21","v":0},{"$f":"'CAPACIDAD FUNC COLUMNA POST'!BK21","v":""},{"$f":"'CAPACIDAD FUNC COLUMNA POST'!BM21","v":0},null,{"$f":"'CAPACIDAD FUNC COLUMNA INICIAL'!AA21","v":{"$error":"#VALUE!"}},{"$f":"'CAPACIDAD FUNC COLUMNA INICIAL'!AB21","v":{"$error":"#VALUE!"}},{"$f":"'CAPACIDAD FUNC COLUMNA INICIAL'!AX21","v":{"$error":"#VALUE!"}},{"$f":"'CAPACIDAD FUNC COLUMNA INICIAL'!AY21","v":{"$error":"#VALUE!"}},{"$f":"'CAPACIDAD FUNC COLUMNA INICIAL'!BG21","v":0},{"$f":"'CAPACIDAD FUNC COLUMNA INICIAL'!BH21","v":0},{"$f":"'CAPACIDAD FUNC COLUMNA INICIAL'!BJ21","v":0},{"$f":"'CAPACIDAD FUNC COLUMNA INICIAL'!BK21","v":""},{"$f":"'CAPACIDAD FUNC COLUMNA INICIAL'!BM21","v":0},null,{"$f":"'CAPACIDAD FUNC COLUMNA POST'!AA21","v":{"$error":"#VALUE!"}},{"$f":"'CAPACIDAD FUNC COLUMNA POST'!AB21","v":{"$error":"#VALUE!"}},{"$f":"'CAPACIDAD FUNC COLUMNA POST'!AX21","v":{"$error":"#VALUE!"}},{"$f":"'CAPACIDAD FUNC COLUMNA POST'!AY21","v":{"$error":"#VALUE!"}},{"$f":"'CAPACIDAD FUNC COLUMNA POST'!BG21","v":0},{"$f":"'CAPACIDAD FUNC COLUMNA POST'!BH21","v":0},{"$f":"'CAPACIDAD FUNC COLUMNA POST'!BJ21","v":0},{"$f":"'CAPACIDAD FUNC COLUMNA POST'!BK21","v":""},{"$f":"'CAPACIDAD FUNC COLUMNA POST'!BM21","v":0}]
[{"$f":"'CONDICION DE SALUD INICIAL'!A21","v":0},{"$f":"'CONDICION DE SALUD INICIAL'!C21","v":0},{"$f":"'CONDICION DE SALUD INICIAL'!D21","v":0},{"$f":"'CONDICION DE SALUD INICIAL'!B21","v":0},{"$f":"'CONDICION DE SALUD INICIAL'!F21","v":"00:00:00"},{"$f":"'CONDICION DE SALUD POST'!F21","v":"00:00:00"},{"$f":"'CONDICION DE SALUD INICIAL'!E21","v":0},{"$f":"'CONDICION DE SALUD INICIAL'!G21","v":"00:00:00"},{"$f":"'CONDICION DE SALUD INICIAL'!H21","v":0},{"$f":"'CONDICION DE SALUD INICIAL'!I21","v":"SI"},{"$f":"'CONDICION DE SALUD INICIAL'!J21","v":0},{"$f":"'CONDICION DE SALUD INICIAL'!K21","v":"ALTO"},{"$f":"'CONDICION DE SALUD POST'!K21","v":"ALTO"},null,{"$f":"'CONDICION DE SALUD INICIAL'!AJ21","v":30},{"$f":"'CONDICION DE SALUD INICIAL'!AK21","v":"REGULAR"},{"$f":"'CONDICION DE SALUD INICIAL'!AL21","v":0},null,{"$f":"'CONDICION DE SALUD POST'!AJ21","v":28},{"$f":"'CONDICION DE SALUD POST'!AK21","v":"REGULAR"},{"$f":"'CONDICION DE SALUD POST'!AL21","v":0},null,{"$f":"'CAPACIDAD FUNC MMSS INICIAL'!Z21","v":0.69},{"$f":"'CAPACIDAD FUNC MMSS INICIAL'!AA21","v":"Limitación funcional alta"},{"$f":"'CAPACIDAD FUNC MMSS INICIAL'!BD21","v":0.66166666666666663},{"$f":"'CAPACIDAD FUNC MMSS INICIAL'!BE21","v":"Limitación funcional alta"},{"$f":"'CAPACIDAD FUNC MMSS INICIAL'!BX21","v":0.8175},{"$f":"'CAPACIDAD FUNC MMSS INICIAL'!BY21","v":"Limitación funcional alta"},{"$f":"'CAPACIDAD FUNC MMSS INICIAL'!CK21","v":14},{"$f":"'CAPACIDAD FUNC MMSS INICIAL'!CL21","v":"Regular"},{"$f":"'CAPACIDAD FUNC MMSS INICIAL'!CN21","v":"No se logra el contacto entre las manos"},{"$f":"'CAPACIDAD FUNC MMSS INICIAL'!CO21","v":"Mala"},{"$f":"'CAPACIDAD FUNC MMSS INICIAL'!CQ22","v":0},null,{"$f":"'CAPACIDAD FUNC MMSS POST'!Z21","v":0.64},{"$f":"'CAPACIDAD FUNC MMSS POST'!AA21","v":"Limitación funcional moderada"},{"$f":"'CAPACIDAD FUNC MMSS POST'!BD21","v":0.42166666666666669},{"$f":"'CAPACIDAD FUNC MMSS POST'!BE21","v":"Limitación funcional moderada"},{"$f":"'CAPACIDAD FUNC MMSS POST'!BX21","v":0.69230769230769229},{"$f":"'CAPACIDAD FUNC MMSS POST'!BY21","v":"Limitación funcional alta"},{"$f":"'CAPACIDAD FUNC MMSS POST'!CK21","v":0},{"$f":"'CAPACIDAD FUNC MMSS POST'!CL21","v":0},{"$f":"'CAPACIDAD FUNC COLUMNA POST'!BJ22","v":0},{"$f":"'CAPACIDAD FUNC COLUMNA POST'!BK22","v":""},{"$f":"'CAPACIDAD FUNC COLUMNA POST'!BM22","v":0},null,{"$f":"'CAPACIDAD FUNC COLUMNA INICIAL'!AA22","v":{"$error":"#VALUE!"}},{"$f":"'CAPACIDAD FUNC COLUMNA INICIAL'!AB22","v":{"$error":"#VALUE!"}},{"$f":"'CAPACIDAD FUNC COLUMNA INICIAL'!AX22","v":0.34},{"$f":"'CAPACIDAD FUNC COLUMNA INICIAL'!AY22","v":"Limitación funcional moderada"},{"$f":"'CAPACIDAD FUNC COLUMNA INICIAL'!BG22","v":0},{"$f":"'CAPACIDAD FUNC COLUMNA INICIAL'!BH22","v":0},{"$f":"'CAPACIDAD FUNC COLUMNA INICIAL'!BJ22","v":0},{"$f":"'CAPACIDAD FUNC COLUMNA INICIAL'!BK22","v":""},{"$f":"'CAPACIDAD FUNC COLUMNA INICIAL'!BM22","v":0},null,{"$f":"'CAPACIDAD FUNC COLUMNA POST'!AA22","v":{"$error":"#VALUE!"}},{"$f":"'CAPACIDAD FUNC COLUMNA POST'!AB22","v":{"$error":"#VALUE!"}},{"$f":"'CAPACIDAD FUNC COLUMNA POST'!AX22","v":{"$error":"#VALUE!"}},{"$f":"'CAPACIDAD FUNC COLUMNA POST'!AY22","v":{"$error":"#VALUE!"}},{"$f":"'CAPACIDAD FUNC COLUMNA POST'!BG22","v":0},{"$f":"'CAPACIDAD FUNC COLUMNA POST'!BH22","v":0},{"$f":"'CAPACIDAD FUNC COLUMNA POST'!BJ22","v":0},{"$f":"'CAPACIDAD FUNC COLUMNA POST'!BK22","v":""},{"$f":"'CAPACIDAD FUNC COLUMNA POST'!BM22","v":0}]
[{"$f":"'CONDICION DE SALUD INICIAL'!A22","v":0},{"$f":"'CONDICION DE SALUD INICIAL'!C22","v":0},{"$f":"'CONDICION DE SALUD INICIAL'!D22","v":0},{"$f":"'CONDICION DE SALUD INICIAL'!B22","v":0},{"$f":"'CONDICION DE SALUD INICIAL'!F22","v":"00:00:00"},{"$f":"'CONDICION DE SALUD POST'!F22","v":"00:00:00"},{"$f":"'CONDICION DE SALUD INICIAL'!E22","v":0},{"$f":"'CONDICION DE SALUD INICIAL'!G22","v":"00:00:00"},{"$f":"'CONDICION DE SALUD INICIAL'!H22","v":0},{"$f":"'CONDICION DE SALUD INICIAL'!I22","v":"SI"},{"$f":"'CONDICION DE SALUD INICIAL'!J22","v":0},{"$f":"'CONDICION DE SALUD INICIAL'!K22","v":"MEDIO"},{"$f":"'CONDICION DE SALUD POST'!K22","v":0},null,{"$f":"'CONDICION DE SALUD INICIAL'!AJ22","v":0},{"$f":"'CONDICION DE SALUD INICIAL'!AK22","v":""},{"$f":"'CONDICION DE SALUD INICIAL'!AL22","v":0},null,{"$f":"'CONDICION DE SALUD POST'!AJ22","v":0},{"$f":"'CONDICION DE SALUD POST'!AK22","v":""},{"$f":"'CONDICION DE SALUD POST'!AL22","v":0},null,{"$f":"'CAPACIDAD FUNC MMSS INICIAL'!Z22","v":0.06},{"$f":"'CAPACIDAD FUNC MMSS INICIAL'!AA22","v":"Limitación funcional mínima"},{"$f":"'CAPACIDAD FUNC MMSS INICIAL'!BD22","v":2.2222222222222223E-2},{"$f":"'CAPACIDAD FUNC MMSS INICIAL'!BE22","v":"Limitación funcional mínima"},{"$f":"'CAPACIDAD FUNC MMSS INICIAL'!BX22","v":0},{"$f":"'CAPACIDAD FUNC MMSS INICIAL'!BY22","v":""},{"$f":"'CAPACIDAD FUNC MMSS INICIAL'!CK22","v":0},{"$f":"'CAPACIDAD FUNC MMSS INICIAL'!CL22","v":0},{"$f":"'CAPACIDAD FUNC MMSS INICIAL'!CN22","v":0},{"$f":"'CAPACIDAD FUNC MMSS INICIAL'!CO22","v":0},{"$f":"'CAPACIDAD FUNC MMSS INICIAL'!CQ23","v":0},null,{"$f":"'CAPACIDAD FUNC MMSS POST'!Z22","v":0},{"$f":"'CAPACIDAD FUNC MMSS POST'!AA22","v":""},{"$f":"'CAPACIDAD FUNC MMSS POST'!BD22","v":0},{"$f":"'CAPACIDAD FUNC MMSS POST'!BE22","v":""},{"$f":"'CAPACIDAD FUNC MMSS POST'!BX22","v":0},{"$f":"'CAPACIDAD FUNC MMSS POST'!BY22","v":""},{"$f":"'CAPACIDAD FUNC MMSS POST'!CK22","v":0},{"$f":"'CAPACIDAD FUNC MMSS POST'!CL22","v":0},{"$f":"'CAPACIDAD FUNC COLUMNA POST'!BJ23","v":0},{"$f":"'CAPACIDAD FUNC COLUMNA POST'!BK23","v":""},{"$f":"'CAPACIDAD FUNC COLUMNA POST'!BM23","v":0},null,{"$f":"'CAPACIDAD FUNC COLUMNA INICIAL'!AA23","v":{"$error":"#VALUE!"}},{"$f":"'CAPACIDAD FUNC COLUMNA INICIAL'!AB23","v":{"$error":"#VALUE!"}},{"$f":"'CAPACIDAD FUNC COLUMNA INICIAL'!AX23","v":{"$error":"#VALUE!"}},{"$f":"'CAPACIDAD FUNC COLUMNA INICIAL'!AY23","v":{"$error":"#VALUE!"}},{"$f":"'CAPACIDAD FUNC COLUMNA INICIAL'!BG23","v":0},{"$f":"'CAPACIDAD FUNC COLUMNA INICIAL'!BH23","v":0},{"$f":"'CAPACIDAD FUNC COLUMNA INICIAL'!BJ23","v":0},{"$f":"'CAPACIDAD FUNC COLUMNA INICIAL'!BK23","v":""},{"$f":"'CAPACIDAD FUNC COLUMNA INICIAL'!BM23","v":0},null,{"$f":"'CAPACIDAD FUNC COLUMNA POST'!AA23","v":{"$error":"#VALUE!"}},{"$f":"'CAPACIDAD FUNC COLUMNA POST'!AB23","v":{"$error":"#VALUE!"}},{"$f":"'CAPACIDAD FUNC COLUMNA POST'!AX23","v":{"$error":"#VALUE!"}},{"$f":"'CAPACIDAD FUNC COLUMNA POST'!AY23","v":{"$error":"#VALUE!"}},{"$f":"'CAPACIDAD FUNC COLUMNA POST'!BG23","v":0},{"$f":"'CAPACIDAD FUNC COLUMNA POST'!BH23","v":0},{"$f":"'CAPACIDAD FUNC COLUMNA POST'!BJ23","v":0},{"$f":"'CAPACIDAD FUNC COLUMNA POST'!BK23","v":""},{"$f":"'CAPACIDAD FUNC COLUMNA POST'!BM23","v":0}]
[{"$f":"'CONDICION DE SALUD INICIAL'!A23","v":0},{"$f":"'CONDICION DE SALUD INICIAL'!C23","v":0},{"$f":"'CONDICION DE SALUD INICIAL'!D23","v":0},{"$f":"'CONDICION DE SALUD INICIAL'!B23","v":0},{"$f":"'CONDICION DE SALUD INICIAL'!F23","v":"00:00:00"},{"$f":"'CONDICION DE SALUD POST'!F23","v":"00:00:00"},{"$f":"'CONDICION DE SALUD INICIAL'!E23","v":0},{"$f":"'CONDICION DE SALUD INICIAL'!G23","v":"00:00:00"},{"$f":"'CONDICION DE SALUD INICIAL'!H23","v":0},{"$f":"'CONDICION DE SALUD INICIAL'!I23","v":"SI"},{"$f":"'CONDICION DE SALUD INICIAL'!J23","v":0},{"$f":"'CONDICION DE SALUD INICIAL'!K23","v":"MEDIO"},{"$f":"'CONDICION DE SALUD POST'!K23","v":0},null,{"$f":"'CONDICION DE SALUD INICIAL'!AJ23","v":0},{"$f":"'CONDICION DE SALUD INICIAL'!AK23","v":""},{"$f":"'CONDICION DE SALUD INICIAL'!AL23","v":0},null,{"$f":"'CONDICION DE SALUD POST'!AJ23","v":0},{"$f":"'CONDICION DE SALUD POST'!AK23","v":""},{"$f":"'CONDICION DE SALUD POST'!AL23","v":0},null,{"$f":"'CAPACIDAD FUNC MMSS INICIAL'!Z23","v":0.19},{"$f":"'CAPACIDAD FUNC MMSS INICIAL'!AA23","v":"Limitación funcional mínima"},{"$f":"'CAPACIDAD FUNC MMSS INICIAL'!BD23","v":2.7777777777777776E-2},{"$f":"'CAPACIDAD FUNC MMSS INICIAL'!BE23","v":"Limitación funcional mínima"},{"$f":"'CAPACIDAD FUNC MMSS INICIAL'!BX23","v":0.79875000000000007},{"$f":"'CAPACIDAD FUNC MMSS INICIAL'!BY23","v":"Limitación funcional alta"},{"$f":"'CAPACIDAD FUNC MMSS INICIAL'!CK23","v":0},{"$f":"'CAPACIDAD FUNC MMSS INICIAL'!CL23","v":"pobre"},{"$f":"'CAPACIDAD FUNC MMSS INICIAL'!CN23","v":"No se logra el contacto entre las manos"},{"$f":"'CAPACIDAD FUNC MMSS INICIAL'!CO23","v":"Mala"},{"$f":"'CAPACIDAD FUNC MMSS INICIAL'!CQ24","v":0},null,{"$f":"'CAPACIDAD FUNC MMSS POST'!Z23","v":0},{"$f":"'CAPACIDAD FUNC MMSS POST'!AA23","v":""},{"$f":"'CAPACIDAD FUNC MMSS POST'!BD23","v":0},{"$f":"'CAPACIDAD FUNC MMSS POST'!BE23","v":""},{"$f":"'CAPACIDAD FUNC MMSS POST'!BX23","v":0},{"$f":"'CAPACIDAD FUNC MMSS POST'!BY23","v":""},{"$f":"'CAPACIDAD FUNC MMSS POST'!CK23","v":0},{"$f":"'CAPACIDAD FUNC MMSS POST'!CL23","v":0},{"$f":"'CAPACIDAD FUNC COLUMNA POST'!BJ24","v":0},{"$f":"'CAPACIDAD FUNC COLUMNA POST'!BK24","v":""},{"$f":"'CAPACIDAD FUNC COLUMNA POST'!BM24","v":0},null,{"$f":"'CAPACIDAD FUNC COLUMNA INICIAL'!AA24","v":{"$error":"#VALUE!"}},{"$f":"'CAPACIDAD FUNC COLUMNA INICIAL'!AB24","v":{"$error":"#VALUE!"}},{"$f":"'CAPACIDAD FUNC COLUMNA INICIAL'!AX24","v":{"$error":"#VALUE!"}},{"$f":"'CAPACIDAD FUNC COLUMNA INICIAL'!AY24","v":{"$error":"#VALUE!"}},{"$f":"'CAPACIDAD FUNC COLUMNA INICIAL'!BG24","v":0},{"$f":"'CAPACIDAD FUNC COLUMNA INICIAL'!BH24","v":0},{"$f":"'CAPACIDAD FUNC COLUMNA INICIAL'!BJ24","v":0},{"$f":"'CAPACIDAD FUNC COLUMNA INICIAL'!BK24","v":""},{"$f":"'CAPACIDAD FUNC COLUMNA INICIAL'!BM24","v":0},null,{"$f":"'CAPACIDAD FUNC COLUMNA POST'!AA24","v":{"$error":"#VALUE!"}},{"$f":"'CAPACIDAD FUNC COLUMNA POST'!AB24","v":{"$error":"#VALUE!"}},{"$f":"'CAPACIDAD FUNC COLUMNA POST'!AX24","v":{"$error":"#VALUE!"}},{"$f":"'CAPACIDAD FUNC COLUMNA POST'!AY24","v":{"$error":"#VALUE!"}},{"$f":"'CAPACIDAD FUNC COLUMNA POST'!BG24","v":0},{"$f":"'CAPACIDAD FUNC COLUMNA POST'!BH24","v":0},{"$f":"'CAPACIDAD FUNC COLUMNA POST'!BJ24","v":0},{"$f":"'CAPACIDAD FUNC COLUMNA POST'!BK24","v":""},{"$f":"'CAPACIDAD FUNC COLUMNA POST'!BM24","v":0}]
[{"$f":"'CONDICION DE SALUD INICIAL'!A24","v":0},{"$f":"'CONDICION DE SALUD INICIAL'!C24","v":0},{"$f":"'CONDICION DE SALUD INICIAL'!D24","v":0},{"$f":"'CONDICION DE SALUD INICIAL'!B24","v":0},{"$f":"'CONDICION DE SALUD INICIAL'!F24","v":"00:00:00"},{"$f":"'CONDICION DE SALUD POST'!F24","v":"00:00:00"},{"$f":"'CONDICION DE SALUD INICIAL'!E24","v":0},{"$f":"'CONDICION DE SALUD INICIAL'!G24","v":"00:00:00"},{"$f":"'CONDICION DE SALUD INICIAL'!H24","v":0},{"$f":"'CONDICION DE SALUD INICIAL'!I24","v":0},{"$f":"'CONDICION DE SALUD INICIAL'!J24","v":0},{"$f":"'CONDICION DE SALUD INICIAL'!K24","v":0},{"$f":"'CONDICION DE SALUD POST'!K24","v":0},null,{"$f":"'CONDICION DE SALUD INICIAL'!AJ24","v":0},{"$f":"'CONDICION DE SALUD INICIAL'!AK24","v":""},{"$f":"'CONDICION DE SALUD INICIAL'!AL24","v":0},null,{"$f":"'CONDICION DE SALUD POST'!AJ24","v":0},{"$f":"'CONDICION DE SALUD POST'!AK24","v":""},{"$f":"'CONDICION DE SALUD POST'!AL24","v":0},null,{"$f":"'CAPACIDAD FUNC MMSS INICIAL'!Z24","v":0},{"$f":"'CAPACIDAD FUNC MMSS INICIAL'!AA24","v":""},{"$f":"'CAPACIDAD FUNC MMSS INICIAL'!BD24","v":0},{"$f":"'CAPACIDAD FUNC MMSS INICIAL'!BE24","v":""},{"$f":"'CAPACIDAD FUNC MMSS INICIAL'!BX24","v":0},{"$f":"'CAPACIDAD FUNC MMSS INICIAL'!BY24","v":""},{"$f":"'CAPACIDAD FUNC MMSS INICIAL'!CK24","v":0},{"$f":"'CAPACIDAD FUNC MMSS INICIAL'!CL24","v":0},{"$f":"'CAPACIDAD FUNC MMSS INICIAL'!CN24","v":0},{"$f":"'CAPACIDAD FUNC MMSS INICIAL'!CO24","v":0},{"$f":"'CAPACIDAD FUNC MMSS INICIAL'!CQ25","v":0},null,{"$f":"'CAPACIDAD FUNC MMSS POST'!Z24","v":0},{"$f":"'CAPACIDAD FUNC MMSS POST'!AA24","v":""},{"$f":"'CAPACIDAD FUNC MMSS POST'!BD24","v":0},{"$f":"'CAPACIDAD FUNC MMSS POST'!BE24","v":""},{"$f":"'CAPACIDAD FUNC MMSS POST'!BX24","v":0},{"$f":"'CAPACIDAD FUNC MMSS POST'!BY24","v":""},{"$f":"'CAPACIDAD FUNC MMSS POST'!CK24","v":0},{"$f":"'CAPACIDAD FUNC MMSS POST'!CL24","v":0},{"$f":"'CAPACIDAD FUNC COLUMNA POST'!BJ25","v":0},{"$f":"'CAPACIDAD FUNC COLUMNA POST'!BK25","v":""},{"$f":"'CAPACIDAD FUNC COLUMNA POST'!BM25","v":0},null,{"$f":"'CAPACIDAD FUNC COLUMNA INICIAL'!AA25","v":{"$error":"#VALUE!"}},{"$f":"'CAPACIDAD FUNC COLUMNA INICIAL'!AB25","v":{"$error":"#VALUE!"}},{"$f":"'CAPACIDAD FUNC COLUMNA INICIAL'!AX25","v":{"$error":"#VALUE!"}},{"$f":"'CAPACIDAD FUNC COLUMNA INICIAL'!AY25","v":{"$error":"#VALUE!"}},{"$f":"'CAPACIDAD FUNC COLUMNA INICIAL'!BG25","v":0},{"$f":"'CAPACIDAD FUNC COLUMNA INICIAL'!BH25","v":0},{"$f":"'CAPACIDAD FUNC COLUMNA INICIAL'!BJ25","v":0},{"$f":"'CAPACIDAD FUNC COLUMNA INICIAL'!BK25","v":""},{"$f":"'CAPACIDAD FUNC COLUMNA INICIAL'!BM25","v":0},null,{"$f":"'CAPACIDAD FUNC COLUMNA POST'!AA25","v":{"$error":"#VALUE!"}},{"$f":"'CAPACIDAD FUNC COLUMNA POST'!AB25","v":{"$error":"#VALUE!"}},{"$f":"'CAPACIDAD FUNC COLUMNA POST'!AX25","v":{"$error":"#VALUE!"}},{"$f":"'CAPACIDAD FUNC COLUMNA POST'!AY25","v":{"$error":"#VALUE!"}},{"$f":"'CAPACIDAD FUNC COLUMNA POST'!BG25","v":0},{"$f":"'CAPACIDAD FUNC COLUMNA POST'!BH25","v":0},{"$f":"'CAPACIDAD FUNC COLUMNA POST'!BJ25","v":0},{"$f":"'CAPACIDAD FUNC COLUMNA POST'!BK25","v":""},{"$f":"'CAPACIDAD FUNC COLUMNA POST'!BM25","v":0}]
[{"$f":"'CONDICION DE SALUD INICIAL'!A25","v":0},{"$f":"'CONDICION DE SALUD INICIAL'!C25","v":0},{"$f":"'CONDICION DE SALUD INICIAL'!D25","v":0},{"$f":"'CONDICION DE SALUD INICIAL'!B25","v":0},{"$f":"'CONDICION DE SALUD INICIAL'!F25","v":"00:00:00"},{"$f":"'CONDICION DE SALUD POST'!F25","v":"00:00:00"},{"$f":"'CONDICION DE SALUD INICIAL'!E25","v":0},{"$f":"'CONDICION DE SALUD INICIAL'!G25","v":"00:00:00"},{"$f":"'CONDICION DE SALUD INICIAL'!H25","v":0},{"$f":"'CONDICION DE SALUD INICIAL'!I25","v":"SI"},{"$f":"'CONDICION DE SALUD INICIAL'!J25","v":0},{"$f":"'CONDICION DE SALUD INICIAL'!K25","v":0},{"$f":"'CONDICION DE SALUD POST'!K25","v":0},null,{"$f":"'CONDICION DE SALUD INICIAL'!AJ25","v":0},{"$f":"'CONDICION DE SALUD INICIAL'!AK25","v":""},{"$f":"'CONDICION DE SALUD INICIAL'!AL25","v":0},null,{"$f":"'CONDICION DE SALUD POST'!AJ25","v":0},{"$f":"'CONDICION DE SALUD POST'!AK25","v":""},{"$f":"'CONDICION DE SALUD POST'!AL25","v":0},null,{"$f":"'CAPACIDAD FUNC MMSS INICIAL'!Z25","v":0},{"$f":"'CAPACIDAD FUNC MMSS INICIAL'!AA25","v":""},{"$f":"'CAPACIDAD FUNC MMSS INICIAL'!BD25","v":0},{"$f":"'CAPACIDAD FUNC MMSS INICIAL'!BE25","v":""},{"$f":"'CAPACIDAD FUNC MMSS INICIAL'!BX25","v":0},{"$f":"'CAPACIDAD FUNC MMSS INICIAL'!BY25","v":""},{"$f":"'CAPACIDAD FUNC MMSS INICIAL'!CK25","v":0},{"$f":"'CAPACIDAD FUNC MMSS INICIAL'!CL25","v":0},{"$f":"'CAPACIDAD FUNC MMSS INICIAL'!CN25","v":0},{"$f":"'CAPACIDAD FUNC MMSS INICIAL'!CO25","v":0},{"$f":"'CAPACIDAD FUNC MMSS INICIAL'!CQ26","v":0},null,{"$f":"'CAPACIDAD FUNC MMSS POST'!Z25","v":0},{"$f":"'CAPACIDAD FUNC MMSS POST'!AA25","v":""},{"$f":"'CAPACIDAD FUNC MMSS POST'!BD25","v":0},{"$f":"'CAPACIDAD FUNC MMSS POST'!BE25","v":""},{"$f":"'CAPACIDAD FUNC MMSS POST'!BX25","v":0},{"$f":"'CAPACIDAD FUNC MMSS POST'!BY25","v":""},{"$f":"'CAPACIDAD FUNC MMSS POST'!CK25","v":0},{"$f":"'CAPACIDAD FUNC MMSS POST'!CL25","v":0},{"$f":"'CAPACIDAD FUNC COLUMNA POST'!BJ26","v":0},{"$f":"'CAPACIDAD FUNC COLUMNA POST'!BK26","v":""},{"$f":"'CAPACIDAD FUNC COLUMNA POST'!BM26","v":0},null,{"$f":"'CAPACIDAD FUNC COLUMNA INICIAL'!AA26","v":{"$error":"#VALUE!"}},{"$f":"'CAPACIDAD FUNC COLUMNA INICIAL'!AB26","v":{"$error":"#VALUE!"}},{"$f":"'CAPACIDAD FUNC COLUMNA INICIAL'!AX26","v":{"$error":"#VALUE!"}},{"$f":"'CAPACIDAD FUNC COLUMNA INICIAL'!AY26","v":{"$error":"#VALUE!"}},{"$f":"'CAPACIDAD FUNC COLUMNA INICIAL'!BG26","v":0},{"$f":"'CAPACIDAD FUNC COLUMNA INICIAL'!BH26","v":0},{"$f":"'CAPACIDAD FUNC COLUMNA INICIAL'!BJ26","v":0},{"$f":"'CAPACIDAD FUNC COLUMNA INICIAL'!BK26","v":""},{"$f":"'CAPACIDAD FUNC COLUMNA INICIAL'!BM26","v":0},null,{"$f":"'CAPACIDAD FUNC COLUMNA POST'!AA26","v":{"$error":"#VALUE!"}},{"$f":"'CAPACIDAD FUNC COLUMNA POST'!AB26","v":{"$error":"#VALUE!"}},{"$f":"'CAPACIDAD FUNC COLUMNA POST'!AX26","v":{"$error":"#VALUE!"}},{"$f":"'CAPACIDAD FUNC COLUMNA POST'!AY26","v":{"$error":"#VALUE!"}},{"$f":"'CAPACIDAD FUNC COLUMNA POST'!BG26","v":0},{"$f":"'CAPACIDAD FUNC COLUMNA POST'!BH26","v":0},{"$f":"'CAPACIDAD FUNC COLUMNA POST'!BJ26","v":0},{"$f":"'CAPACIDAD FUNC COLUMNA POST'!BK26","v":""},{"$f":"'CAPACIDAD FUNC COLUMNA POST'!BM26","v":0}]
[{"$f":"'CONDICION DE SALUD INICIAL'!A26","v":0},{"$f":"'CONDICION DE SALUD INICIAL'!C26","v":0},{"$f":"'CONDICION DE SALUD INICIAL'!D26","v":0},{"$f":"'CONDICION DE SALUD INICIAL'!B26","v":0},{"$f":"'CONDICION DE SALUD INICIAL'!F26","v":"00:00:00"},{"$f":"'CONDICION DE SALUD POST'!F26","v":"00:00:00"},{"$f":"'CONDICION DE SALUD INICIAL'!E26","v":0},{"$f":"'CONDICION DE SALUD INICIAL'!G26","v":"00:00:00"},{"$f":"'CONDICION DE SALUD INICIAL'!H26","v":0},{"$f":"'CONDICION DE SALUD INICIAL'!I26","v":"SI"},{"$f":"'CONDICION DE SALUD INICIAL'!J26","v":0},{"$f":"'CONDICION DE SALUD INICIAL'!K26","v":0},{"$f":"'CONDICION DE SALUD POST'!K26","v":0},null,{"$f":"'CONDICION DE SALUD INICIAL'!AJ26","v":0},{"$f":"'CONDICION DE SALUD INICIAL'!AK26","v":""},{"$f":"'CONDICION DE SALUD INICIAL'!AL26","v":0},null,{"$f":"'CONDICION DE SALUD POST'!AJ26","v":0},{"$f":"'CONDICION DE SALUD POST'!AK26","v":""},{"$f":"'CONDICION DE SALUD POST'!AL26","v":0},null,{"$f":"'CAPACIDAD FUNC MMSS INICIAL'!Z26","v":0},{"$f":"'CAPACIDAD FUNC MMSS INICIAL'!AA26","v":""},{"$f":"'CAPACIDAD FUNC MMSS INICIAL'!BD26","v":0},{"$f":"'CAPACIDAD FUNC MMSS INICIAL'!BE26","v":""},{"$f":"'CAPACIDAD FUNC MMSS INICIAL'!BX26","v":0},{"$f":"'CAPACIDAD FUNC MMSS INICIAL'!BY26","v":""},{"$f":"'CAPACIDAD FUNC MMSS INICIAL'!CK26","v":0},{"$f":"'CAPACIDAD FUNC MMSS INICIAL'!CL26","v":0},{"$f":"'CAPACIDAD FUNC MMSS INICIAL'!CN26","v":0},{"$f":"'CAPACIDAD FUNC MMSS INICIAL'!CO26","v":0},{"$f":"'CAPACIDAD FUNC MMSS INICIAL'!CQ27","v":0},null,{"$f":"'CAPACIDAD FUNC MMSS POST'!Z26","v":0},{"$f":"'CAPACIDAD FUNC MMSS POST'!AA26","v":""},{"$f":"'CAPACIDAD FUNC MMSS POST'!BD26","v":0},{"$f":"'CAPACIDAD FUNC MMSS POST'!BE26","v":""},{"$f":"'CAPACIDAD FUNC MMSS POST'!BX26","v":0},{"$f":"'CAPACIDAD FUNC MMSS POST'!BY26","v":""},{"$f":"'CAPACIDAD FUNC MMSS POST'!CK26","v":0},{"$f":"'CAPACIDAD FUNC MMSS POST'!CL26","v":0},{"$f":"'CAPACIDAD FUNC COLUMNA POST'!BJ27","v":0},{"$f":"'CAPACIDAD FUNC COLUMNA POST'!BK27","v":""},{"$f":"'CAPACIDAD FUNC COLUMNA POST'!BM27","v":0},null,{"$f":"'CAPACIDAD FUNC COLUMNA INICIAL'!AA27","v":{"$error":"#VALUE!"}},{"$f":"'CAPACIDAD FUNC COLUMNA INICIAL'!AB27","v":{"$error":"#VALUE!"}},{"$f":"'CAPACIDAD FUNC COLUMNA INICIAL'!AX27","v":{"$error":"#VALUE!"}},{"$f":"'CAPACIDAD FUNC COLUMNA INICIAL'!AY27","v":{"$error":"#VALUE!"}},{"$f":"'CAPACIDAD FUNC COLUMNA INICIAL'!BG27","v":0},{"$f":"'CAPACIDAD FUNC COLUMNA INICIAL'!BH27","v":0},{"$f":"'CAPACIDAD FUNC COLUMNA INICIAL'!BJ27","v":0},{"$f":"'CAPACIDAD FUNC COLUMNA INICIAL'!BK27","v":""},{"$f":"'CAPACIDAD FUNC COLUMNA INICIAL'!BM27","v":0},null,{"$f":"'CAPACIDAD FUNC COLUMNA POST'!AA27","v":{"$error":"#VALUE!"}},{"$f":"'CAPACIDAD FUNC COLUMNA POST'!AB27","v":{"$error":"#VALUE!"}},{"$f":"'CAPACIDAD FUNC COLUMNA POST'!AX27","v":{"$error":"#VALUE!"}},{"$f":"'CAPACIDAD FUNC COLUMNA POST'!AY27","v":{"$error":"#VALUE!"}},{"$f":"'CAPACIDAD FUNC COLUMNA POST'!BG27","v":0},{"$f":"'CAPACIDAD FUNC COLUMNA POST'!BH27","v":0},{"$f":"'CAPACIDAD FUNC COLUMNA POST'!BJ27","v":0},{"$f":"'CAPACIDAD FUNC COLUMNA POST'!BK27","v":""},{"$f":"'CAPACIDAD FUNC COLUMNA POST'!BM27","v":0}]
[{"$f":"'CONDICION DE SALUD INICIAL'!A27","v":0},{"$f":"'CONDICION DE SALUD INICIAL'!C27","v":0},{"$f":"'CONDICION DE SALUD INICIAL'!D27","v":0},{"$f":"'CONDICION DE SALUD INICIAL'!B27","v":0},{"$f":"'CONDICION DE SALUD INICIAL'!F27","v":"00:00:00"},{"$f":"'CONDICION DE SALUD POST'!F27","v":"00:00:00"},{"$f":"'CONDICION DE SALUD INICIAL'!E27","v":0},{"$f":"'CONDICION DE SALUD INICIAL'!G27","v":"00:00:00"},{"$f":"'CONDICION DE SALUD INICIAL'!H27","v":0},{"$f":"'CONDICION DE SALUD INICIAL'!I27","v":0},{"$f":"'CONDICION DE SALUD INICIAL'!J27","v":0},{"$f":"'CONDICION DE SALUD INICIAL'!K27","v":0},{"$f":"'CONDICION DE SALUD POST'!K27","v":0},null,{"$f":"'CONDICION DE SALUD INICIAL'!AJ27","v":0},{"$f":"'CONDICION DE SALUD INICIAL'!AK27","v":""},{"$f":"'CONDICION DE SALUD INICIAL'!AL27","v":0},null,{"$f":"'CONDICION DE SALUD POST'!AJ27","v":0},{"$f":"'CONDICION DE SALUD POST'!AK27","v":""},{"$f":"'CONDICION DE SALUD POST'!AL27","v":0},null,{"$f":"'CAPACIDAD FUNC MMSS INICIAL'!Z27","v":0},{"$f":"'CAPACIDAD FUNC MMSS INICIAL'!AA27","v":""},{"$f":"'CAPACIDAD FUNC MMSS INICIAL'!BD27","v":0},{"$f":"'CAPACIDAD FUNC MMSS INICIAL'!BE27","v":""},{"$f":"'CAPACIDAD FUNC MMSS INICIAL'!BX27","v":0},{"$f":"'CAPACIDAD FUNC MMSS INICIAL'!BY27","v":""},{"$f":"'CAPACIDAD FUNC MMSS INICIAL'!CK27","v":0},{"$f":"'CAPACIDAD FUNC MMSS INICIAL'!CL27","v":0},{"$f":"'CAPACIDAD FUNC MMSS INICIAL'!CN27","v":0},{"$f":"'CAPACIDAD FUNC MMSS INICIAL'!CO27","v":0},{"$f":"'CAPACIDAD FUNC MMSS INICIAL'!CQ28","v":0},null,{"$f":"'CAPACIDAD FUNC MMSS POST'!Z27","v":0},{"$f":"'CAPACIDAD FUNC MMSS POST'!AA27","v":""},{"$f":"'CAPACIDAD FUNC MMSS POST'!BD27","v":0},{"$f":"'CAPACIDAD FUNC MMSS POST'!BE27","v":""},{"$f":"'CAPACIDAD FUNC MMSS POST'!BX27","v":0},{"$f":"'CAPACIDAD FUNC MMSS POST'!BY27","v":""},{"$f":"'CAPACIDAD FUNC MMSS POST'!CK27","v":0},{"$f":"'CAPACIDAD FUNC MMSS POST'!CL27","v":0},{"$f":"'CAPACIDAD FUNC COLUMNA POST'!BJ28","v":0},{"$f":"'CAPACIDAD FUNC COLUMNA POST'!BK28","v":""},{"$f":"'CAPACIDAD FUNC COLUMNA POST'!BM28","v":0},null,{"$f":"'CAPACIDAD FUNC COLUMNA INICIAL'!AA28","v":{"$error":"#VALUE!"}},{"$f":"'CAPACIDAD FUNC COLUMNA INICIAL'!AB28","v":{"$error":"#VALUE!"}},{"$f":"'CAPACIDAD FUNC COLUMNA INICIAL'!AX28","v":{"$error":"#VALUE!"}},{"$f":"'CAPACIDAD FUNC COLUMNA INICIAL'!AY28","v":{"$error":"#VALUE!"}},{"$f":"'CAPACIDAD FUNC COLUMNA INICIAL'!BG28","v":0},{"$f":"'CAPACIDAD FUNC COLUMNA INICIAL'!BH28","v":0},{"$f":"'CAPACIDAD FUNC COLUMNA INICIAL'!BJ28","v":0},{"$f":"'CAPACIDAD FUNC COLUMNA INICIAL'!BK28","v":""},{"$f":"'CAPACIDAD FUNC COLUMNA INICIAL'!BM28","v":0},null,{"$f":"'CAPACIDAD FUNC COLUMNA POST'!AA28","v":{"$error":"#VALUE!"}},{"$f":"'CAPACIDAD FUNC COLUMNA POST'!AB28","v":{"$error":"#VALUE!"}},{"$f":"'CAPACIDAD FUNC COLUMNA POST'!AX28","v":{"$error":"#VALUE!"}},{"$f":"'CAPACIDAD FUNC COLUMNA POST'!AY28","v":{"$error":"#VALUE!"}},{"$f":"'CAPACIDAD FUNC COLUMNA POST'!BG28","v":0},{"$f":"'CAPACIDAD FUNC COLUMNA POST'!BH28","v":0},{"$f":"'CAPACIDAD FUNC COLUMNA POST'!BJ28","v":0},{"$f":"'CAPACIDAD FUNC COLUMNA POST'!BK28","v":""},{"$f":"'CAPACIDAD FUNC COLUMNA POST'!BM28","v":0}]

{"sheet":"CONSOLIDADO POR TRABAJADOR","index":8,"n_rows":54,"n_cols":15,"rows_kept":54,"cut":false,"hidden":false,"merged":[[39,0,43,0],[44,0,47,0],[44,9,44,11],[44,13,44,14],[45,2,45,3],[45,5,45,7],[45,9,45,11],[45,13,45,14],[47,1,47,14],[39,13,39,14],[39,9,39,11],[39,5,39,7],[39,2,39,3],[1,0,1,14],[3,0,3,14],[7,0,7,2],[9,0,9,2],[11,0,11,14],[9,8,9,9],[5,3,5,4],[5,6,5,7],[5,8,5,9],[5,11,5,12],[5,13,5,14],[5,0,5,2],[25,0,29,0],[31,4,31,6],[31,8,31,10],[28,1,28,14],[29,1,29,14],[26,4,26,6],[26,8,26,10],[30,4,30,6],[30,8,30,10],[30,0,33,0],[32,1,32,14],[33,1,33,14],[0,1,0,9],[38,1,38,3],[38,4,38,7],[38,8,38,11],[38,12,38,14],[35,1,35,10],[7,11,7,12],[7,13,7,14],[9,11,9,12],[9,13,9,14],[7,8,7,9],[7,3,7,4],[9,3,9,4],[16,3,16,4],[7,6,7,7],[9,6,9,7],[18,3,18,4],[18,5,18,14],[16,1,16,2],[17,1,17,2],[18,1,18,2],[12,0,12,14],[14,1,14,14],[16,5,16,14],[17,3,17,4],[17,5,17,14],[22,1,22,14],[25,4,25,6],[25,8,25,10],[24,11,24,12],[24,7,24,10],[24,1,24,2],[24,13,24,14],[24,3,24,6],[19,1,19,10],[49,0,49,14],[50,0,50,14],[52,0,52,14],[53,0,53,14],[48,1,48,7],[40,2,40,3],[40,5,40,7],[40,9,40,11],[40,13,40,14],[46,1,46,14],[42,1,42,14],[43,1,43,14],[44,2,44,3],[44,5,44,7],[36,1,36,14]]}
[]
["Consolidado por trabajador"]
[]
["INFORMACIÓN GENERAL"]
[]
[{"$f":"'BASE DE DATOS CONSOLIDADO'!E4","v":"Fecha de evaluación inicial"},null,null,{"$f":"VLOOKUP(D8,SUPERTABLA,4,0)","v":"00:00:00"},null,null,{"$f":"'CONDICION DE SALUD POST'!F5","v":"Fecha de evaluación posterior a intervención"},null,{"$f":"VLOOKUP(D8,SUPERTABLA,5,0)","v":"00:00:00"},null,null,{"$f":"'BASE DE DATOS CONSOLIDADO'!D4","v":"Empresa"},null,{"$f":"VLOOKUP(D8,SUPERTABLA,3,0)","v":0}]
[]
[{"$f":"'BASE DE DATOS CONSOLIDADO'!B4","v":"Apellidos"},null,null,0,null,null,{"$f":"'BASE DE DATOS CONSOLIDADO'!C4","v":"Nombres"},null,{"$f":"VLOOKUP(D8,SUPERTABLA,2,0)","v":0},null,null,{"$f":"'BASE DE DATOS CONSOLIDADO'!G4","v":"Cédula"},null,{"$f":"VLOOKUP(D8,SUPERTABLA,6,0)","v":0}]
[]
[{"$f":"'BASE DE DATOS CONSOLIDADO'!H4","v":"Fecha de Nacimiento"},null,null,{"$f":"VLOOKUP(D8,SUPERTABLA,7,0)","v":"00:00:00"},null,null,{"$f":"'BASE DE DATOS CONSOLIDADO'!I4","v":"Edad"},null,{"$f":"VLOOKUP(D8,SUPERTABLA,8,0)","v":0},null,null,{"$f":"'BASE DE DATOS CONSOLIDADO'!J4","v":"Presenta algún desorden músculo esquelético"},null,{"$f":"VLOOKUP(D8,SUPERTABLA,9,0)","v":"SI"}]
[]
[{"$f":"'BASE DE DATOS CONSOLIDADO'!K4","v":"Listado de desórdenes músculo esqueléticos"}]
[{"$f":"VLOOKUP(D8,SUPERTABLA,10,0)","v":0}]
[]
[null,{"$f":"'BASE DE DATOS CONSOLIDADO'!O4","v":"CONDICIÓN DE SALUD"}]
[]
[null,{"$f":"'BASE DE DATOS CONSOLIDADO'!O6","v":"Calificación total"},null,{"$f":"'BASE DE DATOS CONSOLIDADO'!P6","v":"Interpretación"},null,{"$f":"'BASE DE DATOS CONSOLIDADO'!Q6","v":"Observaciones"}]
[{"$f":"'BASE DE DATOS CONSOLIDADO'!O5","v":"INICIAL "},{"$f":"VLOOKUP(D8,SUPERTABLA,14,0)","v":30},null,{"$f":"VLOOKUP(D8,SUPERTABLA,15,0)","v":"REGULAR"},null,{"$f":"VLOOKUP(D8,SUPERTABLA,16,0)","v":0}]
[{"$f":"'BASE DE DATOS CONSOLIDADO'!S5","v":"POSTERIOR A INTERVENCIÓN"},{"$f":"VLOOKUP(D8,SUPERTABLA,18,0)","v":11},null,{"$f":"VLOOKUP(D8,SUPERTABLA,19,0)","v":"BUENO"},null,{"$f":"VLOOKUP(D8,SUPERTABLA,20,0)","v":0}]
[]
[]
[]
[null,{"$f":"'BASE DE DATOS CONSOLIDADO'!W4","v":"CAPACIDAD FUNCIONAL MIEMBROS SUPERIORES"}]
[]
[null,{"$f":"'BASE DE DATOS CONSOLIDADO'!W6","v":"DOLOR ( PATIENT RATED WRIST EVALUATION (PRWE))"},null,{"$f":"'BASE DE DATOS CONSOLIDADO'!Y6","v":"THE PATIENT - RATED ELBOW EVALUATION (PREE) - CODO"},null,null,null,{"$f":"'BASE DE DATOS CONSOLIDADO'!AA6","v":"SHOULDER PAIN DISABILITY INDEX (SPADI) "},null,null,null,{"$f":"'BASE DE DATOS CONSOLIDADO'!AC6","v":"FUERZA"},null,{"$f":"'BASE DE DATOS CONSOLIDADO'!AE6","v":"FLEXIBILIDAD"}]
[{"$f":"'BASE DE DATOS CONSOLIDADO'!W5","v":"INICIAL"},"Puntuación total","Interpretación","Puntuación total","Interpretación",null,null,"Puntuación total","Interpretación",null,null,"No. de flexiones ejecutadas","Interpretación","Alcance posterior manos","Interpretación"]
[null,{"$f":"VLOOKUP(D8,SUPERTABLA,22,0)","v":0},{"$f":"VLOOKUP(D8,SUPERTABLA,23,0)","v":""},{"$f":"VLOOKUP(D8,SUPERTABLA,24,0)","v":0},{"$f":"VLOOKUP(D8,SUPERTABLA,25,0)","v":""},null,null,{"$f":"VLOOKUP(D8,SUPERTABLA,26,0)","v":0},{"$f":"VLOOKUP(D8,SUPERTABLA,27,0)","v":""},null,null,{"$f":"VLOOKUP(D8,SUPERTABLA,28,0)","v":0},{"$f":"VLOOKUP(D8,SUPERTABLA,29,0)","v":"Pobre"},{"$f":"VLOOKUP(D8,SUPERTABLA,30,0)","v":"No se logra el contacto entre las manos"},{"$f":"VLOOKUP(D8,SUPERTABLA,31,0)","v":"Mala"}]
[null,{"$f":"B32","v":0},null,{"$f":"D32","v":0},null,null,null,{"$f":"H32","v":1.8749999999999999E-2},null,null,null,{"$f":"L32","v":0},null,{"$f":"N32","v":0}]
[null,{"$f":"'BASE DE DATOS CONSOLIDADO'!AG6","v":"Observaciones"}]
[null,{"$f":"VLOOKUP(D8,SUPERTABLA,32,0)","v":0}]
[{"$f":"'BASE DE DATOS CONSOLIDADO'!AI5","v":"POSTERIOR A INTERVENCIÓN"},"Puntuación total","Interpretación","Puntuación total","Interpretación",null,null,"Puntuación total","Interpretación",null,null,"No. de flexiones ejecutadas","Interpretación","Alcance posterior manos","Interpretación"]
[null,{"$f":"VLOOKUP(D8,SUPERTABLA,34,0)","v":0},{"$f":"VLOOKUP(D8,SUPERTABLA,35,0)","v":""},{"$f":"VLOOKUP(D8,SUPERTABLA,36,0)","v":0},{"$f":"VLOOKUP(D8,SUPERTABLA,37,0)","v":""},null,null,{"$f":"VLOOKUP(D8,SUPERTABLA,38,0)","v":1.8749999999999999E-2},{"$f":"VLOOKUP(D8,SUPERTABLA,39,0)","v":"Limitación funcional mínima"},null,null,{"$f":"VLOOKUP(D8,SUPERTABLA,40,0)","v":0},{"$f":"VLOOKUP(D8,SUPERTABLA,41,0)","v":0},{"$f":"VLOOKUP(D8,SUPERTABLA,42,0)","v":0},{"$f":"VLOOKUP(D8,SUPERTABLA,43,0)","v":""}]
[null,{"$f":"'BASE DE DATOS CONSOLIDADO'!AS6","v":"Observaciones"}]
[null,{"$f":"VLOOKUP(D8,SUPERTABLA,44,0)","v":0}]
[]
[]
[null,{"$f":"'BASE DE DATOS CONSOLIDADO'!AU4","v":"CAPACIDAD FUNCIONAL COLUMNA"}]
[]
[null,{"$f":"'BASE DE DATOS CONSOLIDADO'!AU6","v":"INDICE DE DISCAPACIDAD EN COLUMNA CERVICAL"},null,null,{"$f":"'BASE DE DATOS CONSOLIDADO'!AW6","v":"FUNCIONALIDAD (ESCALA DE DISCAPACIDAD POR DOLOR LUMBAR DE OSWESTRY)"},null,null,null,{"$f":"'BASE DE DATOS CONSOLIDADO'!AY6","v":"FUERZA"},null,null,null,{"$f":"'BASE DE DATOS CONSOLIDADO'!BA6","v":"FLEXIBILIDAD"}]
[{"$f":"'BASE DE DATOS CONSOLIDADO'!AU5","v":"INICIAL"},{"$f":"'BASE DE DATOS CONSOLIDADO'!AU7","v":"Calificación Total"},{"$f":"'BASE DE DATOS CONSOLIDADO'!AV7","v":"Interpretación"},null,{"$f":"'BASE DE DATOS CONSOLIDADO'!AW7","v":"Calificación ODI"},{"$f":"'BASE DE DATOS CONSOLIDADO'!AX7","v":"Interpretación"},null,null,{"$f":"'BASE DE DATOS CONSOLIDADO'!AY7","v":"Resultado de la prueba (min)"},{"$f":"'BASE DE DATOS CONSOLIDADO'!AZ7","v":"Interpretación de la prueba"},null,null,{"$f":"'BASE DE DATOS CONSOLIDADO'!BA7","v":"Prueba de flexión de tronco en V"},{"$f":"'BASE DE DATOS CONSOLIDADO'!BB7","v":"Interpretación"}]
[null,{"$f":"VLOOKUP(D8,SUPERTABLA,46,0)","v":0.64},{"$f":"VLOOKUP(D8,SUPERTABLA,47,0)","v":"Discapacidad máxima"},null,{"$f":"VLOOKUP(D8,SUPERTABLA,48,0)","v":0.34},{"$f":"VLOOKUP(D8,SUPERTABLA,49,0)","v":"Limitación funcional moderada"},null,null,{"$f":"VLOOKUP(D8,SUPERTABLA,50,0)","v":"<2min"},{"$f":"VLOOKUP(D8,SUPERTABLA,51,0)","v":"Necesita Mejorar"},null,null,{"$f":"VLOOKUP(D8,SUPERTABLA,52,0)","v":0},{"$f":"VLOOKUP(D8,SUPERTABLA,53,0)","v":""}]
[null,{"$f":"B46","v":{"$error":"#VALUE!"}},null,{"$f":"D46","v":0},{"$f":"E46","v":{"$error":"#VALUE!"}},null,null,{"$f":"H46","v":0},{"$f":"I46","v":0},null,null,{"$f":"L46","v":0},{"$f":"M46","v":0},{"$f":"N46","v":""}]
[null,{"$f":"'BASE DE DATOS CONSOLIDADO'!BC2","v":0}]
[null,{"$f":"VLOOKUP(D8,SUPERTABLA,54,0)","v":0}]
[{"$f":"'BASE DE DATOS CONSOLIDADO'!BE5","v":"POSTERIOR A INTERVENCIÓN"},{"$f":"'CAPACIDAD FUNC COLUMNA POST'!AA6","v":"Calificación Total"},{"$f":"'CAPACIDAD FUNC COLUMNA POST'!AB6","v":"Interpretación"},null,{"$f":"'CAPACIDAD FUNC COLUMNA POST'!AX8","v":"Calificación ODI"},{"$f":"'CAPACIDAD FUNC COLUMNA POST'!AY8","v":"Interpretación"},null,null,{"$f":"'CAPACIDAD FUNC COLUMNA POST'!BG7","v":"Resultado de la prueba (min)"},{"$f":"'CAPACIDAD FUNC COLUMNA POST'!BH7","v":"Interpretación de la prueba"},null,null,{"$f":"'CAPACIDAD FUNC COLUMNA POST'!BJ6","v":"Prueba de flexión de tronco en V"},{"$f":"'CAPACIDAD FUNC COLUMNA POST'!BK6","v":"Interpretación"}]
[null,{"$f":"VLOOKUP(D8,SUPERTABLA,56,0)","v":{"$error":"#VALUE!"}},{"$f":"VLOOKUP(D8,SUPERTABLA,57,0)","v":{"$error":"#VALUE!"}},null,{"$f":"VLOOKUP(D8,SUPERTABLA,58,0)","v":{"$error":"#VALUE!"}},{"$f":"VLOOKUP(D8,SUPERTABLA,59,0)","v":{"$error":"#VALUE!"}},null,null,{"$f":"VLOOKUP(D8,SUPERTABLA,60,0)","v":0},{"$f":"VLOOKUP(D8,SUPERTABLA,61,0)","v":0},null,null,{"$f":"VLOOKUP(D8,SUPERTABLA,62,0)","v":0},{"$f":"VLOOKUP(D8,SUPERTABLA,63,0)","v":""}]
[null,{"$f":"'BASE DE DATOS CONSOLIDADO'!BC6","v":"Observaciones"}]
[null,{"$f":"VLOOKUP(D8,SUPERTABLA,64,0)","v":0}]
[]
[{"$f":"'BASE DE DATOS CONSOLIDADO'!BO4","v":"CONCLUSIONES DE LA ACTIVIDAD LABORAL"}]
[{"$f":"VLOOKUP(D8,SUPERTABLA,66,0)","v":0}]
[]
[{"$f":"'BASE DE DATOS CONSOLIDADO'!BQ4","v":"RECOMENDACIONES DE LA ACTIVIDAD LABORAL"}]
[{"$f":"VLOOKUP(D8,SUPERTABLA,68,0)","v":0}]

{"sheet":"CATEGORÍAS","index":9,"n_rows":12,"n_cols":34,"rows_kept":12,"cut":false,"hidden":true,"merged":[]}
[]
["Excelente","No, no me limita nada","SI","Nada","Siempre",0,0,"No dificultad","Excelente","No es difícil en absoluto","No es difícil en absoluto","Puedo soportar el dolor sin necesidad de tomar calmantes","Me las puedo arreglar solo sin que aumente el dolor","Puedo levantar objetos pesados sin que me aumente el dolor","El dolor no me impide andar","Puedo estar sentado en cualquier tipo de silla todo el tiempo que quiera","Puedo estar de pie tanto tiempo como quiera sin que me aumente el dolor","El dolor no me impide dormir bien","Mi actividad sexual es normal y no me aumenta el dolor","Mi vida social es uy normal y no me aumenta el dolor","Puedo viajar a cualquier sitio sin que aumente el dolor","No tengo dolor en este momento","Puedo cuidarme con normalidad sin causar dolor adicional","Puedo levantar objetos pesados sin aumento del dolor","Puedo leer todo lo que quiera sin que me duela el cuello","No tengo ningún dolor de cabeza","Me concentro totalmente en algo cuando quiero sin dificultad","Puedo trabajar todo lo que quiero","Puedo conducir sin dolor en el cuello","No tengo ningún problema para dormir","Puedo hacer todas mis actividades de ocio sin dolor de cuello","Excelente",">0","ALTO"]
["Muy buena","Si, me limita un poco","NO","Un poco","Casi siempre",1,1,"Un poco de dificultad","Bien","Mínimamente difícil","Mínimamente difícil","El dolor es fuerte pero me arreglo sin tomar calmantes","Me las puedo arreglar solo pero esto me aumenta el dolor","Puedo levantar objetos pesados pero me aumenta el dolor","El dolor me impide andar más de 1 kilómetro","Puedo estar sentado en mi silla favorita todo el tiempo que quiera","Puedo estar de pie tanto tiempo como quiera pero me aumenta el dolor","Sólo puedo dormir si tomo pastillas","Mi actividad sexual es normal pero me aumenta el dolor","Mi vida social es normal, pero me aumenta el dolor","Puedo viajar a cualquier sitio, pero me aumenta el dolor","El dolor es muy leve en este momento","Puedo cuidarme con normalidad pero esto me aumenta el dolor","Puedo levantar objetos pesados pero me aumenta el dolor","Puedo leer todo lo que quiera con un dolor leve en el cuello","A veces tengo un pequeño dolor de cabeza","Me concentro totalmente en algo cuando quiero con alguna dificultad","Puedo hacer mi trabajo habitual, pero no más","Puedo conducir todo lo que quiero, pero con un ligero dolor en el cuello","Pierdo menos de 1 hora de sueño cada noche por el dolor de cuello","Puedo hacer todas mis actividades de ocio con algún dolor de cuello","Satisfactorio",0,"MEDIO"]
["Buena","Si, me limita mucho",null,"Regular","Algunas veces",null,2,"Dificultad moderada","Promedio","Algo difícil","Algo difícil","Los calmantes me alivian completamente el dolor","Lavarme, vestirme, etc., me produce dolor y tengo que hacerlo despacio y con cuidado","El dolor me impide levantar objetos pesados del suelo, pero puedo hacerlo si están en un sitio cómodo (ej. En una mesa)","El dolor me impide andar más de 500 metros","El dolor me impide estar sentado más de una hora","El dolor me impide estar de pie más de una hora","Incluso tomando pastillas duermo menos de seis horas","Mi actividad sexual es casi normal pero me aumenta mucho el dolor","El dolor no tiene un efecto importante en mi vida social, pero impide mis actividades más enérgicas, como bailar, etc","El dolor es fuerte, pero aguanto viajes de más de dos horas","El dolor es moderado en este momento","Cuidarme me duele de forma que tengo que hacerlo despacio y con cuidado","El dolor me impide levantar objetos pesados del suelo, pero lo puedo hacer si están colocados en un sitio fácil, como por ejemplo en una mesa","Puedo leer todo lo que quiera con un dolor moderado en el cuello","A veces tengo un dolor moderado de cabeza","Tengo alguna dificultad para concentrarme cuando quiero","Puedo hacer casi todo mi trabajo habitual, pero no más","Puedo conducir todo lo que quiero, pero con un moderado dolor en el cuello","Pierdo de 1 a 2 horas de sueño cada noche por el dolor de cuello","No puedo hacer alguna de mis actividades de ocio por el dolor de cuello","Necesita Mejorar","<0","BAJO"]
["Regular",null,"Bajo/Pobre","Bastante","Solo una vez",null,3,"Bastante dificultad","Regular","Bastante difícil","Bastante difícil","Los calmantes me alivian un poco el dolor","Necesito alguna ayuda pero consigo hacer la mayoría de las cosas yo solo","El dolor me impide levantar objetos pesados, pero si puedo levantar objetos ligeros o medianos si están en un sitio cómodo","El dolor me impide andar más de 250 metros","El dolor me impide estar sentado más de media hora","El dolor me impide estar de pie más de media hora","Incluso tomando pastillas duermo menos de cuatro horas","Mi actividad sexual se ha visto muy limitada a causa del dolor","El dolor ha limitado mi vida social y no salgo tan a menudo","El dolor me limita a viajes de menos de una hora","El dolor es bastante severo en este momento","Aunque necesito alguna ayuda me las arreglo para casi todos mis cuidados","El dolor me impide levantar objetos pesados del suelo, pero puedo levantar objetos medianos o ligeros si están colocados en un sitio fácil","No puedo leer todo lo que quiero debido a un dolor moderado en el cuello","Con frecuencia tengo un dolor moderado de cabeza","Tengo bastante dificultad para concentrarme cuando quiero","No puedo hacer mi trabajo habitual","No puedo conducir todo lo que quiero debido al dolor de cuello","Pierdo de 2 a 3 horas de sueño cada noche por el dolor de cuello","Solo puedo hacer unas pocas actividades de ocio por el dolor de cuello",null,null,"ASINTOMÁTICO"]
["Mala",null,"Debajo del promedio","Mucho","Nunca",null,4,"Extrema dificultad o incapaz de realizar la actividad","Pobre","Muy difícil","Muy difícil","Los calmantes apenas me alivian el dolor","Necesito ayuda para hacer la mayoría de las cosas","Solo puedo levantar objetos muy ligeros","Sólo puedo andar con bastón o muletas","El dolor me impide estar sentado más de diez minutos","El dolor me impide estar de pie más de diez minutos","Incluso tomando pastillas duermo menos de dos horas","Mi actividad sexual es casi nula a causa del dolor","El dolor ha limitado mi vida social al hogar","El dolor me limita a viajes cortos y necesarios de menos de media hora","El dolor es muy severo en este momento","Todos los días necesito ayuda para la mayor parte de mis cuidados","Solo puedo levantar objetos muy ligeros","Apenas puedo leer por el gran dolor que me produce en el cuello","Con frecuencia tengo un dolor fuerte de cabeza","Tengo mucha dificultad para concentrarme cuando quiero","A duras penas puedo hacer algún tipo de trabajo","Apenas puedo conducir debido al intenso dolor de cuello","Pierdo de 3 a 5 horas de sueño cada noche por el dolor de cuello","Apenas puedo hacer las cosas que me gustan debido al dolor de cuello"]
[null,null,"Dentro del promedio",null,null,null,5,null,null,null,"Imposible hacer","Los calmantes no me quitan el dolor y no los tomo","No puedo vestirme, me cuesta lavarme, y suelo quedarme en la cama","No puedo levantar ni elevar ningún objeto","Permanezco en la cama casi todo el tiempo y tengo que ir a rastras al baño","El dolor me impide estar sentado","El dolor me impide estar de pie","El dolor me impide totalmente dormir","El dolor me impide todo tipo de actividad sexual","No tengo vida social a causa del dolor","El dolor me impide viajar excepto para ir al médico o al hospital","El dolor es el peor imaginable en este momento","No puedo vestirme, me baño con dificultad y me quedo en la cama","No puedo levantar ni llevar ningún tipo de objeto","No puedo leer nada en absoluto","Tengo dolor de cabeza casi continuo","No puedo concentrarme nunca","No puedo trabajar en nada","No puedo conducir nada por el dolor de cuello","Pierdo de 5 a 7 horas de sueño cada noche por el dolor de cuello","No puedo realizar ninguna actividad de ocio"]
[null,null,"Excelente",null,null,null,6,null,"Se sobreponen las manos"]
[null,null,null,null,null,null,7,null,"Entran en contacto puntas de los dedos medios"]
[null,null,null,null,null,null,8,null,"No se logra el contacto entre las manos"]
[null,null,null,null,null,null,9]
[null,null,null,null,null,null,10]